{"text_format":"1","workbook":"xlsx","n_sheets":6,"sheets":["introduction","chart","summary","data","print","schools"],"not_rendered":{"charts":4,"images":0,"macros":1,"external_links":0,"defined_names":5,"comments":0,"pivot_tables":0},"unopened":[],"bounds":{"document_bytes":16777216,"sheet_cells":100000,"rows_first":2000,"rows_last":500,"rows_between":2000,"halvings":0,"cell_chars":16384,"cell_head_chars":4096},"cells_cut":0,"cells_raw":0,"read":"whole","date_system":"1900"}

{"sheet":"introduction","index":0,"n_rows":217,"n_cols":19,"rows_kept":217,"cut":false,"hidden":false,"merged":[[1,19,9,19],[1,20,9,20],[1,21,9,21],[40,2,40,3],[29,2,29,3],[4,1,16,12],[1,3,3,10]]}
[null,null,null,null,null,null,null,null,null,null,null,null,null,null,null,null,1,"I - Ilocos","Alaminos City"]
[null,"School ID:",131267,"    SELF-ASSESSMENT TOOL",null,null,null,null,null,null,null,null,null,null,null,null,2,"II - Cagayan Valley","Batac City"]
[null,"Computer ID:","D",null,null,null,null,null,null,null,null,null,null,null,null,null,3,"III - Central Luzon","Candon City"]
[null,null,null,null,null,null,null,null,null,null,null,null,null,null,null,null,4,"IV-CALABARZON","Dagupan City"]
[null,"This tool has three parts:\n\nPart I: Demographic Profile, please tick the circle/box of the demographic information applicable to you.\n\nPart II: Objectives, please tick the circle that corresponds to how you rate the objectives based on: (1) level of capability and (2) level of priority for development.\n\nPart III: Core Behavioral Competencies, please tick the box of the behavioral indicators that you demonstrated during the performance cycle.  ",null,null,null,null,null,null,null,null,null,null,null,null,null,null,5,"IV-MIMAROPA","Ilocos Norte"]
[null,null,null,null,null,null,null,null,null,null,null,null,null,null,null,null,6,"V - Bicol","Ilocos Sur"]
[null,null,null,null,null,null,null,null,null,null,null,null,null,null,null,null,7,"VI - Western Visayas","La Union"]
[null,null,null,null,null,null,null,null,null,null,null,null,null,null,null,null,8,"VII - Central Visayas","Laoag City"]
[null,null,null,null,null,null,null,null,null,null,null,null,null,null,null,null,9,"VIII - Eastern Visayas","Pangasinan I, Lingayen"]
[null,null,null,null,null,null,null,null,null,null,null,null,null,null,null,null,10,"IX - Zamboanga Peninsula","Pangasinan II, Binalonan"]
[null,null,null,null,null,null,null,null,null,null,null,null,null,null,null,null,11,"X - Northern Mindanao","San Carlos City"]
[null,null,null,null,null,null,null,null,null,null,null,null,null,null,null,null,12,"XI - Davao Region","San Fernando City"]
[null,null,null,null,null,null,null,null,null,null,null,null,null,null,null,null,13,"XII - SOCCSKSARGEN","Urdaneta City"]
[null,null,null,null,null,null,null,null,null,null,null,null,null,null,null,null,14,"CARAGA","Vigan City"]
[null,null,null,null,null,null,null,null,null,null,null,null,null,null,null,null,15,"Autonomous Region in Muslim Mindanao","Batanes"]
[null,null,null,null,null,null,null,null,null,null,null,null,null,null,null,null,16,"Cordillera Administrative Region","Cagayan"]
[null,null,null,null,null,null,null,null,null,null,null,null,null,null,null,null,17,"National Capital Region","Cauayan City"]
[null,null,null,null,null,null,null,null,null,null,null,null,null,null,null,null,18,null,"City of Ilagan"]
[null,null,null,null,null,null,null,null,null,null,null,null,null,null,null,null,19,null,"Isabela"]
[null,null,null,null,null,null,null,null,null,null,null,null,null,null,null,null,20,null,"Nueva Vizcaya"]
[null,null,null,null,null,null,null,null,null,null,null,null,null,null,null,null,21,null,"Quirino"]
[null,null,null,null,null,null,null,null,null,null,null,null,null,null,null,null,22,null,"Santiago City"]
[null,null,null,null,null,null,null,null,null,null,null,null,null,null,null,null,23,null,"Tuguegarao City"]
[null,null,null,null,null,null,null,null,null,null,null,null,null,null,null,null,24,null,"Angeles City"]
[null,null,null,null,null,null,null,null,null,null,null,null,null,null,null,null,25,null,"Aurora"]
[null,null,null,null,null,null,null,null,null,null,null,null,null,null,null,null,26,null,"Balanga City"]
[null,null,null,null,null,null,null,null,null,null,null,null,null,null,null,null,null,null,"Bataan"]
[null,null,null,null,null,null,null,null,null,null,null,null,null,null,null,null,null,null,"Bulacan"]
[null,null,null,null,null,null,null,null,null,null,null,null,null,null,null,null,null,null,"Cabanatuan City"]
[null,null,null,null,null,null,null,null,null,null,null,null,null,null,null,null,null,null,"Gapan City"]
[null,null,null,null,null,null,null,null,null,null,null,null,null,null,null,null,null,null,"Mabalacat City"]
[null,null,null,null,null,null,null,null,null,null,null,null,null,null,null,null,null,null,"Malolos City"]
[null,null,null,null,null,null,null,null,null,null,null,null,null,null,null,null,null,null,"Meycauayan City"]
[null,null,null,null,null,null,null,null,null,null,null,null,null,null,null,null,null,null,"Munoz Science City"]
[null,null,null,null,null,null,null,null,null,null,null,null,null,null,null,null,null,null,"Nueva Ecija"]
[null,null,null,null,null,null,null,null,null,null,null,null,null,null,null,null,null,null,"Olongapo City"]
[null,null,null,null,null,null,null,null,null,null,null,null,null,null,null,null,null,null,"Pampanga"]
[null,null," ",null,null,null,null,null,null,null,null,null,null,null,null,null,null,null,"San Jose City"]
[null,null,null,null,null,null,null,null,null,null,null,null,null,null,null,null,null,null,"San Jose del Monte City"]
[null,null,null,null,null,null,null,null,null,null,null,null,null,null,null,null,null,null,"Tarlac"]
[null,null,null,null,null,null,null,null,null,null,null,null,null,null,null,null,null,null,"Tarlac City"]
[null,null,null,null,null,null,null,null,null,null,null,null,null,null,null,null,null,null,"Zambales"]
[null,null,null,null,null,null,null,null,null,null,null,null,null,null,null,null,null,null,"Antipolo City"]
[null,null,null,null,null,null,null,null,null,null,null,null,null,null,null,null,null,null,"Bacoor City"]
[null,null,null,null,null,null,null,null,null,null,null,null,null,null,null,null,null,null,"Batangas"]
[null,null,null,null,null,null,null,null,null,null,null,null,null,null,null,null,null,null,"Batangas City"]
[null,null,null,null,null,null,null,null,null,null,null,null,null,null,null,null,null,null,"Binan City"]
[null,null,null,null,null,null,null,null,null,null,null,null,null,null,null,null,null,null,"Calamba City"]
[null,null,null,null,null,null,null,null,null,null,null,null,null,null,null,null,null,null,"Cavite"]
[null,null,null,null,null,null,null,null,null,null,null,null,null,null,null,null,null,null,"Cavite City"]
[null,null,null,null,null,null,null,null,null,null,null,null,null,null,null,null,null,null,"Dasmarinas City"]
[null,null,null,null,null,null,null,null,null,null,null,null,null,null,null,null,null,null,"Imus City"]
[null,null,null,null,null,null,null,null,null,null,null,null,null,null,null,null,null,null,"Laguna"]
[null,null,null,null,null,null,null,null,null,null,null,null,null,null,null,null,null,null,"Lipa City"]
[null,null,null,null,null,null,null,null,null,null,null,null,null,null,null,null,null,null,"Lucena City"]
[null,null,null,null,null,null,null,null,null,null,null,null,null,null,null,null,null,null,"Quezon"]
[null,null,null,null,null,null,null,null,null,null,null,null,null,null,null,null,null,null,"Rizal"]
[null,null,null,null,null,null,null,null,null,null,null,null,null,null,null,null,null,null,"San Pablo City"]
[null,null,null,null,null,null,null,null,null,null,null,null,null,null,null,null,null,null,"Sta. Rosa City"]
[null,null,null,null,null,null,null,null,null,null,null,null,null,null,null,null,null,null,"Tanauan City"]
[null,null,null,null,null,null,null,null,null,null,null,null,null,null,null,null,null,null,"Tayabas City"]
[null,null,null,null,null,null,null,null,null,null,null,null,null,null,null,null,null,null,"Calapan City"]
[null,null,null,null,null,null,null,null,null,null,null,null,null,null,null,null,null,null,"Marinduque"]
[null,null,null,null,null,null,null,null,null,null,null,null,null,null,null,null,null,null,"Occidental Mindoro"]
[null,null,null,null,null,null,null,null,null,null,null,null,null,null,null,null,null,null,"Oriental Mindoro"]
[null,null,null,null,null,null,null,null,null,null,null,null,null,null,null,null,null,null,"Palawan"]
[null,null,null,null,null,null,null,null,null,null,null,null,null,null,null,null,null,null,"Puerto Princesa City"]
[null,null,null,null,null,null,null,null,null,null,null,null,null,null,null,null,null,null,"Romblon"]
[null,null,null,null,null,null,null,null,null,null,null,null,null,null,null,null,null,null,"Albay"]
[null,null,null,null,null,null,null,null,null,null,null,null,null,null,null,null,null,null,"Camarines Norte"]
[null,null,null,null,null,null,null,null,null,null,null,null,null,null,null,null,null,null,"Camarines Sur"]
[null,null,null,null,null,null,null,null,null,null,null,null,null,null,null,null,null,null,"Catanduanes"]
[null,null,null,null,null,null,null,null,null,null,null,null,null,null,null,null,null,null,"Iriga City"]
[null,null,null,null,null,null,null,null,null,null,null,null,null,null,null,null,null,null,"Legaspi City"]
[null,null,null,null,null,null,null,null,null,null,null,null,null,null,null,null,null,null,"Ligao City"]
[null,null,null,null,null,null,null,null,null,null,null,null,null,null,null,null,null,null,"Masbate"]
[null,null,null,null,null,null,null,null,null,null,null,null,null,null,null,null,null,null,"Masbate City"]
[null,null,null,null,null,null,null,null,null,null,null,null,null,null,null,null,null,null,"Naga City"]
[null,null,null,null,null,null,null,null,null,null,null,null,null,null,null,null,null,null,"Sorsogon"]
[null,null,null,null,null,null,null,null,null,null,null,null,null,null,null,null,null,null,"Sorsogon City"]
[null,null,null,null,null,null,null,null,null,null,null,null,null,null,null,null,null,null,"Tabaco City"]
[null,null,null,null,null,null,null,null,null,null,null,null,null,null,null,null,null,null,"Aklan"]
[null,null,null,null,null,null,null,null,null,null,null,null,null,null,null,null,null,null,"Antique"]
[null,null,null,null,null,null,null,null,null,null,null,null,null,null,null,null,null,null,"Bacolod City"]
[null,null,null,null,null,null,null,null,null,null,null,null,null,null,null,null,null,null,"Bago City"]
[null,null,null,null,null,null,null,null,null,null,null,null,null,null,null,null,null,null,"Cadiz City"]
[null,null,null,null,null,null,null,null,null,null,null,null,null,null,null,null,null,null,"Capiz"]
[null,null,null,null,null,null,null,null,null,null,null,null,null,null,null,null,null,null,"Escalante City"]
[null,null,null,null,null,null,null,null,null,null,null,null,null,null,null,null,null,null,"Guimaras"]
[null,null,null,null,null,null,null,null,null,null,null,null,null,null,null,null,null,null,"Iloilo"]
[null,null,null,null,null,null,null,null,null,null,null,null,null,null,null,null,null,null,"Iloilo City"]
[null,null,null,null,null,null,null,null,null,null,null,null,null,null,null,null,null,null,"Kabankalan City"]
[null,null,null,null,null,null,null,null,null,null,null,null,null,null,null,null,null,null,"La Carlota City"]
[null,null,null,null,null,null,null,null,null,null,null,null,null,null,null,null,null,null,"Negros Occidental"]
[null,null,null,null,null,null,null,null,null,null,null,null,null,null,null,null,null,null,"Passi City"]
[null,null,null,null,null,null,null,null,null,null,null,null,null,null,null,null,null,null,"Roxas City"]
[null,null,null,null,null,null,null,null,null,null,null,null,null,null,null,null,null,null,"Sagay City"]
[null,null,null,null,null,null,null,null,null,null,null,null,null,null,null,null,null,null,"Silay City"]
[null,null,null,null,null,null,null,null,null,null,null,null,null,null,null,null,null,null,"Bais City"]
[null,null,null,null,null,null,null,null,null,null,null,null,null,null,null,null,null,null,"Bayawan City"]
[null,null,null,null,null,null,null,null,null,null,null,null,null,null,null,null,null,null,"Bogo City"]
[null,null,null,null,null,null,null,null,null,null,null,null,null,null,null,null,null,null,"Bohol"]
[null,null,null,null,null,null,null,null,null,null,null,null,null,null,null,null,null,null,"Carcar City"]
[null,null,null,null,null,null,null,null,null,null,null,null,null,null,null,null,null,null,"Cebu"]
[null,null,null,null,null,null,null,null,null,null,null,null,null,null,null,null,null,null,"Cebu City"]
[null,null,null,null,null,null,null,null,null,null,null,null,null,null,null,null,null,null,"City of Naga, Cebu"]
[null,null,null,null,null,null,null,null,null,null,null,null,null,null,null,null,null,null,"Danao City"]
[null,null,null,null,null,null,null,null,null,null,null,null,null,null,null,null,null,null,"Dumaguete City"]
[null,null,null,null,null,null,null,null,null,null,null,null,null,null,null,null,null,null,"Guihulngan City"]
[null,null,null,null,null,null,null,null,null,null,null,null,null,null,null,null,null,null,"Lapu-Lapu City"]
[null,null,null,null,null,null,null,null,null,null,null,null,null,null,null,null,null,null,"Mandaue City"]
[null,null,null,null,null,null,null,null,null,null,null,null,null,null,null,null,null,null,"Negros Oriental"]
[null,null,null,null,null,null,null,null,null,null,null,null,null,null,null,null,null,null,"Siquijor"]
[null,null,null,null,null,null,null,null,null,null,null,null,null,null,null,null,null,null,"Tagbilaran City"]
[null,null,null,null,null,null,null,null,null,null,null,null,null,null,null,null,null,null,"Talisay City"]
[null,null,null,null,null,null,null,null,null,null,null,null,null,null,null,null,null,null,"Tanjay City"]
[null,null,null,null,null,null,null,null,null,null,null,null,null,null,null,null,null,null,"Toledo City"]
[null,null,null,null,null,null,null,null,null,null,null,null,null,null,null,null,null,null,"Baybay City"]
[null,null,null,null,null,null,null,null,null,null,null,null,null,null,null,null,null,null,"Biliran"]
[null,null,null,null,null,null,null,null,null,null,null,null,null,null,null,null,null,null,"Borongan City"]
[null,null,null,null,null,null,null,null,null,null,null,null,null,null,null,null,null,null,"Calbayog City"]
[null,null,null,null,null,null,null,null,null,null,null,null,null,null,null,null,null,null,"Catbalogan City"]
[null,null,null,null,null,null,null,null,null,null,null,null,null,null,null,null,null,null,"Eastern Samar"]
[null,null,null,null,null,null,null,null,null,null,null,null,null,null,null,null,null,null,"Leyte"]
[null,null,null,null,null,null,null,null,null,null,null,null,null,null,null,null,null,null,"Maasin City"]
[null,null,null,null,null,null,null,null,null,null,null,null,null,null,null,null,null,null,"Northern Samar"]
[null,null,null,null,null,null,null,null,null,null,null,null,null,null,null,null,null,null,"Ormoc City"]
[null,null,null,null,null,null,null,null,null,null,null,null,null,null,null,null,null,null,"Samar (Western Samar)"]
[null,null,null,null,null,null,null,null,null,null,null,null,null,null,null,null,null,null,"Southern Leyte"]
[null,null,null,null,null,null,null,null,null,null,null,null,null,null,null,null,null,null,"Tacloban City"]
[null,null,null,null,null,null,null,null,null,null,null,null,null,null,null,null,null,null,"Dapitan City"]
[null,null,null,null,null,null,null,null,null,null,null,null,null,null,null,null,null,null,"Dipolog City"]
[null,null,null,null,null,null,null,null,null,null,null,null,null,null,null,null,null,null,"Isabela City"]
[null,null,null,null,null,null,null,null,null,null,null,null,null,null,null,null,null,null,"Pagadian City"]
[null,null,null,null,null,null,null,null,null,null,null,null,null,null,null,null,null,null,"Zamboanga City"]
[null,null,null,null,null,null,null,null,null,null,null,null,null,null,null,null,null,null,"Zamboanga del Norte"]
[null,null,null,null,null,null,null,null,null,null,null,null,null,null,null,null,null,null,"Zamboanga del Sur"]
[null,null,null,null,null,null,null,null,null,null,null,null,null,null,null,null,null,null,"Zamboanga Sibugay"]
[null,null,null,null,null,null,null,null,null,null,null,null,null,null,null,null,null,null,"Bukidnon"]
[null,null,null,null,null,null,null,null,null,null,null,null,null,null,null,null,null,null,"Cagayan de Oro City"]
[null,null,null,null,null,null,null,null,null,null,null,null,null,null,null,null,null,null,"Camiguin"]
[null,null,null,null,null,null,null,null,null,null,null,null,null,null,null,null,null,null,"El Salvador"]
[null,null,null,null,null,null,null,null,null,null,null,null,null,null,null,null,null,null,"Gingoog City"]
[null,null,null,null,null,null,null,null,null,null,null,null,null,null,null,null,null,null,"Iligan City"]
[null,null,null,null,null,null,null,null,null,null,null,null,null,null,null,null,null,null,"Lanao del Norte"]
[null,null,null,null,null,null,null,null,null,null,null,null,null,null,null,null,null,null,"Malaybalay City"]
[null,null,null,null,null,null,null,null,null,null,null,null,null,null,null,null,null,null,"Misamis Occidental"]
[null,null,null,null,null,null,null,null,null,null,null,null,null,null,null,null,null,null,"Misamis Oriental"]
[null,null,null,null,null,null,null,null,null,null,null,null,null,null,null,null,null,null,"Oroquieta City"]
[null,null,null,null,null,null,null,null,null,null,null,null,null,null,null,null,null,null,"Ozamis City"]
[null,null,null,null,null,null,null,null,null,null,null,null,null,null,null,null,null,null,"Tangub City"]
[null,null,null,null,null,null,null,null,null,null,null,null,null,null,null,null,null,null,"Valencia City"]
[null,null,null,null,null,null,null,null,null,null,null,null,null,null,null,null,null,null,"Compostela Valley"]
[null,null,null,null,null,null,null,null,null,null,null,null,null,null,null,null,null,null,"Davao City"]
[null,null,null,null,null,null,null,null,null,null,null,null,null,null,null,null,null,null,"Davao del Norte"]
[null,null,null,null,null,null,null,null,null,null,null,null,null,null,null,null,null,null,"Davao del Sur"]
[null,null,null,null,null,null,null,null,null,null,null,null,null,null,null,null,null,null,"Davao Occidental"]
[null,null,null,null,null,null,null,null,null,null,null,null,null,null,null,null,null,null,"Davao Oriental"]
[null,null,null,null,null,null,null,null,null,null,null,null,null,null,null,null,null,null,"Digos City"]
[null,null,null,null,null,null,null,null,null,null,null,null,null,null,null,null,null,null,"Island Garden City of Samal"]
[null,null,null,null,null,null,null,null,null,null,null,null,null,null,null,null,null,null,"Mati City"]
[null,null,null,null,null,null,null,null,null,null,null,null,null,null,null,null,null,null,"Panabo City"]
[null,null,null,null,null,null,null,null,null,null,null,null,null,null,null,null,null,null,"Tagum City"]
[null,null,null,null,null,null,null,null,null,null,null,null,null,null,null,null,null,null,"Cotabato City"]
[null,null,null,null,null,null,null,null,null,null,null,null,null,null,null,null,null,null,"General Santos City"]
[null,null,null,null,null,null,null,null,null,null,null,null,null,null,null,null,null,null,"Kidapawan City"]
[null,null,null,null,null,null,null,null,null,null,null,null,null,null,null,null,null,null,"Koronadal City"]
[null,null,null,null,null,null,null,null,null,null,null,null,null,null,null,null,null,null,"North Cotabato"]
[null,null,null,null,null,null,null,null,null,null,null,null,null,null,null,null,null,null,"Sarangani"]
[null,null,null,null,null,null,null,null,null,null,null,null,null,null,null,null,null,null,"South Cotabato"]
[null,null,null,null,null,null,null,null,null,null,null,null,null,null,null,null,null,null,"Sultan Kudarat"]
[null,null,null,null,null,null,null,null,null,null,null,null,null,null,null,null,null,null,"Tacurong City"]
[null,null,null,null,null,null,null,null,null,null,null,null,null,null,null,null,null,null,"Agusan del Norte"]
[null,null,null,null,null,null,null,null,null,null,null,null,null,null,null,null,null,null,"Agusan del Sur"]
[null,null,null,null,null,null,null,null,null,null,null,null,null,null,null,null,null,null,"Bayugan City"]
[null,null,null,null,null,null,null,null,null,null,null,null,null,null,null,null,null,null,"Bislig City"]
[null,null,null,null,null,null,null,null,null,null,null,null,null,null,null,null,null,null,"Butuan City"]
[null,null,null,null,null,null,null,null,null,null,null,null,null,null,null,null,null,null,"Cabadbaran City"]
[null,null,null,null,null,null,null,null,null,null,null,null,null,null,null,null,null,null,"Dinagat Island"]
[null,null,null,null,null,null,null,null,null,null,null,null,null,null,null,null,null,null,"Siargao"]
[null,null,null,null,null,null,null,null,null,null,null,null,null,null,null,null,null,null,"Surigao City"]
[null,null,null,null,null,null,null,null,null,null,null,null,null,null,null,null,null,null,"Surigao del Norte"]
[null,null,null,null,null,null,null,null,null,null,null,null,null,null,null,null,null,null,"Surigao del Sur"]
[null,null,null,null,null,null,null,null,null,null,null,null,null,null,null,null,null,null,"Tandag City"]
[null,null,null,null,null,null,null,null,null,null,null,null,null,null,null,null,null,null,"Basilan"]
[null,null,null,null,null,null,null,null,null,null,null,null,null,null,null,null,null,null,"Lamitan City"]
[null,null,null,null,null,null,null,null,null,null,null,null,null,null,null,null,null,null,"Lanao del Sur - I"]
[null,null,null,null,null,null,null,null,null,null,null,null,null,null,null,null,null,null,"Lanao del Sur - II"]
[null,null,null,null,null,null,null,null,null,null,null,null,null,null,null,null,null,null,"Maguindanao I"]
[null,null,null,null,null,null,null,null,null,null,null,null,null,null,null,null,null,null,"Maguindanao II"]
[null,null,null,null,null,null,null,null,null,null,null,null,null,null,null,null,null,null,"Marawi City"]
[null,null,null,null,null,null,null,null,null,null,null,null,null,null,null,null,null,null,"Sulu"]
[null,null,null,null,null,null,null,null,null,null,null,null,null,null,null,null,null,null,"Tawi-Tawi"]
[null,null,null,null,null,null,null,null,null,null,null,null,null,null,null,null,null,null,"Abra"]
[null,null,null,null,null,null,null,null,null,null,null,null,null,null,null,null,null,null,"Apayao"]
[null,null,null,null,null,null,null,null,null,null,null,null,null,null,null,null,null,null,"Baguio City"]
[null,null,null,null,null,null,null,null,null,null,null,null,null,null,null,null,null,null,"Benguet"]
[null,null,null,null,null,null,null,null,null,null,null,null,null,null,null,null,null,null,"Ifugao"]
[null,null,null,null,null,null,null,null,null,null,null,null,null,null,null,null,null,null,"Kalinga"]
[null,null,null,null,null,null,null,null,null,null,null,null,null,null,null,null,null,null,"Mt. Province"]
[null,null,null,null,null,null,null,null,null,null,null,null,null,null,null,null,null,null,"Tabuk City"]
[null,null,null,null,null,null,null,null,null,null,null,null,null,null,null,null,null,null,"Caloocan City"]
[null,null,null,null,null,null,null,null,null,null,null,null,null,null,null,null,null,null,"City of San Juan"]
[null,null,null,null,null,null,null,null,null,null,null,null,null,null,null,null,null,null,"Las Piñas City"]
[null,null,null,null,null,null,null,null,null,null,null,null,null,null,null,null,null,null,"Makati City"]
[null,null,null,null,null,null,null,null,null,null,null,null,null,null,null,null,null,null,"Malabon City"]
[null,null,null,null,null,null,null,null,null,null,null,null,null,null,null,null,null,null,"Mandaluyong City"]
[null,null,null,null,null,null,null,null,null,null,null,null,null,null,null,null,null,null,"Manila"]
[null,null,null,null,null,null,null,null,null,null,null,null,null,null,null,null,null,null,"Marikina City"]
[null,null,null,null,null,null,null,null,null,null,null,null,null,null,null,null,null,null,"Muntinlupa City"]
[null,null,null,null,null,null,null,null,null,null,null,null,null,null,null,null,null,null,"Navotas"]
[null,null,null,null,null,null,null,null,null,null,null,null,null,null,null,null,null,null,"Paranaque City"]
[null,null,null,null,null,null,null,null,null,null,null,null,null,null,null,null,null,null,"Pasay City"]
[null,null,null,null,null,null,null,null,null,null,null,null,null,null,null,null,null,null,"Pasig City"]
[null,null,null,null,null,null,null,null,null,null,null,null,null,null,null,null,null,null,"Quezon City"]
[null,null,null,null,null,null,null,null,null,null,null,null,null,null,null,null,null,null,"Taguig"]
[null,null,null,null,null,null,null,null,null,null,null,null,null,null,null,null,null,null,"Valenzuela City"]

{"sheet":"chart","index":1,"n_rows":1,"n_cols":1,"rows_kept":1,"cut":false,"hidden":false,"merged":[[0,0,0,1],[1,0,43,1]]}
[{"$f":"summary!A1","v":0}]

{"sheet":"summary","index":2,"n_rows":17,"n_cols":10,"rows_kept":17,"cut":false,"hidden":false,"merged":[[0,0,1,1]]}
[]
[]
[]
[null,null,"Objective","Capability Assessment","Priority Assessment",null,null,"Core Behavioral Rompetencies","Rating","rating"]
[null,1.1000000000000001,null,null,null,null,null,"Self-Management",null,1]
[null,1.2,null,null,null,null,null,"Professionalism and Ethics",null,2]
[null,1.3,null,null,null,null,null,"Result Focus",null,3]
[null,2.1,null,null,null,null,null,"Teamwork",null,4]
[null,2.2000000000000002,null,null,null,null,null,"Service Orientation",null,5]
[null,2.2999999999999998,null,null,null,null,null,"Innovation"]
[null,3.1]
[null,3.2]
[null,3.3]
[null,4.0999999999999996]
[null,4.2]
[null,4.3]
[null,5.0999999999999996]

{"sheet":"data","index":3,"n_rows":9,"n_cols":96,"rows_kept":9,"cut":false,"hidden":false,"merged":[]}
["2018-07-11T18:31:42","131267D1-1",6,2,1,5,2,"Master in guidance and couseling",3,1,0,0,0,0,0,0,0,null,1,0,0,0,0,0,1,0,null,0,0,0,1,0,3,15,3,4,3,4,3,4,4,3,4,3,4,3,4,4,3,4,3,4,4,4,4,4,3,4,3,4,4,1,1,1,1,0,4,1,1,1,0,1,4,1,1,1,0,1,4,1,0,1,1,1,4,1,1,1,1,0,3,1,1,1,0,0]
["2018-07-11T18:37:55","131267D2-1",6,2,1,7,3,null,3,1,0,0,0,0,0,0,0,null,1,0,0,1,0,1,0,0,null,0,1,0,0,0,2,16,3,2,2,3,4,1,4,1,2,3,4,1,2,4,3,3,3,3,4,1,4,1,3,3,4,1,2,0,0,1,0,1,2,0,0,1,0,1,1,0,0,0,0,1,4,1,1,1,1,0,3,0,1,1,1,0,3,1,1,1,0,0]
["2018-07-11T18:43:25","131267D3-1",3,2,1,4,2,null,2,1,0,0,0,0,0,0,0,null,1,0,0,0,0,0,0,0,null,0,0,1,0,0,12,15,4,3,4,4,3,4,3,3,3,3,3,2,3,2,3,3,3,2,3,3,3,3,3,2,4,3,3,1,1,0,1,0,4,1,0,1,1,1,4,1,1,0,1,1,4,1,0,1,1,1,4,1,1,1,0,1,3,0,1,1,1,0]
["2018-07-11T18:52:29","131267D4-1",7,2,1,6,3,"Educ Mgt",3,0,0,0,0,1,0,0,0,null,1,0,0,1,0,0,0,0,null,0,0,1,1,0,12,15,3,2,3,2,2,3,3,2,2,2,3,2,3,2,2,3,2,2,2,2,2,2,2,2,3,2,4,1,1,1,0,1,5,1,1,1,1,1,5,1,1,1,1,1,4,1,1,0,1,1,3,1,0,1,1,0,4,1,1,1,1,0]
["2018-08-02T14:04:29","131267D5-1",5,2,1,5,2,null,3,0,0,1,0,0,0,0,0,null,0,0,1,0,0,0,0,0,null,0,0,0,0,1,12,15,2,3,2,3,2,3,3,2,3,2,3,2,3,2,3,2,2,3,3,2,2,3,2,3,3,4,4,1,1,1,1,0,4,1,1,0,1,1,3,1,1,0,1,0,5,1,1,1,1,1,4,1,1,1,1,0,4,1,0,1,1,1]
["2018-08-03T00:36:34","131267D6-1",5,1,1,3,2,null,2,0,0,1,0,0,0,0,1,"Accountancy",0,0,1,0,0,0,0,1,"ABM",0,0,0,0,1,9,15,2,3,2,3,2,3,3,4,3,3,3,3,3,3,3,3,3,4,3,3,4,3,4,3,4,3,4,1,1,1,1,0,5,1,1,1,1,1,4,1,1,1,0,1,5,1,1,1,1,1,4,1,1,0,1,1,5,1,1,1,1,1]
["2018-08-05T15:07:17","131267D7-1",5,2,1,5,2,null,3,0,0,1,0,0,0,0,0,null,0,0,1,0,0,0,0,0,null,0,0,0,0,1,12,15,3,2,2,3,3,3,3,3,3,2,2,3,2,4,3,3,2,3,3,3,2,3,3,2,4,4,4,1,1,1,0,1,4,1,1,1,1,0,3,1,1,1,0,0,4,1,1,1,0,1,5,1,1,1,1,1,5,1,1,1,1,1]
["2019-02-27T15:22:06","131267D8-1",3,1,1,3,2,null,3,0,0,1,0,0,0,0,0,null,0,0,1,0,0,0,0,0,null,1,0,0,0,1,10,15,3,2,2,3,4,1,2,4,3,3,2,3,3,3,4,2,2,3,3,2,4,2,2,3,3,2,4,1,1,1,1,0,5,1,1,1,1,1,3,0,1,1,1,0,4,1,0,1,1,1,5,1,1,1,1,1,3,0,0,1,1,1]
["2019-03-01T16:09:26","131267D9-1",2,1,1,1,1,null,1,0,0,0,0,0,0,1,0,null,0,0,1,0,0,0,0,0,null,0,0,0,0,1,12,15,3,1,4,2,4,2,4,1,4,1,2,3,4,1,4,1,4,1,4,1,3,1,4,1,4,1,5,1,1,1,1,1,5,1,1,1,1,1,5,1,1,1,1,1,5,1,1,1,1,1,5,1,1,1,1,1,5,1,1,1,1,1]

{"sheet":"print","index":4,"n_rows":38,"n_cols":6,"rows_kept":38,"cut":false,"hidden":false,"merged":[[1,0,3,2],[4,1,4,2]]}
[null,null,"Page 1-5",null,{"$f":"B5","v":0},"Page 4-5"]
["Important: you will need the unique code below to sign in to this application in the future. You must record this code by writing it down or saving the print out, otherwise you will not be able to access the second rating tool.",null,null,null,"Core Behavioral Rompetencies","Rating"]
[null,null,null,null,"Self-Management",{"$f":"summary!I5","v":0}]
[null,null,null,null,"Professionalism and Ethics",{"$f":"summary!I6","v":0}]
["Your Code is:",{"$f":"summary!A1","v":0},null,null,"Result Focus",{"$f":"summary!I7","v":0}]
[null,null,null,null,"Teamwork",{"$f":"summary!I8","v":0}]
[null,null,null,null,"Service Orientation",{"$f":"summary!I9","v":0}]
[null,null,null,null,"Innovation",{"$f":"summary!I10","v":0}]
[]
[]
[]
[]
[]
[]
[]
[]
[]
[]
[]
[]
[]
[null,{"$f":"B5","v":0},"Page 2-5",null,{"$f":"B5","v":0},"Page 4-5"]
["Objective","Capability Assessment","Priority Assessment"]
[{"$f":"summary!C5","v":0},{"$f":"summary!D5","v":0},{"$f":"summary!E5","v":0}]
[{"$f":"summary!C6","v":0},{"$f":"summary!D6","v":0},{"$f":"summary!E6","v":0}]
[{"$f":"summary!C7","v":0},{"$f":"summary!D7","v":0},{"$f":"summary!E7","v":0}]
[{"$f":"summary!C8","v":0},{"$f":"summary!D8","v":0},{"$f":"summary!E8","v":0}]
[{"$f":"summary!C9","v":0},{"$f":"summary!D9","v":0},{"$f":"summary!E9","v":0}]
[{"$f":"summary!C10","v":0},{"$f":"summary!D10","v":0},{"$f":"summary!E10","v":0}]
[{"$f":"summary!C11","v":0},{"$f":"summary!D11","v":0},{"$f":"summary!E11","v":0}]
[{"$f":"summary!C12","v":0},{"$f":"summary!D12","v":0},{"$f":"summary!E12","v":0}]
[]
[null,{"$f":"B5","v":0},"page 3-5"]
[{"$f":"summary!C13","v":0},{"$f":"summary!D13","v":0},{"$f":"summary!E13","v":0}]
[{"$f":"summary!C14","v":0},{"$f":"summary!D14","v":0},{"$f":"summary!E14","v":0}]
[{"$f":"summary!C15","v":0},{"$f":"summary!D15","v":0},{"$f":"summary!E15","v":0}]
[{"$f":"summary!C16","v":0},{"$f":"summary!D16","v":0},{"$f":"summary!E16","v":0}]
[{"$f":"summary!C17","v":0},{"$f":"summary!D17","v":0},{"$f":"summary!E17","v":0}]

{"sheet":"schools","index":5,"n_rows":51141,"n_cols":3,"rows_kept":4500,"cut":true,"hidden":false,"merged":[],"bounds":{"rows_first":2000,"rows_last":500,"rows_between":2000,"halvings":0}}
["Division","School_id","School_name"]
["Alaminos City","496507","100 Island Cowboy Christian Learning Center, Inc."]
["Alaminos City","400130","Alaminos Adventist Multigrade School Inc."]
["Alaminos City","101166","Alaminos City Central School"]
["Alaminos City","496505","Alaminos City Maxim Heritage Academy, Inc."]
["Alaminos City","101167","Alos ES"]
["Alaminos City","101168","Amandiego ES"]
["Alaminos City","101169","Amangbangan ES"]
["Alaminos City","101170","Balangobong ES"]
["Alaminos City","101171","Balayang ES"]
["Alaminos City","101172","Baleyadaan ES"]
["Alaminos City","101173","Bisocol ES"]
["Alaminos City","101174","Bolaney ES"]
["Alaminos City","101175","Bued ES"]
["Alaminos City","101176","Cabatuan ES"]
["Alaminos City","101177","Cayucay ES"]
["Alaminos City","400136","Colegio San Jose de Alaminos, Inc."]
["Alaminos City","101178","Dulacac ES"]
["Alaminos City","496503","Ednas School of Alaminos"]
["Alaminos City","400134","ELR Westville Integrated School"]
["Alaminos City","101179","Inerangan ES"]
["Alaminos City","101180","Landoc ES"]
["Alaminos City","236001","Linmansangan ES"]
["Alaminos City","101181","Lucap ES"]
["Alaminos City","101182","Maawi ES"]
["Alaminos City","101183","Magsaysay ES"]
["Alaminos City","101184","Maliga ES"]
["Alaminos City","400132","Mary the Queen Educational Foundation"]
["Alaminos City","101185","Mona ES"]
["Alaminos City","101186","Palamis ES"]
["Alaminos City","101187","Pandan ES"]
["Alaminos City","500564","Pangapisan IS"]
["Alaminos City","496502","PBCC School, Inc."]
["Alaminos City","101189","Pogo ES"]
["Alaminos City","101190","Polo ES"]
["Alaminos City","101191","Popantay ES"]
["Alaminos City","496504","Precious Angels Christian School Inc."]
["Alaminos City","101192","Quibuar ES"]
["Alaminos City","101193","Sabangan ES"]
["Alaminos City","101194","San Jose ES"]
["Alaminos City","101195","San Roque ES"]
["Alaminos City","101196","San Vicente ES"]
["Alaminos City","400135","Shekinah Grace School"]
["Alaminos City","101197","Sta. Maria ES"]
["Alaminos City","101198","Tangcarang ES"]
["Alaminos City","101199","Tawintawin ES"]
["Alaminos City","101200","Telbang ES"]
["Alaminos City","400138","The Great Plebeian College"]
["Alaminos City","496501","UMC-Values School, Inc."]
["Alaminos City","101201","Victoria ES"]
["Batac City","100089","Baay ES"]
["Batac City","100090","Baligat ES"]
["Batac City","150010","Baoa East ES"]
["Batac City","100091","Baoa ES"]
["Batac City","410026","Batac Hilltop Christian Academy, Inc."]
["Batac City","400008","Batac Junior College"]
["Batac City","410004","Batac Puericulture & Family Planning Center"]
["Batac City","100088","Benigno Macadaeg Mem. ES"]
["Batac City","100092","Bil-loca ES"]
["Batac City","100093","Biningan ES"]
["Batac City","100094","Camandingan ES"]
["Batac City","100075","Catalino Acosta Mem. ES, Special Education Center"]
["Batac City","408720","Clairenaida Christian Academy"]
["Batac City","100076","Colo-Mabaleng Elementary School"]
["Batac City","100077","Cumcumraas PS"]
["Batac City","100095","Dariwdiw ES"]
["Batac City","410005","Graceland Saviour's Institution, Inc."]
["Batac City","100096","Hilario Valdez Mem. Elem. School"]
["Batac City","400010","Immaculate Concepcion Academy"]
["Batac City","410015","Living Rock Christian School of Excellence"]
["Batac City","100079","Magnuang ES"]
["Batac City","100080","Maipalig-Quiom ES"]
["Batac City","407908","Maranatha Christian Academy of Batac"]
["Batac City","100078","Mariano Marcos Memorial Elementary School"]
["Batac City","600000","Mariano Marcos State University-Main"]
["Batac City","100097","Nagbacalan ES"]
["Batac City","100081","Naguirangan-Capacuan ES"]
["Batac City","100082","P. Q. Pimentel ES"]
["Batac City","100083","Parangopong ES"]
["Batac City","100084","Payao Elementary School"]
["Batac City","100085","Quiling Elementary School"]
["Batac City","100098","Rayuray Elementary School"]
["Batac City","100099","San Mateo ES"]
["Batac City","100086","Sumader ES"]
["Batac City","100087","Tabug ES"]
["Candon City","100425","Allangigan Elementary School"]
["Candon City","100426","Amguid Elementary School"]
["Candon City","100427","Ayudante Elementary School"]
["Candon City","100428","Bagani Elementary School"]
["Candon City","100429","Bagani-Tocgo Elementary School"]
["Candon City","100430","Bagar Elementary School"]
["Candon City","100431","Balingaoan Elementary School"]
["Candon City","100432","Bugnay Elementary School"]
["Candon City","496013","Cabanela Preschool Center Inc."]
["Candon City","100433","Calaoa-an Elementary School"]
["Candon City","100434","Calongbuyan Elementary School"]
["Candon City","100435","Candon North Central School"]
["Candon City","100436","Candon South Central School"]
["Candon City","235501","Candon South Central School SPED Center"]
["Candon City","100437","Caterman Elementary School"]
["Candon City","100438","Caterman ES Annex"]
["Candon City","496006","Caterman Mt. Zion Academy Inc."]
["Candon City","100439","Cubcubbuot Elementary School"]
["Candon City","100440","Darapidap Elementary School"]
["Candon City","100441","Langlangca Elementary School"]
["Candon City","496011","Maranatha Christian Academy of Fourthwatch Inc."]
["Candon City","496008","NICOSAT COLLEGES INC."]
["Candon City","100442","Oaig-Daya Elementary School"]
["Candon City","100443","Parioc East Elementary School"]
["Candon City","100444","Parioc Elementary School"]
["Candon City","100445","Patpata Elementary School"]
["Candon City","100446","Paypayad Elementary School"]
["Candon City","100447","Salvador Elementary School"]
["Candon City","400030","San Andres Adventist Elementary School"]
["Candon City","496003","San Juan de Sahagun (Parish) Pre-School Formation Center"]
["Candon City","496009","St. Cecilia Early Learning Center Inc."]
["Candon City","400031","St. Joseph's Institute, Inc."]
["Candon City","100448","Sto. Tomas Elementary School"]
["Candon City","100449","Tablac Elementary School"]
["Candon City","100450","Talogtog Elementary School"]
["Candon City","100451","Tamurong Elementary School"]
["Candon City","496004","The Shepherd Kiddie School, Inc."]
["Candon City","496007","The Sto. Tomas UMC Children's Garden Learning Center  Inc."]
["Candon City","496010","The United Methodist Church Kiddie Center Inc."]
["Candon City","100452","Ubbog Elementary School"]
["Candon City","496005","UCCP - Nursery Kindergarten School"]
["Dagupan City","102154","Bacayao Sur ES"]
["Dagupan City","102162","BLISS ES"]
["Dagupan City","102163","Bolosan ES"]
["Dagupan City","102165","Bonuan Buquig ES"]
["Dagupan City","412507","Bonuan First Baptist Learning Center, Inc."]
["Dagupan City","102174","Calmay ES"]
["Dagupan City","102175","Carael ES"]
["Dagupan City","102155","Caranglaan ES"]
["Dagupan City","412508","Clifford Interactive Learning School of Dagupan City"]
["Dagupan City","412512","Colegio De Dagupan"]
["Dagupan City","400255","Divine Word Academy of Dagupan"]
["Dagupan City","400256","Dominican School"]
["Dagupan City","500053","East Central IS"]
["Dagupan City","400258","Ednas School"]
["Dagupan City","400259","Escuela de Nuestra Señora de la Salette"]
["Dagupan City","500054","Federico N. Ceralde IS"]
["Dagupan City","102168","Gen. Gregorio del Pilar ES"]
["Dagupan City","412502","Genesis School of Happy Kids Advanced Studies"]
["Dagupan City","400261","Harvent School Foundation of Dagupan City, Inc."]
["Dagupan City","412511","JCCMI-Christian Academy, Inc."]
["Dagupan City","102149","Juan L. Siapno ES"]
["Dagupan City","102181","Juan P. Guadiz ES"]
["Dagupan City","400263","La Marea Academy, Inc."]
["Dagupan City","102158","Lasip Grande ES"]
["Dagupan City","102166","Leon-Francisco Maramba ES"]
["Dagupan City","400264","Living Lights Academy Foundation, Inc."]
["Dagupan City","102176","Lomboy ES"]
["Dagupan City","102150","Lucao ES"]
["Dagupan City","400254","Lyceum-Northwestern University Creative Montessori Center"]
["Dagupan City","102151","Malued Elementary School and Special Science Elementary School"]
["Dagupan City","102169","Mamalingling Elementary School"]
["Dagupan City","102159","Mangin-Tebeng ES"]
["Dagupan City","400267","Mother Goose Special School System, Inc."]
["Dagupan City","102170","North Central Elementary School"]
["Dagupan City","412514","Northfield Academy, Inc."]
["Dagupan City","412509","Oakridge International School of Young Leaders"]
["Dagupan City","412501","Pamma Learning Center"]
["Dagupan City","400269","Pangasinan Universal Institute"]
["Dagupan City","102177","Pantal ES"]
["Dagupan City","102156","Pascuala G. Villamil ES"]
["Dagupan City","412510","PIMSAT Colleges Inc."]
["Dagupan City","102160","Pogo-Lasip ES"]
["Dagupan City","404138","Prime Brilliant Minds Academy"]
["Dagupan City","500055","Pugaro IS"]
["Dagupan City","102171","Sabangan ES"]
["Dagupan City","102179","Salapingao ES"]
["Dagupan City","102172","Salisay Elementary School"]
["Dagupan City","412504","Salve Regina Learning Center"]
["Dagupan City","400270","St. Albert the Great School"]
["Dagupan City","400271","St. John's Cathedral School"]
["Dagupan City","400253","St. Michael School By-The-Sea"]
["Dagupan City","400272","St. Robert Bellarmine Center for Learning, Inc."]
["Dagupan City","102180","Suit  Elementary school"]
["Dagupan City","102173","T. Ayson-Rosario ES"]
["Dagupan City","102161","Tambac ELementary School"]
["Dagupan City","152501","Tebeng ES"]
["Dagupan City","412506","UMC Twinkle Learning Center, Inc."]
["Dagupan City","400265","University of Luzon"]
["Dagupan City","400252","University of Pangasinan"]
["Dagupan City","102167","Victoria Q. Zarate Elementary School"]
["Dagupan City","102152","West Central ES I"]
["Dagupan City","102153","West CES II"]
["Dagupan City","400274","Wonderland School of Dagupan, Inc."]
["Dagupan City","412513","YMCA of Pangasinan Pre-School, Inc."]
["Ilocos Norte","100216","Ab-Abut ES"]
["Ilocos Norte","100043","Abaca ES"]
["Ilocos Norte","100307","Abkir ES"]
["Ilocos Norte","100100","Ablan Community School"]
["Ilocos Norte","100217","Abucay ES"]
["Ilocos Norte","100139","Acnam-Caray ES"]
["Ilocos Norte","100160","Adams CES"]
["Ilocos Norte","100101","Agaga ES"]
["Ilocos Norte","100161","Aggasi PS"]
["Ilocos Norte","100044","Alao-ao PS"]
["Ilocos Norte","100308","Alejo Malasig ES"]
["Ilocos Norte","100288","Alsem ES"]
["Ilocos Norte","410024","Andres Agpalza Memorial Learning Center, Inc."]
["Ilocos Norte","100001","Apaleng-Libtong ES"]
["Ilocos Norte","100024","Ar-Arusip ES"]
["Ilocos Norte","150001","Aring ES"]
["Ilocos Norte","100251","Asuncion ES"]
["Ilocos Norte","100002","Bacarra CES"]
["Ilocos Norte","100180","Bacsil Elementary School"]
["Ilocos Norte","100128","Bacsil ES"]
["Ilocos Norte","100045","Bacsil PS"]
["Ilocos Norte","100234","Badio ES"]
["Ilocos Norte","410025","Badoc Little Angels Learning Center, Inc."]
["Ilocos Norte","100025","Badoc North Central School"]
["Ilocos Norte","100026","Badoc South Central School SPED Center"]
["Ilocos Norte","100274","Bagbag ES"]
["Ilocos Norte","100275","Bagbago ES"]
["Ilocos Norte","100289","Bago ES"]
["Ilocos Norte","150013","Bagut ES"]
["Ilocos Norte","100162","Balaoi ES"]
["Ilocos Norte","100046","Banban Elementary School"]
["Ilocos Norte","100058","Bangsar ES"]
["Ilocos Norte","100013","Bangsirit ES"]
["Ilocos Norte","100047","Bangui CES"]
["Ilocos Norte","100059","Banna Central Elementary School"]
["Ilocos Norte","408143","Banna Church of Christ Disciples Learning Center, Inc."]
["Ilocos Norte","100252","Barabar ES"]
["Ilocos Norte","100140","Barangobong E/S"]
["Ilocos Norte","100235","BARBAR ELEMENTARY SCHOOL"]
["Ilocos Norte","100060","Barbarangay ES"]
["Ilocos Norte","100276","Barcelona ES"]
["Ilocos Norte","100118","Baresbes ES"]
["Ilocos Norte","150018","Barikir ES"]
["Ilocos Norte","100119","Barong ES"]
["Ilocos Norte","100048","Baruyen Elementary School"]
["Ilocos Norte","100102","Bayog ES"]
["Ilocos Norte","100236","Bicbica PS"]
["Ilocos Norte","100141","Biding ES"]
["Ilocos Norte","100110","Bimmanga ES"]
["Ilocos Norte","100261","Binaratan ES"]
["Ilocos Norte","100253","Bingao ES"]
["Ilocos Norte","100194","Binsang ES"]
["Ilocos Norte","100103","BLISS ELEMENTARY SCHOOL"]
["Ilocos Norte","100104","Bobon ES"]
["Ilocos Norte","100061","Bomitog ES"]
["Ilocos Norte","100218","Boyboy ES"]
["Ilocos Norte","100237","Buanga ES"]
["Ilocos Norte","100163","Bucarot PS"]
["Ilocos Norte","100062","Bugasi ES"]
["Ilocos Norte","150019","Bugayong Elementary Sch."]
["Ilocos Norte","100254","Bugnay ES"]
["Ilocos Norte","100238","Bulbulala Elementary School"]
["Ilocos Norte","150005","Bulbulala PS"]
["Ilocos Norte","100164","Burayoc ES"]
["Ilocos Norte","100105","Burgos Central Elementary School"]
["Ilocos Norte","100003","Buyon ES"]
["Ilocos Norte","100195","Cababaan ES"]
["Ilocos Norte","100291","Cabangaran ES"]
["Ilocos Norte","100239","Cabaroan ES"]
["Ilocos Norte","100014","Cabaruan ES"]
["Ilocos Norte","100309","Cabayo ES"]
["Ilocos Norte","100310","Cabisuculan-Columbia ES"]
["Ilocos Norte","100142","Cabittauran ES"]
["Ilocos Norte","100015","Cabulalaan ES"]
["Ilocos Norte","100262","Cabuloan Elementary School"]
["Ilocos Norte","100143","Cacafean ES"]
["Ilocos Norte","100016","Cadaratan ES"]
["Ilocos Norte","100063","Caestebanan ES"]
["Ilocos Norte","100219","Calambeg ES"]
["Ilocos Norte","100017","Calioet ES"]
["Ilocos Norte","100027","Camanga ES"]
["Ilocos Norte","100292","Canaam ES"]
["Ilocos Norte","100165","Caparispisan PS"]
["Ilocos Norte","100129","Capasan ES"]
["Ilocos Norte","500000","Caraitan Integrated School"]
["Ilocos Norte","100220","Carasi ES"]
["Ilocos Norte","100064","Caribquib ES"]
["Ilocos Norte","100196","Caruan ES"]
["Ilocos Norte","100197","Carusikis ES"]
["Ilocos Norte","100018","Casilian ES"]
["Ilocos Norte","150023","Casilian Primary School - Taguipuro Annex"]
["Ilocos Norte","100065","Catagtaguen ES"]
["Ilocos Norte","100277","Catangraran ES"]
["Ilocos Norte","100255","Catuguing ES"]
["Ilocos Norte","100166","Caunayan Elementary School"]
["Ilocos Norte","100259","Cayetano Bumanglag ES"]
["Ilocos Norte","150016","Columbia PS"]
["Ilocos Norte","100111","Comcomloong-Anggapang PS"]
["Ilocos Norte","100066","Crispina ES"]
["Ilocos Norte","100198","Dadaeman Elementary School"]
["Ilocos Norte","100049","Dadaor PS"]
["Ilocos Norte","100167","Dampig ES"]
["Ilocos Norte","100293","Danao Elementary School"]
["Ilocos Norte","100278","Darasdas ES"]
["Ilocos Norte","100240","Darat ES"]
["Ilocos Norte","100311","Dasar ES"]
["Ilocos Norte","100199","Davila ES"]
["Ilocos Norte","410022","Delasan Learning Center Inc."]
["Ilocos Norte","100200","Dilanis ES"]
["Ilocos Norte","100201","Dilavo ES"]
["Ilocos Norte","100294","Dimamaga ES"]
["Ilocos Norte","100120","Dingras Central ES"]
["Ilocos Norte","400011","Dingras Faith Academy, Inc."]
["Ilocos Norte","100130","Dingras West CES"]
["Ilocos Norte","100295","Dipilat ES"]
["Ilocos Norte","100241","Don Mariano Marcos Mem. Sch."]
["Ilocos Norte","100112","Doña Josefa E. Marcos ES"]
["Ilocos Norte","100050","Dumalneg ES"]
["Ilocos Norte","100221","Dupitac E/S"]
["Ilocos Norte","410018","Early Childhood Learning Center of St. Therese"]
["Ilocos Norte","100256","Eladio V. Barangan Mem. ES"]
["Ilocos Norte","100144","Elizabeth ES"]
["Ilocos Norte","150017","Elizabeth ES"]
["Ilocos Norte","100121","Elizabeth-Lanas ES"]
["Ilocos Norte","100145","Escoda ES"]
["Ilocos Norte","100296","Esperanza ES"]
["Ilocos Norte","100131","Espiritu ES"]
["Ilocos Norte","100222","Estancia ES"]
["Ilocos Norte","100297","Ester Elementary School"]
["Ilocos Norte","100181","Evangelista ES"]
["Ilocos Norte","100146","F. Daquioag Mem. ES"]
["Ilocos Norte","400024","Faith Bible Baptist Academy"]
["Ilocos Norte","410014","Faith Preschool, Inc."]
["Ilocos Norte","100147","Ferdinand ES"]
["Ilocos Norte","100257","Filipinas East ES"]
["Ilocos Norte","150022","Filipinas West ES"]
["Ilocos Norte","500591","Florentino Camaquin Integrated School"]
["Ilocos Norte","100148","Fortuna ES"]
["Ilocos Norte","100122","Francisco ES"]
["Ilocos Norte","100202","Gabaldon ES"]
["Ilocos Norte","100029","Gabut ES"]
["Ilocos Norte","100168","Gamaban ES"]
["Ilocos Norte","100004","Ganagan Elementary School"]
["Ilocos Norte","100149","Garnaden ES"]
["Ilocos Norte","100223","Gayamat PS"]
["Ilocos Norte","410021","God Father Learning Center of Pagudpud"]
["Ilocos Norte","150011","Godogod Elementary School"]
["Ilocos Norte","100263","Golgol ES"]
["Ilocos Norte","100298","Gubang ES"]
["Ilocos Norte","100242","Gulpeng PS"]
["Ilocos Norte","100132","Hilaria Salvatierra Mem. ES"]
["Ilocos Norte","400003","IGAMA Colleges Foundation, Inc."]
["Ilocos Norte","100067","Imelda ES"]
["Ilocos Norte","100150","Imelda ES"]
["Ilocos Norte","100313","Isic-Isic ES"]
["Ilocos Norte","410020","Kids'  Kollege, Marcos I. Norte, Inc."]
["Ilocos Norte","100030","Labut ES"]
["Ilocos Norte","100068","Lading ES"]
["Ilocos Norte","100224","Lagandit ES"]
["Ilocos Norte","100051","Lanao ES"]
["Ilocos Norte","100113","Langayan ES"]
["Ilocos Norte","100031","Lasien School"]
["Ilocos Norte","100225","Libnaoan ES"]
["Ilocos Norte","100243","Liliputen ES"]
["Ilocos Norte","100279","Lipay ES"]
["Ilocos Norte","100314","Lipay ES"]
["Ilocos Norte","100315","Lubnac ES"]
["Ilocos Norte","100169","Luzong ES"]
["Ilocos Norte","100170","Luzuyo PS"]
["Ilocos Norte","150020","Maab-abaca PS"]
["Ilocos Norte","100280","Maananteng ES"]
["Ilocos Norte","150014","Mabanbanag PS"]
["Ilocos Norte","150021","Mabino ES"]
["Ilocos Norte","150002","Mabusag Sur ES"]
["Ilocos Norte","100032","Mabusag-Napu ES"]
["Ilocos Norte","100151","Mabuti ES"]
["Ilocos Norte","100069","Macayepyep ES"]
["Ilocos Norte","100005","Macupit ES"]
["Ilocos Norte","100203","Madalayap Elementary School"]
["Ilocos Norte","100033","Madupayas ES"]
["Ilocos Norte","100316","Magabobo ES"]
["Ilocos Norte","100114","Maglaoi ES"]
["Ilocos Norte","150007","MALAGGAO PS"]
["Ilocos Norte","500345","Malaguip Integrated School"]
["Ilocos Norte","100317","Malampa ES"]
["Ilocos Norte","100281","Manalpac ES"]
["Ilocos Norte","100318","Manarang ES"]
["Ilocos Norte","100133","Mandaloque ES"]
["Ilocos Norte","100152","Marcos Central School"]
["Ilocos Norte","100299","Margaay PS"]
["Ilocos Norte","100226","Maruaya PS"]
["Ilocos Norte","100300","Masadsaduel Elementary School"]
["Ilocos Norte","100052","Masikil PS"]
["Ilocos Norte","100123","Medina Parado ES"]
["Ilocos Norte","100183","Monte ES"]
["Ilocos Norte","100034","Morong ES"]
["Ilocos Norte","100184","Mumulaan ES"]
["Ilocos Norte","100204","Nagabungan ES"]
["Ilocos Norte","100185","Nagbacalan ES"]
["Ilocos Norte","150003","Nagbacalan West ES"]
["Ilocos Norte","100053","Nagbalagan ES"]
["Ilocos Norte","100205","Naglicuan ES"]
["Ilocos Norte","100070","Nagpatayan ES"]
["Ilocos Norte","100282","Nagpatpatan ES"]
["Ilocos Norte","100035","Nagrebcan ES"]
["Ilocos Norte","100206","Nagsanga ES"]
["Ilocos Norte","100106","Nagsurot Elementary School"]
["Ilocos Norte","100244","Nagtrigoan ES"]
["Ilocos Norte","100153","Naguilian Elementary School"]
["Ilocos Norte","100186","Nalasin ES"]
["Ilocos Norte","100006","Nambaran ES"]
["Ilocos Norte","100301","Namoroc-Mabanbanag ES"]
["Ilocos Norte","100187","Nanguyudan Elementary School"]
["Ilocos Norte","100154","Nueva Era Central Elementary School"]
["Ilocos Norte","100107","Paayas ES"]
["Ilocos Norte","100155","Pacifico ES"]
["Ilocos Norte","100054","Paddagan ES"]
["Ilocos Norte","100036","Pagsanahan Elementary School"]
["Ilocos Norte","100171","Pagudpud Central Elementary School"]
["Ilocos Norte","100172","Pagudpud South CES"]
["Ilocos Norte","100115","Paguludan PS"]
["Ilocos Norte","500343","Pallas IS"]
["Ilocos Norte","100037","Paltit ES"]
["Ilocos Norte","100173","Pancian ES"]
["Ilocos Norte","500592","Pandan IS"]
["Ilocos Norte","100116","Pangil ES"]
["Ilocos Norte","100207","Pangil ES"]
["Ilocos Norte","100019","Paninaan Elementary School"]
["Ilocos Norte","100188","Paoay CES"]
["Ilocos Norte","100189","Paoay East Central ES"]
["Ilocos Norte","100020","Parang E/S"]
["Ilocos Norte","100265","Parang ES"]
["Ilocos Norte","100319","Parparoroc ES"]
["Ilocos Norte","100320","Parut ES"]
["Ilocos Norte","100174","Pasaleng ES"]
["Ilocos Norte","100190","Pasil ES"]
["Ilocos Norte","100007","Pasiocan ES"]
["Ilocos Norte","100258","Pasion Barangan Memorial Elementary School"]
["Ilocos Norte","100038","Pasuc-Parang ES"]
["Ilocos Norte","100208","Pasuquin Central Elementary School"]
["Ilocos Norte","100266","Patad ES"]
["Ilocos Norte","100134","Peralta ES"]
["Ilocos Norte","100117","Pias-Gaang ES"]
["Ilocos Norte","100227","Piddig Central ES"]
["Ilocos Norte","100228","Piddig South CES"]
["Ilocos Norte","100245","Pugaoan-Bungro ES"]
["Ilocos Norte","100008","Pulangi ES"]
["Ilocos Norte","100021","Pungto ES"]
["Ilocos Norte","100246","Puritac-Dalayap ES"]
["Ilocos Norte","100209","Puyupuyan ES"]
["Ilocos Norte","100247","Puzol Elementary School"]
["Ilocos Norte","100071","Quiaoit Memorial ES"]
["Ilocos Norte","100267","Ruiz ES"]
["Ilocos Norte","100009","Sabas-Sagisi Memorial Elem. School"]
["Ilocos Norte","500593","Sacritan IS"]
["Ilocos Norte","100303","Sagpat ES"]
["Ilocos Norte","100136","Sagpatan ES"]
["Ilocos Norte","100268","Sagpatan ES"]
["Ilocos Norte","100175","Saguigui ES"]
["Ilocos Norte","100249","Salanap ES"]
["Ilocos Norte","100191","Salbang ES"]
["Ilocos Norte","500344","SALPAD INTEGRATED SCHOOL"]
["Ilocos Norte","100322","Salsalamagui ES"]
["Ilocos Norte","100124","Saludares-Cali ES"]
["Ilocos Norte","100022","San Agustin ES"]
["Ilocos Norte","150015","San Andres Elementary School"]
["Ilocos Norte","100229","San Antonio ES"]
["Ilocos Norte","100269","San Antonio ES"]
["Ilocos Norte","100270","San Bernabe ES"]
["Ilocos Norte","100135","San Esteban ES"]
["Ilocos Norte","100055","San Isidro Elementary School"]
["Ilocos Norte","150008","San Isidro PS"]
["Ilocos Norte","100210","San Juan ES"]
["Ilocos Norte","100283","San Juan ES"]
["Ilocos Norte","100125","San Marcelino ES"]
["Ilocos Norte","100137","San Marcos ES"]
["Ilocos Norte","100260","San Nicolas ES"]
["Ilocos Norte","150009","San Pedro ES"]
["Ilocos Norte","100156","Santiago ES"]
["Ilocos Norte","100284","Santiago ES"]
["Ilocos Norte","100011","Santo Cristo Elementary School"]
["Ilocos Norte","100157","Santo Nino ES"]
["Ilocos Norte","100108","Saoit ES"]
["Ilocos Norte","100323","Saricao ES"]
["Ilocos Norte","100271","Sarrat Central School"]
["Ilocos Norte","100272","Sarrat North CS"]
["Ilocos Norte","100039","Saud ES"]
["Ilocos Norte","100176","Saud ES"]
["Ilocos Norte","410013","Saviour's Christian Academy of Pasuquin"]
["Ilocos Norte","100192","Sideg Elementary School"]
["Ilocos Norte","100072","Sinamar ES"]
["Ilocos Norte","100285","Solsona Central ES"]
["Ilocos Norte","100010","SPECIAL EDUCATION CENTER"]
["Ilocos Norte","410019","St. Andrew Grade School"]
["Ilocos Norte","400005","St. Elizabeth Elementary School"]
["Ilocos Norte","400014","St. Gabriel Catholic School"]
["Ilocos Norte","400018","St. James Academy of PasuquinIlocos Norte, Inc."]
["Ilocos Norte","410007","St. Joseph Educational Center of Dingras, Inc"]
["Ilocos Norte","100286","Sta. Ana ES"]
["Ilocos Norte","100211","Sta. Catalina ES"]
["Ilocos Norte","100040","Sta. Cruz ES"]
["Ilocos Norte","400022","Sta. Rosa Academy of San Nicolas Ilocos Norte, Inc."]
["Ilocos Norte","100273","Sta. Rosa ES"]
["Ilocos Norte","100230","Sta.Maria ES"]
["Ilocos Norte","100250","Sto. Tomas ES"]
["Ilocos Norte","100193","Suba ES"]
["Ilocos Norte","100177","Subec ES"]
["Ilocos Norte","100212","Sulbec PS"]
["Ilocos Norte","100126","Sulquiano ES"]
["Ilocos Norte","100213","Surong PS"]
["Ilocos Norte","100138","Suyo ES"]
["Ilocos Norte","100056","Suyo PS"]
["Ilocos Norte","100073","Tabtabagan Elementary School"]
["Ilocos Norte","100158","Tabucbuc Elementary School"]
["Ilocos Norte","100214","Tabungao PS"]
["Ilocos Norte","100215","Tadao ES"]
["Ilocos Norte","100057","Taguipuro ES"]
["Ilocos Norte","100287","Talugtog ES"]
["Ilocos Norte","100012","Tambidao Elementary School"]
["Ilocos Norte","100304","Tamdagan ES"]
["Ilocos Norte","100109","Tanap ES"]
["Ilocos Norte","100231","Tangaoan ES"]
["Ilocos Norte","100179","Tarrag PS"]
["Ilocos Norte","410001","The Riverdeep Academy, Inc."]
["Ilocos Norte","100232","Tonoton ES"]
["Ilocos Norte","100023","Tubburan ES"]
["Ilocos Norte","100324","Tungel ES"]
["Ilocos Norte","100041","Turod ES"]
["Ilocos Norte","410002","UCCP-Nursery & Kindergarten School"]
["Ilocos Norte","500594","Uguis Integrated School"]
["Ilocos Norte","407909","United Church of Christ in the Philippines Kiddie Learning Center of Solsona, Inc."]
["Ilocos Norte","408506","UNITED CHURCH OF CHRIST IN THE PHILIPPINES LEARNING CENTER OF PASUQUIN"]
["Ilocos Norte","150004","Upon PS"]
["Ilocos Norte","100074","VALDEZ ELEMENTARY SCHOOL"]
["Ilocos Norte","100127","Ver ES"]
["Ilocos Norte","410017","Vintar Accelerated Christian School Inc."]
["Ilocos Norte","100305","Vintar CES"]
["Ilocos Norte","100233","Virbira-Angset ES"]
["Ilocos Norte","100042","Virgen Milagrosa ES"]
["Ilocos Norte","100306","Visaya ES"]
["Ilocos Norte","150012","Wilbur C. Go Elementary School"]
["Ilocos Sur","100325","Aguiwas PS"]
["Ilocos Sur","100326","ALILEM CENTRAL SCHOOL"]
["Ilocos Sur","100327","Amilongan ES"]
["Ilocos Sur","100328","Anaao ES"]
["Ilocos Sur","100329","Apang ES"]
["Ilocos Sur","100330","Apaya ES"]
["Ilocos Sur","100331","Banga ES"]
["Ilocos Sur","100332","Batbato ES"]
["Ilocos Sur","100333","Calipayan ES"]
["Ilocos Sur","100334","Caoayan Elementary School"]
["Ilocos Sur","100335","Daddaay Elementary School"]
["Ilocos Sur","100336","Dalawa Elementary School"]
["Ilocos Sur","100337","DANAC ELEMENTARY SCHOOL"]
["Ilocos Sur","100338","Kiat ES"]
["Ilocos Sur","100339","Guilong PS"]
["Ilocos Sur","100340","Licungan Elementary School"]
["Ilocos Sur","100341","Nagawa Elem. School"]
["Ilocos Sur","100342","Naonao Elementary School"]
["Ilocos Sur","100343","Palasipas ES"]
["Ilocos Sur","100344","Sugpon CS"]
["Ilocos Sur","100345","Tangilig ES"]
["Ilocos Sur","100346","Banayoyo CS"]
["Ilocos Sur","100347","Banlo Elementary School"]
["Ilocos Sur","100348","Banucal Elementary School"]
["Ilocos Sur","100349","Bay-asan PS"]
["Ilocos Sur","100350","Bequi-Walin ES"]
["Ilocos Sur","100351","Cangao PS"]
["Ilocos Sur","100352","Casilagan ES"]
["Ilocos Sur","100354","Lancuas ES"]
["Ilocos Sur","100355","Lidaoan Elementary School"]
["Ilocos Sur","100356","Lidlidda North CS"]
["Ilocos Sur","100357","Lidlidda South CS"]
["Ilocos Sur","100358","Masiosioay ES"]
["Ilocos Sur","100359","Matibuey ES"]
["Ilocos Sur","100360","Montero ES"]
["Ilocos Sur","100361","Naguimba ES"]
["Ilocos Sur","100362","Paltoc Elementary School"]
["Ilocos Sur","100363","Paltoc ES - Annex"]
["Ilocos Sur","100364","San Emilio East CS"]
["Ilocos Sur","100365","San Emilio West CS"]
["Ilocos Sur","100366","Sibsibbu Elementary School"]
["Ilocos Sur","100367","Tay-ac Elementary School"]
["Ilocos Sur","100368","Balaleng ES"]
["Ilocos Sur","100369","BANAOANG ELEMENTARY SCHOOL"]
["Ilocos Sur","100370","Bantay East CS"]
["Ilocos Sur","100371","Bantay West Central School"]
["Ilocos Sur","100372","Bulag ES"]
["Ilocos Sur","100373","Cabusligan-Quimmarayan ES"]
["Ilocos Sur","100374","Capangdanan Elementary School"]
["Ilocos Sur","100375","Guimod ES"]
["Ilocos Sur","100376","Lingsat ES"]
["Ilocos Sur","100377","Malingeb ES"]
["Ilocos Sur","100378","Ora East ES"]
["Ilocos Sur","100379","Ora West ES"]
["Ilocos Sur","100380","Paing Elementary School"]
["Ilocos Sur","100381","Sallacong Elementary School"]
["Ilocos Sur","100382","San Julian ES"]
["Ilocos Sur","100383","Silang Elementary School"]
["Ilocos Sur","100384","Taguiporo ES"]
["Ilocos Sur","100385","Tay-ac Elementary School"]
["Ilocos Sur","100386","Ansad ES"]
["Ilocos Sur","100387","Apatot Community School"]
["Ilocos Sur","100388","Bessang ES"]
["Ilocos Sur","100389","Burgos Central School"]
["Ilocos Sur","100390","Cabcaburao ES"]
["Ilocos Sur","100391","Lubing Elementary School"]
["Ilocos Sur","100392","Luna Community School"]
["Ilocos Sur","100393","Macaoayan Comm. Sch."]
["Ilocos Sur","100394","Mambug PS"]
["Ilocos Sur","100395","Padayao ES"]
["Ilocos Sur","100396","Patac ES"]
["Ilocos Sur","100397","San Esteban North CS"]
["Ilocos Sur","100398","San Esteban South CS"]
["Ilocos Sur","100399","Aragan ES"]
["Ilocos Sur","100400","Arnap Elementary School"]
["Ilocos Sur","100401","Bungro Elementary School"]
["Ilocos Sur","100402","Cabugao North Central School"]
["Ilocos Sur","100403","Cabugao South Central School"]
["Ilocos Sur","100404","Caellayan ES"]
["Ilocos Sur","100405","Carusipan Elementary School"]
["Ilocos Sur","100406","Caset Primary School"]
["Ilocos Sur","100407","Catucdaan ES"]
["Ilocos Sur","100408","Cuantacla -Sagsagat ES"]
["Ilocos Sur","100409","Daclapan ES"]
["Ilocos Sur","100410","Dardarat ES"]
["Ilocos Sur","100411","LIPIT - CUANCABAL ELEMENTARY SCHOOL"]
["Ilocos Sur","100412","Maradodon Elementary"]
["Ilocos Sur","100413","Nagsantaan Primay School"]
["Ilocos Sur","100414","Nagsincaoan ES"]
["Ilocos Sur","100415","Namruangan ES"]
["Ilocos Sur","100416","Pila ES"]
["Ilocos Sur","100417","Pug-os ES"]
["Ilocos Sur","100418","Reppaac ES"]
["Ilocos Sur","100419","Sabang ES"]
["Ilocos Sur","100420","Sagayaden Elementary School"]
["Ilocos Sur","100421","Salapasap ES"]
["Ilocos Sur","100422","Salomague ES"]
["Ilocos Sur","100423","Sisim Elementary School"]
["Ilocos Sur","100424","Turod ES"]
["Ilocos Sur","100453","Anonang-Naguilian Comm. Sch."]
["Ilocos Sur","100454","Baggoc-P. Quitiquit ES"]
["Ilocos Sur","100455","Cal-laguip ES"]
["Ilocos Sur","100456","Caoayan CS"]
["Ilocos Sur","100457","Fuerte Elementary School"]
["Ilocos Sur","100458","P. Tamurong ES"]
["Ilocos Sur","100459","Pandan ES"]
["Ilocos Sur","100460","Puro ES"]
["Ilocos Sur","100461","Villamar ES"]
["Ilocos Sur","100462","Aluling ES"]
["Ilocos Sur","100463","Bab-asig PS"]
["Ilocos Sur","100465","Baybayatin PS"]
["Ilocos Sur","100466","Bissayot ES"]
["Ilocos Sur","100467","Bucnit PS"]
["Ilocos Sur","100468","Cayus ES"]
["Ilocos Sur","100469","Cervantes CS"]
["Ilocos Sur","100470","Comillas North ES"]
["Ilocos Sur","100471","Comillas South ES"]
["Ilocos Sur","100472","Dagman PS"]
["Ilocos Sur","100473","Daing ES"]
["Ilocos Sur","100474","Dinwede ES"]
["Ilocos Sur","100475","Iteb PS"]
["Ilocos Sur","100476","Lamag ES"]
["Ilocos Sur","100477","Lamagan PS"]
["Ilocos Sur","100478","Libang ES"]
["Ilocos Sur","100479","Liqueo ES"]
["Ilocos Sur","100480","Malaya ES"]
["Ilocos Sur","100481","Malideg ES"]
["Ilocos Sur","100482","Naiba Ps"]
["Ilocos Sur","100483","Namitpit ES"]
["Ilocos Sur","100484","Paang PS"]
["Ilocos Sur","100485","Patiacan ES"]
["Ilocos Sur","100486","Patungcaleo ES"]
["Ilocos Sur","100487","Pilipil PS"]
["Ilocos Sur","100488","Quinayad  ES"]
["Ilocos Sur","100489","Quirino CS"]
["Ilocos Sur","100490","San Juan ES"]
["Ilocos Sur","100491","Saoil PS"]
["Ilocos Sur","100492","Suagayan ES"]
["Ilocos Sur","100493","TAGPEO ELEMENTARY SCHOOL"]
["Ilocos Sur","100494","Zigzag Pines Elementary School"]
["Ilocos Sur","100495","Alangan Elementary School"]
["Ilocos Sur","100496","Arinaya Elementary School"]
["Ilocos Sur","100497","Barbarit ES"]
["Ilocos Sur","100498","Dacutan PS"]
["Ilocos Sur","100499","Maas-asin ES"]
["Ilocos Sur","100500","Macatcatud PS"]
["Ilocos Sur","100501","Magsingal North Central School"]
["Ilocos Sur","100502","Magsingal South Central School"]
["Ilocos Sur","100503","Manzante ES"]
["Ilocos Sur","100504","Maratudo ES"]
["Ilocos Sur","100505","Miramar ES"]
["Ilocos Sur","100506","Namalpalan E/S"]
["Ilocos Sur","100507","Napo ES"]
["Ilocos Sur","100508","Pagsanaan Elementary School"]
["Ilocos Sur","100509","Panay ES"]
["Ilocos Sur","100510","PATONG ELEMENTARY SCHOOL"]
["Ilocos Sur","100511","Puro ES"]
["Ilocos Sur","100512","SARSARACAT ELEMENTARY SCHOOL"]
["Ilocos Sur","100513","Ambulogan ES"]
["Ilocos Sur","100514","Anteng PS"]
["Ilocos Sur","100515","Aquib ES"]
["Ilocos Sur","100516","Banglayan Elementary School"]
["Ilocos Sur","100517","Bulanos ES"]
["Ilocos Sur","100518","Camarao ES"]
["Ilocos Sur","100519","Casilagan Elementary School"]
["Ilocos Sur","100520","Dinalaoan PS"]
["Ilocos Sur","100521","Kakaldingan ES"]
["Ilocos Sur","100522","Lanipao ES"]
["Ilocos Sur","100524","MAROZO ELEMENTARY SCHOOL"]
["Ilocos Sur","100525","Narvacan North Central School"]
["Ilocos Sur","100526","Orence ES"]
["Ilocos Sur","100527","Parparia Elementary School"]
["Ilocos Sur","100528","Quinarayan ES"]
["Ilocos Sur","100529","Sarmingan Elementary School"]
["Ilocos Sur","100530","St. Gregory E/S"]
["Ilocos Sur","100532","Turod ES"]
["Ilocos Sur","100533","Bandril PS"]
["Ilocos Sur","100534","Bantugo-Mission ES"]
["Ilocos Sur","100535","Cadacad ES"]
["Ilocos Sur","100536","Cagayungan ES"]
["Ilocos Sur","100537","Codoog ES"]
["Ilocos Sur","100538","Dasay ES"]
["Ilocos Sur","100539","Lapting ES"]
["Ilocos Sur","100540","Mapisi PS"]
["Ilocos Sur","100541","Nagbukel CS"]
["Ilocos Sur","100542","Nanguneg East Elementary School"]
["Ilocos Sur","100543","Nanguneg West  PS"]
["Ilocos Sur","100544","Narvacan South CS (SPED Center)"]
["Ilocos Sur","100545","Pantoc Elementary School"]
["Ilocos Sur","100546","Paratong ES"]
["Ilocos Sur","100547","Rivadavia ES"]
["Ilocos Sur","100548","San Antonio ES"]
["Ilocos Sur","100549","San Pablo ES"]
["Ilocos Sur","100550","San Pedro ES"]
["Ilocos Sur","100551","SUCOC ELEMENTARY SCHOOL"]
["Ilocos Sur","100552","Tadao ES"]
["Ilocos Sur","100553","Taleb ES"]
["Ilocos Sur","100554","Abaccan ES"]
["Ilocos Sur","100555","Alfonso Elementary School"]
["Ilocos Sur","100556","Arangin-Dinaratan ES"]
["Ilocos Sur","100557","Baluarte ES"]
["Ilocos Sur","100558","Baracbac PS"]
["Ilocos Sur","100559","Baybayading PS"]
["Ilocos Sur","100560","Bidbiday ES"]
["Ilocos Sur","100561","Bitong ES"]
["Ilocos Sur","100562","Boguibog ES"]
["Ilocos Sur","100563","Bulala-Leguey PS"]
["Ilocos Sur","100564","Bussot PS"]
["Ilocos Sur","100565","Butarag PS"]
["Ilocos Sur","100566","Calimugtong E/S"]
["Ilocos Sur","100567","Concepcion ES"]
["Ilocos Sur","100568","Culiong ES"]
["Ilocos Sur","100569","Dapdappig  Elementary School"]
["Ilocos Sur","100570","G. del Pilar Central"]
["Ilocos Sur","100571","Galimuyod Central School"]
["Ilocos Sur","100572","Kilang PS"]
["Ilocos Sur","100573","Kinmarin PS"]
["Ilocos Sur","100574","Lucbuban PS"]
["Ilocos Sur","100575","Mabileg PS"]
["Ilocos Sur","100576","Madarang Elementary School"]
["Ilocos Sur","100577","Matue PS"]
["Ilocos Sur","100578","Mckinley PS"]
["Ilocos Sur","100579","Pagangpang Elementary School"]
["Ilocos Sur","100580","Patac ES"]
["Ilocos Sur","100581","Pias ES"]
["Ilocos Sur","100582","Salcedo CS"]
["Ilocos Sur","100583","San Elias ES"]
["Ilocos Sur","100584","San Gaspar PS"]
["Ilocos Sur","100585","Sigay Central School"]
["Ilocos Sur","100586","Sorioan ES"]
["Ilocos Sur","100587","Sto. Rosario ES"]
["Ilocos Sur","100588","Tubalina ES"]
["Ilocos Sur","100589","Ubbog PS"]
["Ilocos Sur","100590","Victory ES"]
["Ilocos Sur","100591","Asilang PS"]
["Ilocos Sur","100592","Bacsil Community School"]
["Ilocos Sur","100593","Barbar ES"]
["Ilocos Sur","100594","Camanggaan Elementary School"]
["Ilocos Sur","100595","Camindoroan Comm. Sch."]
["Ilocos Sur","100596","Caronoan ES"]
["Ilocos Sur","100597","Darao ES"]
["Ilocos Sur","100598","Dardarat E/S"]
["Ilocos Sur","100599","Don F. Quilala Mem. ES"]
["Ilocos Sur","100600","Labnig ES"]
["Ilocos Sur","100601","Malamin Elementary School"]
["Ilocos Sur","100602","Nagsabaran Elementary School"]
["Ilocos Sur","100603","Nagsuputan ES"]
["Ilocos Sur","100604","Refaro Elementary School"]
["Ilocos Sur","100605","Sabangan ES"]
["Ilocos Sur","100606","San Isidro ES"]
["Ilocos Sur","100607","San Juan North CS"]
["Ilocos Sur","100608","San Juan South CS"]
["Ilocos Sur","100609","Saoang ES"]
["Ilocos Sur","100610","Singson Verzosa ES"]
["Ilocos Sur","100611","Solotsolot ES"]
["Ilocos Sur","100612","Sunggiam ES"]
["Ilocos Sur","100613","Bayubay Elementary School"]
["Ilocos Sur","100614","Nagtupacan ES"]
["Ilocos Sur","100615","Pudoc Elementary School"]
["Ilocos Sur","100616","San Sebastian ES"]
["Ilocos Sur","100618","Banaoang Community School"]
["Ilocos Sur","100619","Basug Comm. Sch."]
["Ilocos Sur","100620","Bucalag-Tabucolan Comm. Sch."]
["Ilocos Sur","100621","Calungboyan Community School"]
["Ilocos Sur","100622","Dammay Primary School"]
["Ilocos Sur","100624","Nagpanaoan Community School"]
["Ilocos Sur","100625","Rancho Community School"]
["Ilocos Sur","100626","Sacuyya Comm. Sch."]
["Ilocos Sur","100627","Santa CS"]
["Ilocos Sur","100628","Ambucao Elementary School"]
["Ilocos Sur","100629","Butol ES"]
["Ilocos Sur","100630","Caburao Elementary School"]
["Ilocos Sur","100631","Dan-ar Community School"]
["Ilocos Sur","100632","Gabao Elementary School"]
["Ilocos Sur","100633","Olo-olo ES"]
["Ilocos Sur","100634","Sabangan ES"]
["Ilocos Sur","100635","Salincub ES"]
["Ilocos Sur","100636","San Roque Elementary School"]
["Ilocos Sur","100637","Santiago North CS"]
["Ilocos Sur","100638","Santiago South Central School"]
["Ilocos Sur","100639","Baracbac -Nagongburan ES"]
["Ilocos Sur","100640","Barikir PS"]
["Ilocos Sur","100642","Cabarambanan ES"]
["Ilocos Sur","100643","Cadanglaan ES"]
["Ilocos Sur","100644","Curtin Primary School"]
["Ilocos Sur","100645","Dadalaquiten ES"]
["Ilocos Sur","100646","Dean Leopoldo  Yabes Memorial Elementary School"]
["Ilocos Sur","100647","Katipunan PRIMARY SCHOOL"]
["Ilocos Sur","100648","Marnay Elementary School"]
["Ilocos Sur","100649","Masadag ES"]
["Ilocos Sur","100650","Sabangan ES"]
["Ilocos Sur","100651","Sapriana ES"]
["Ilocos Sur","100652","Sinait East CS"]
["Ilocos Sur","100653","SINAIT WEST CS"]
["Ilocos Sur","100654","Sta. Cruz ES"]
["Ilocos Sur","100655","Teppeng ES"]
["Ilocos Sur","100656","Tubigay ES"]
["Ilocos Sur","100657","Bernardo P. Ragasa Elementary School"]
["Ilocos Sur","100658","Cabittaogan ES"]
["Ilocos Sur","100659","Cabuloan ES"]
["Ilocos Sur","100660","Calawaan Elementary School"]
["Ilocos Sur","100661","Pangada-Cabaroan ES"]
["Ilocos Sur","100662","Paratong ES"]
["Ilocos Sur","100663","Sta. Catalina CS"]
["Ilocos Sur","100664","Amarao ES"]
["Ilocos Sur","100665","Babayoan ES"]
["Ilocos Sur","100666","Bacsayan PS"]
["Ilocos Sur","100667","Bayugao PS"]
["Ilocos Sur","100668","Besalan ES"]
["Ilocos Sur","100669","Calaoaan ES"]
["Ilocos Sur","100670","Capariaan ES"]
["Ilocos Sur","100671","Dili ES"]
["Ilocos Sur","100672","Lantag ES"]
["Ilocos Sur","100673","Linggawa PS"]
["Ilocos Sur","100674","Nagtenga Elementary School"]
["Ilocos Sur","100675","Padaoil Elementary School"]
["Ilocos Sur","100676","Pattiqui-Gabur Sur Elementary School"]
["Ilocos Sur","100677","Pilar ES"]
["Ilocos Sur","100678","PINIPIN ES"]
["Ilocos Sur","100679","Quinsoriano PS"]
["Ilocos Sur","100680","Sagat ES"]
["Ilocos Sur","100681","San Jose ES"]
["Ilocos Sur","100682","Sevilla Elementary School"]
["Ilocos Sur","100683","Sidaoen Elementary  School"]
["Ilocos Sur","100684","Sta. Cruz CS"]
["Ilocos Sur","100685","Villa Hermosa ES"]
["Ilocos Sur","100686","Antero P. Hermosura Elementary Sch."]
["Ilocos Sur","100687","Buliclic PS"]
["Ilocos Sur","100688","Cabaritan Primary School"]
["Ilocos Sur","100689","Conconig PS"]
["Ilocos Sur","100690","Damacuag ES"]
["Ilocos Sur","100691","Don Pedro Festejo Mem. Sch."]
["Ilocos Sur","100692","Luba ES"]
["Ilocos Sur","100693","Francisco Gat-eb I Elementary School"]
["Ilocos Sur","100694","Palali Elementary School"]
["Ilocos Sur","100695","Paoc ES"]
["Ilocos Sur","100696","Ronda Primary School"]
["Ilocos Sur","100697","Sabuanan Elementary School SPED Center"]
["Ilocos Sur","100698","Sta. Lucia North CS"]
["Ilocos Sur","100699","Sta. Lucia South CS"]
["Ilocos Sur","100700","Ag-agrao ES"]
["Ilocos Sur","100701","Ampuagan ES"]
["Ilocos Sur","100702","Babal-lasioan ES"]
["Ilocos Sur","100703","Bia-o ES"]
["Ilocos Sur","100704","Butir Elementary School"]
["Ilocos Sur","100705","Cabaroan Elementary School"]
["Ilocos Sur","100706","Danuman ES"]
["Ilocos Sur","100707","Dunglayan Elementary School"]
["Ilocos Sur","100708","Gusing ES"]
["Ilocos Sur","100709","Laslasong Elementary School"]
["Ilocos Sur","100710","Maynganay ES"]
["Ilocos Sur","100711","Nagsayaoan ES"]
["Ilocos Sur","100712","Nalvo ES"]
["Ilocos Sur","100713","Silag-Pacang ES"]
["Ilocos Sur","100714","Sta. Maria East CS"]
["Ilocos Sur","100715","Sta. Maria West CS"]
["Ilocos Sur","100716","Suso ELementary School"]
["Ilocos Sur","100717","Tangaoan ES"]
["Ilocos Sur","100718","Tinaan Elementary School"]
["Ilocos Sur","100719","Binalayangan ES"]
["Ilocos Sur","100720","Bungro ES"]
["Ilocos Sur","100721","Busiing ES"]
["Ilocos Sur","100722","Cirilo Rabanal Elementary School"]
["Ilocos Sur","100723","Cabaritan ES"]
["Ilocos Sur","100724","Cabigbigaan Elementary School"]
["Ilocos Sur","100725","Calay-ab ES"]
["Ilocos Sur","100726","Flora ES"]
["Ilocos Sur","100727","Lagatit ES"]
["Ilocos Sur","100728","Lao-ingen Elementary School"]
["Ilocos Sur","100729","Lussoc Community School"]
["Ilocos Sur","100730","Nagbettedan ES"]
["Ilocos Sur","100731","Naglaoa-an ES"]
["Ilocos Sur","100732","Nagtupacan ES"]
["Ilocos Sur","100733","Nambaran Community School"]
["Ilocos Sur","100734","Padu Chico Elementary School"]
["Ilocos Sur","100735","Paras-Parada ES"]
["Ilocos Sur","100736","Quimmarayan Elementary School"]
["Ilocos Sur","100737","SAGSAGAT ELEMENTARY SCHOOL"]
["Ilocos Sur","100738","San Ildefonso Central"]
["Ilocos Sur","100739","Sived ES"]
["Ilocos Sur","100740","Sto. Domingo North Central School"]
["Ilocos Sur","100741","Sto. Domingo South CS"]
["Ilocos Sur","100742","Sto. Tomas Elementary School"]
["Ilocos Sur","100743","Balangsay PS"]
["Ilocos Sur","100744","Bangcag ES"]
["Ilocos Sur","100745","Baringcucurong ES"]
["Ilocos Sur","100746","Batiangan ES"]
["Ilocos Sur","100747","Butac ES"]
["Ilocos Sur","100748","Cabugao Elementary School"]
["Ilocos Sur","100749","Dadtuco ES"]
["Ilocos Sur","100750","Ida Elementary School"]
["Ilocos Sur","100751","Kiblongan PS"]
["Ilocos Sur","100752","Kinpatubbog PS"]
["Ilocos Sur","100753","Kinapian ES"]
["Ilocos Sur","100754","Longboy ES"]
["Ilocos Sur","100755","Lubnac ES"]
["Ilocos Sur","100756","Man-atong ES"]
["Ilocos Sur","100757","Patoc-ao PS"]
["Ilocos Sur","100758","Suyo CS"]
["Ilocos Sur","100759","Suyo Proper ES"]
["Ilocos Sur","100760","Urzadan ES"]
["Ilocos Sur","100761","Uso ES"]
["Ilocos Sur","100762","AG-AGUMAN ELEM. SCHOOL"]
["Ilocos Sur","100764","Baracbac Comm. Sch."]
["Ilocos Sur","100765","Becques Community School"]
["Ilocos Sur","100766","Bimmanga Community School"]
["Ilocos Sur","100767","Bio ES"]
["Ilocos Sur","100768","Bitalag Elementary"]
["Ilocos Sur","100769","Cabugbugan Comm. Sch."]
["Ilocos Sur","100770","Cabulanglangan Elementary School"]
["Ilocos Sur","100772","Las-ud Elementary School"]
["Ilocos Sur","100774","Pacac ES"]
["Ilocos Sur","100775","Pallogan ES"]
["Ilocos Sur","100776","Pudoc East Elementary School"]
["Ilocos Sur","100778","San Miguel ES"]
["Ilocos Sur","100779","San Pedro Comm. Sch."]
["Ilocos Sur","100780","Tagudin Central School"]
["Ilocos Sur","100781","Tallaoen ES"]
["Ilocos Sur","100782","Tampugo ES"]
["Ilocos Sur","150502","Bagbagotot PS"]
["Ilocos Sur","150503","Banay PS"]
["Ilocos Sur","150504","Matallucod PS"]
["Ilocos Sur","150505","Daligan PS"]
["Ilocos Sur","150506","Caoayan CS Annex"]
["Ilocos Sur","150507","Caparacadan PS"]
["Ilocos Sur","150508","Pantay Quitiquit PS"]
["Ilocos Sur","150509","Dagdag Primary School"]
["Ilocos Sur","150510","Muraya PS"]
["Ilocos Sur","150511","Cadacad ES"]
["Ilocos Sur","150513","Namaligan Primary School"]
["Ilocos Sur","150514","Biwak PS"]
["Ilocos Sur","150515","Ul-oling PS"]
["Ilocos Sur","150516","Caraisan PS"]
["Ilocos Sur","150517","Cabaroan ES"]
["Ilocos Sur","150518","Pautan Primary School"]
["Ilocos Sur","150519","Banoen PS"]
["Ilocos Sur","150520","Bito PS"]
["Ilocos Sur","150521","KINAYAD ES"]
["Ilocos Sur","150522","Mindoro Primary School"]
["Ilocos Sur","400027","St. Paul College of Ilocos Sur, Inc."]
["Ilocos Sur","400032","St. Agnes School, Inc."]
["Ilocos Sur","400033","Bidbiday Adventist Multigrade School"]
["Ilocos Sur","400037","Saint  William's Institute, Inc."]
["Ilocos Sur","400039","Narvacan Catholic School, Inc."]
["Ilocos Sur","400040","Tirad View Academy of Seventh-Day Adventists, Inc."]
["Ilocos Sur","400049","Sta. Cruz Institute, Inc."]
["Ilocos Sur","400051","Santa Lucia Catholic School, Inc."]
["Ilocos Sur","400052","St. Mary's College Sta. Maria, Ilocos Sur, Inc."]
["Ilocos Sur","400056","St.  Augustine's School Inc."]
["Ilocos Sur","400057","Adventist School Tagudin Campus, Inc."]
["Ilocos Sur","408677","MARANATHA CHRISTIAN ACADEMY OF TAGUDIN INC."]
["Ilocos Sur","410503","Salcedo Stars Educational Center, Inc."]
["Ilocos Sur","410504","Caparia-an UMC Kiddie Center of Excellence, Inc."]
["Ilocos Sur","410505","K of C Council 7377 Pre-School, Inc."]
["Ilocos Sur","410507","UCCP CHRIST-GIFTED ACADEMY INC."]
["Ilocos Sur","410508","Banayoyo United Methodist Church Child Care Center, Inc."]
["Ilocos Sur","410510","Little Angel Learning Center of the United Methodist Church of Northwest Philippines Annual Conference, Inc."]
["Ilocos Sur","410512","Great Heights Learning Center of Ilocos Sur, Inc."]
["Ilocos Sur","410513","Pentecostal Freewill Baptist Academy of Calungbuyan Lidlidda, Inc."]
["Ilocos Sur","410514","The United Methodist Church Little Lambs Kiddie School NWPAC, INC."]
["Ilocos Sur","410516","Cabugao - UCCP Pre-School, Inc."]
["Ilocos Sur","410517","Sinait  United Church of Christ in the Philippines Pre-School"]
["Ilocos Sur","410518","Jenefa Scholastica, Inc."]
["Ilocos Sur","410519","Polytechnic Colleges of Region I, Inc."]
["Ilocos Sur","410520","San Vicente Baptist Bible Academy, Inc."]
["Ilocos Sur","410522","Little Vessels of God Preparatory School Inc."]
["Ilocos Sur","410523","Christ Servant Academy of Tagudin Inc."]
["Ilocos Sur","410528","Family Christian Center of Tagudin, Ilocos Sur, Inc."]
["Ilocos Sur","410529","Redeemer's Heart Edifie Me Academy, Inc."]
["Ilocos Sur","410530","Parabur Baptist School Inc."]
["Ilocos Sur","410531","SIR MOSESNAR SPECIAL LEARNING SCHOOL, INC."]
["Ilocos Sur","500001","Sulvec IS"]
["Ilocos Sur","500346","Mabilbila IS"]
["Ilocos Sur","500347","Pudoc West Integrated School"]
["Ilocos Sur","500348","San Vicente IS"]
["Ilocos Sur","500349","Ambalayat IS"]
["Ilocos Sur","500595","BINACUD INTEGRATED SCHOOL"]
["Ilocos Sur","500596","Lungog Integrated School"]
["Ilocos Sur","500597","Garitan Integrated  School"]
["Ilocos Sur","500598","KALUMSING INTEGRATED SCHOOL"]
["Ilocos Sur","500599","Libtong Integrated Sch."]
["La Union","100801","Agoo East CES"]
["La Union","100802","Ambitacay ES"]
["La Union","100803","Bacsil ES"]
["La Union","100805","Macalva ES"]
["La Union","100806","San Jose ES"]
["La Union","100807","San Jose-San Joaquin ES"]
["La Union","100808","San Vicente-San Agustin ES"]
["La Union","100809","Agoo West CES"]
["La Union","100810","Balawarte ES"]
["La Union","100811","San Manuel Sur ES"]
["La Union","100812","Cubal ES"]
["La Union","100813","San Joaquin ES"]
["La Union","100815","San Manuel Norte ES"]
["La Union","100816","San Nicolas ES"]
["La Union","100817","Sanijubar ES"]
["La Union","100818","Santa Rita ES"]
["La Union","100819","Aringay Central Elem.. School"]
["La Union","100820","Basca ES"]
["La Union","100821","Bitag Elementary School"]
["La Union","100822","Bulalacao ES"]
["La Union","100823","Camusing ES"]
["La Union","100824","Dulao ES"]
["La Union","100825","Gallano ES"]
["La Union","100826","Immalog ES"]
["La Union","100827","Macabato ES"]
["La Union","100828","Manga ES"]
["La Union","100829","New Bern (Alaska) ES"]
["La Union","100830","Pangao-aoan East ES"]
["La Union","100831","Samara ES"]
["La Union","100832","San Antonio Elementary School"]
["La Union","100833","San Benito ES"]
["La Union","100834","San Eugenio ES"]
["La Union","100835","San Juan ES"]
["La Union","100837","Sta. Cecilia ES"]
["La Union","100838","Sta. Lucia ES"]
["La Union","100839","Sta. Rita ES"]
["La Union","100840","Sto. Rosario ES"]
["La Union","100841","AROSIP ELEMENTARY SCHOOL"]
["La Union","100842","Baroro Elementary School"]
["La Union","100844","Cabaroan ES"]
["La Union","100845","Carcarmay ES"]
["La Union","100846","Bacnotan Central School"]
["La Union","100847","Galongen ES"]
["La Union","100848","Guinabang ES"]
["La Union","100849","Mabanengbeng Elementary School"]
["La Union","100850","Nangalisan ES"]
["La Union","100851","Ortega ES"]
["La Union","100852","Oya-oy ES"]
["La Union","100853","Paratong ES"]
["La Union","100854","Quirino Elementary School"]
["La Union","100855","Salincob ES"]
["La Union","100856","Sta. Cruz Elementary School"]
["La Union","100857","Zaragosa ES"]
["La Union","100858","Alibangsay ES"]
["La Union","100860","Bagulin CES"]
["La Union","100861","Cambaly Elementary School"]
["La Union","100862","Cardiz ES"]
["La Union","100864","Libbo ES"]
["La Union","100865","Papayo ES"]
["La Union","100866","Pila ES"]
["La Union","100867","Sinabugan Elementary School"]
["La Union","100868","Tagudtud ES"]
["La Union","100869","Tio-angan ES"]
["La Union","100870","Lower Wallayan Elementary School"]
["La Union","100871","Upper Wallayan ES"]
["La Union","100872","Almeida ES"]
["La Union","100873","Apatut ES"]
["La Union","100874","Ar-arampang Elementary School"]
["La Union","100875","Balaoan CES"]
["La Union","100876","Bulbulala ES"]
["La Union","100877","Bungol ES"]
["La Union","100878","Butubut ES"]
["La Union","100879","Butubut Norte ES"]
["La Union","100880","Calliat ES"]
["La Union","100881","Guinaburan Elementary School"]
["La Union","100882","Masupe Elementary School"]
["La Union","100883","Nagsabaran Sur ES"]
["La Union","100885","Pantar ES"]
["La Union","100886","Pantar Sur Elementary School"]
["La Union","100887","Paraoir ES"]
["La Union","100888","Patpata ES"]
["La Union","100889","Sinapangan Norte ES"]
["La Union","100890","Sinapangan Sur ES"]
["La Union","100891","Ag-Na Elem.School"]
["La Union","100892","Bangaoilan ES"]
["La Union","100893","Bangar Central Elementary School"]
["La Union","100894","Cadapli Elementary School"]
["La Union","100895","Caggao ES"]
["La Union","100896","General Prim Elementary School"]
["La Union","100897","Luzong Norte ES"]
["La Union","100899","Ma. Cristina ES"]
["La Union","100901","Paratong ES"]
["La Union","100902","Pudoc (Old Alzate) ES"]
["La Union","100903","Rissing ES"]
["La Union","100904","RUS Elementary School"]
["La Union","100905","Sinapangan ES"]
["La Union","100906","Ter-Con Elementary School"]
["La Union","100907","Acao Elementary School"]
["La Union","100908","Baccuit Elementary School"]
["La Union","100909","Ballay ES"]
["La Union","100910","Baratao Elementary School"]
["La Union","100911","Bauang North CS"]
["La Union","100912","Bawanta ES"]
["La Union","100913","Bigbiga ES"]
["La Union","100914","Paringao ES"]
["La Union","100915","PUGO ELEMENTARY SCHOOL"]
["La Union","100916","San Agustin Elementary School"]
["La Union","100917","Bagbag ES"]
["La Union","100918","Boy-utan ES"]
["La Union","100919","Bucayab Elementary School"]
["La Union","100920","Cabalayangan ES"]
["La Union","100921","Calumbaya ES"]
["La Union","100923","Guerrero Elementary School"]
["La Union","100924","Parian Este ES"]
["La Union","100925","Parian Oeste ES"]
["La Union","100926","Payocpoc Este ES"]
["La Union","100927","Payocpoc ES"]
["La Union","100929","Pudoc ES"]
["La Union","100930","Santiago ES"]
["La Union","100931","Sta. Monica Elementary School"]
["La Union","100932","Agpay ES"]
["La Union","100933","Bilis ES"]
["La Union","100934","Burgos CS"]
["La Union","100935","Delles ES"]
["La Union","100937","Linuan ES"]
["La Union","100938","Tumapoc ES"]
["La Union","100939","Upper Tumapoc ES"]
["La Union","100940","Caba CES"]
["La Union","100941","Doña Antonia Maglaya ES"]
["La Union","100942","Labbon ES"]
["La Union","100944","San Carlos ES"]
["La Union","100945","San Cornelio ES"]
["La Union","100946","San Gregorio ES"]
["La Union","100947","San Jose ES"]
["La Union","100949","Wenceslao ES"]
["La Union","100950","Barrientos Elementary School"]
["La Union","100951","Darigayos ES"]
["La Union","100952","Luna Central School"]
["La Union","100953","Nalvo Norte ES"]
["La Union","100954","Rimos del Norte ES"]
["La Union","100955","Rimos ES"]
["La Union","100956","Sto. Domingo ES"]
["La Union","100957","Ayaoan Elementary School"]
["La Union","100959","Busel-Busel ES"]
["La Union","100960","Cabalitocan ES"]
["La Union","100961","Cantoria CS"]
["La Union","100962","Nagrebcan ES"]
["La Union","100963","Nalvo Sur ES"]
["La Union","100964","Oaqui ES"]
["La Union","100965","Pila ES"]
["La Union","100966","Pitpitac ES"]
["La Union","100967","Sucoc Norte Elementary School"]
["La Union","100968","Suyo ES"]
["La Union","100969","Tallaoen ES"]
["La Union","100970","Al-Alinao ES"]
["La Union","100971","Ambaracao Sur Elementary School"]
["La Union","100972","Al-alinao Sur ES"]
["La Union","100973","Balecbec ES"]
["La Union","100974","Bancagan ES"]
["La Union","100975","BARAOAS SUR ELEM. SCHOOL"]
["La Union","100976","Bariquir Elementary School"]
["La Union","100977","Bato Elementary School"]
["La Union","100978","Lower Bimmotobot ES"]
["La Union","100979","Bimmotobot 2 Upper PS"]
["La Union","100980","Cabaritan ES"]
["La Union","100981","Mamat-ing Norte Elementary School"]
["La Union","100984","Don Tomas R. Mendoza ES"]
["La Union","100985","Dr. Hermogenes T. Belen ES"]
["La Union","100986","Guesset ES"]
["La Union","100987","Gusing ES"]
["La Union","100988","Lioac ES"]
["La Union","100989","Mamat-ing Sur ES"]
["La Union","100990","Nagsidorisan ES"]
["La Union","100991","Naguilian CS"]
["La Union","100992","San Antonio ES"]
["La Union","100993","San Isidro ES"]
["La Union","100995","Tuddinggan ES"]
["La Union","100996","Ambalite ES"]
["La Union","100997","Ambangonan ES"]
["La Union","100998","Cuenca ES"]
["La Union","100999","Maoasoas ES"]
["La Union","101000","Palina ES"]
["La Union","101001","Pugo Central School"]
["La Union","101002","San Luis ES"]
["La Union","101004","Tavora ES"]
["La Union","101005","Amlang ES"]
["La Union","101006","Bani ES"]
["La Union","101007","Cadumanian ES"]
["La Union","101008","Carunoan ES"]
["La Union","101009","Casilagan ES"]
["La Union","101010","Cataguingtingan ES"]
["La Union","101011","Don Jose  B. Bernal Elementary School"]
["La Union","101012","Gumot Elementary School"]
["La Union","101013","Inabaan ES"]
["La Union","101014","Marcos Elementary School"]
["La Union","101015","Parasapas ES"]
["La Union","101017","Sapilang ES"]
["La Union","101018","Tanglag ES"]
["La Union","101019","Udiao Elementary School"]
["La Union","101020","VILA ELEMENTARY SCHOOL"]
["La Union","101047","Amontoc ES"]
["La Union","101048","Antonino Memorial ES"]
["La Union","101049","Bayabas ES"]
["La Union","101050","Bumbuneg ES"]
["La Union","101051","Lacong Elementary School"]
["La Union","101053","Lon-oy ES"]
["La Union","101054","Nayba ES"]
["La Union","101055","Padang PS"]
["La Union","101056","Polipol ES"]
["La Union","101057","San Gabriel CS"]
["La Union","101058","Sisi ES"]
["La Union","101059","Siwsiwan ES"]
["La Union","101060","Bacsayan Elementary School"]
["La Union","101061","Balballosa ES"]
["La Union","101062","Bugbugcao ES"]
["La Union","101063","Caagraoan ES"]
["La Union","101064","Cabaroan ES"]
["La Union","101065","Dasay ES"]
["La Union","101066","Legleg Elementary School"]
["La Union","101067","Lubing ES"]
["La Union","101068","Nadsaag ES"]
["La Union","101069","Naguituban ES"]
["La Union","101070","San Felipe ES"]
["La Union","101071","San Juan CES"]
["La Union","101072","Sta. Rosa Elementary School"]
["La Union","101073","Sto. Rosario ES"]
["La Union","101074","Taboc ES"]
["La Union","101075","Urbiztondo ES"]
["La Union","101076","Banbanaba ES"]
["La Union","101078","Corrooy ES"]
["La Union","101079","Deccan Primary School"]
["La Union","101080","Liguay ES"]
["La Union","101081","Mangaan Elementary School"]
["La Union","101082","Paagan ES"]
["La Union","101083","Pisnadan PS"]
["La Union","101084","Ramot PS"]
["La Union","101085","Santol Central School"]
["La Union","101086","Sapdaan ES"]
["La Union","101087","Sasaba PS"]
["La Union","101088","Tubaday PS"]
["La Union","101089","Ambitacay ES"]
["La Union","101090","Bail ES"]
["La Union","101091","Balaoc ES"]
["La Union","101093","Casilagan ES"]
["La Union","101094","Sto. Tomas CES"]
["La Union","101095","Cupang ES"]
["La Union","101096","Damortis ES"]
["La Union","101097","Fernando ES"]
["La Union","101098","Namboongan ES"]
["La Union","101099","Narvacan ES"]
["La Union","101100","Patac Elementary School"]
["La Union","101101","Pongpong ES"]
["La Union","101102","Tococ ES"]
["La Union","101103","Ubagan Elementary School"]
["La Union","101104","Badang ES"]
["La Union","101105","Basig ES"]
["La Union","101106","Castro ES"]
["La Union","101107","Duplas ES"]
["La Union","101108","Maliclico ES"]
["La Union","101109","Old Sudipen ES"]
["La Union","101110","Porporiket ES"]
["La Union","101111","San Francisco ES"]
["La Union","101112","San Jose ES"]
["La Union","101113","Sengngat ES"]
["La Union","101114","Sudipen Central School"]
["La Union","101115","Up-uplas ES"]
["La Union","101116","Amallapay Elementary School"]
["La Union","101117","Anduyan ES"]
["La Union","101118","Caoigue ES"]
["La Union","101119","Daeng ES"]
["La Union","101120","Francia Sur Elementary School"]
["La Union","101121","Gonzales Elementary School"]
["La Union","101122","Halog East ES"]
["La Union","101123","Halog West ES"]
["La Union","101124","Leones ES"]
["La Union","101125","Linapew ES"]
["La Union","101126","Lloren ES"]
["La Union","101127","Pideg Elementary school"]
["La Union","101128","Rizal ES"]
["La Union","101129","Sta. Teresa ES"]
["La Union","101130","Tubao Central School"]
["La Union","151001","Lettac Norte Elementary School"]
["La Union","151002","Quinavite Elementary School"]
["La Union","151003","Palina ES - Annex"]
["La Union","151004","PANGAO-AOAN WEST ES"]
["La Union","151005","Lacong ES-Annex"]
["La Union","151006","Mangkaeng PS"]
["La Union","151007","Maoasoas ES- Annex"]
["La Union","151009","EULOGIO CLARENCE M. DE GUZMAN Jr. ELEMENTARY SCHOOL"]
["La Union","281525","Baraoas Norte Elementary School"]
["La Union","400065","Agoo Academy, Inc."]
["La Union","400066","Agoo Christian Learning Center"]
["La Union","400067","Agoo Kiddie Special School - HS Department"]
["La Union","400068","Agoo Montessori Learning Center & High School, Inc."]
["La Union","400071","Agoo UCCP-Nursery-Kindergarten School, Inc."]
["La Union","400072","ASSATT CHRISTIAN SCHOOL, INC."]
["La Union","400074","St. Barachiel Special Science School, Inc."]
["La Union","400075","Lord of Zion Divine School, Inc."]
["La Union","400076","St. Anthony Montessori Educational Network, Inc."]
["La Union","400079","Balaoan Christian Foundation, Inc."]
["La Union","400080","Osias Educational Foundation"]
["La Union","400081","San Nicolas Academy"]
["La Union","400082","Saint Christopher Academy"]
["La Union","400084","La Union Colleges of Science and Technology, Inc."]
["La Union","400086","St. Anthony Montessori Educational Network, Inc. (Bauang)"]
["La Union","400087","Sts. Peter and Paul Learning Center"]
["La Union","400088","UCCP Nursery Kindergarten School (Bauang)"]
["La Union","400089","Jesus Cares Christian Academy of Caba, La Union, Inc."]
["La Union","400091","St. John the Baptist Learning Center"]
["La Union","400092","Santa Catalina Academy"]
["La Union","400093","Holy Infant Niño Montessori and High School"]
["La Union","400094","Naguilian Learning Center, Inc"]
["La Union","400095","St. Augustine School of Naguilian, Inc."]
["La Union","400097","Pugo Catholic School"]
["La Union","400099","Union Institute of Rosario"]
["La Union","400112","Lorma Grade School/Lorma Colleges Special Science HS"]
["La Union","400122","Holy Angels Montessori and Learning Center"]
["La Union","400123","Sacred Heart Learning Center"]
["La Union","400126","St. Isidore School of Tubao"]
["La Union","407830","UCCP HOLY TRINITY LEARNING CENTER"]
["La Union","407930","YENA LEARNING CENTER INC."]
["La Union","408530","UCCP TUBAO NURSERY KINDERGARTEN INCORPORATED"]
["La Union","408574","Advanced Educational Training Center Luna"]
["La Union","408757","JCCM EDUCATIONAL INSTITUTE, INC."]
["La Union","411002","Harvester Bible Baptist Theological College & Academy"]
["La Union","411004","Agoo Children's World Montessori"]
["La Union","411005","UCCP Nursery Kindergarten (Balaoan)"]
["La Union","411009","UCCP Nursery Kindergarten School (Caba)"]
["La Union","411014","UCCP - Nursery-Kindergarten School (San Gabriel)"]
["La Union","411016","Polytechnic College of La Union"]
["La Union","411017","UCCP Nursery-Kindergarten School (Aringay)"]
["La Union","411020","UCCP Nursery-Kindergarten School (Calumbaya)"]
["La Union","411021","Queensland Formation School, Inc."]
["La Union","411022","UCCP- Bacnotan Pre-School Center"]
["La Union","411023","Philippine Central College of Arts & Science & Technology"]
["La Union","411024","UCCP-Naguilian Pre-School Center, Inc."]
["La Union","411025","UCCP Nursery Kindergarten - Rosario"]
["La Union","411027","Cenacle Arts and Science School, Inc."]
["La Union","411029","Escuela San Juan Bautista"]
["La Union","411031","UCCP - Nursery-Kindergarten School (San Juan)"]
["La Union","411032","Philippine Bethel Blessed Christian Academy"]
["La Union","411033","St. Bernard College"]
["La Union","411034","Naguilian Baptist Christian School, Inc."]
["La Union","411035","UCCP Nursery-Kindergarten School (Bangar)"]
["La Union","411036","UCCP Nursery-Kindergarten School (Luna)"]
["La Union","411045","HARTLAND LEARNING CENTER"]
["La Union","411048","COLEGIO de LA UNION"]
["La Union","411049","UCCP NURSERY KINDERGARTEN - PUGO"]
["La Union","411050","St. Michael Archangel Learning Center"]
["La Union","411054","UCCP Nursery Kindergarten(San Francisco)"]
["La Union","411055","UCCP Nursery Kindergarten(Castro)"]
["La Union","411056","La Union Christian Comprehensive College, Inc."]
["La Union","411057","Yeshuah the Messiah Christian Academy, Inc."]
["La Union","411058","Concordia Learning Center"]
["La Union","411060","Hands of Hope Faith Academy"]
["La Union","411065","ACHIEVERS HAVEN LEARNING SCHOOL"]
["La Union","500002","Rosario Integrated School"]
["La Union","500350","Baay Integrated School"]
["La Union","500351","Bitalag Integrated School"]
["La Union","500352","Dagup Integrated School"]
["La Union","500353","Mindoro Integrated School"]
["La Union","500354","Bungro-Sucoc Integrated School"]
["La Union","500355","Suguidan Integrated School"]
["La Union","500356","Lipay Integrated School"]
["La Union","500357","Liquicia Integrated School"]
["La Union","500358","CASILAGAN INTEGRATED SCHOOL"]
["La Union","500359","Capas Integrated School"]
["La Union","500360","Daramuangan Integrated School"]
["La Union","500361","Cabaruan Integrated School"]
["La Union","500362","Santiago Sur Integrated School"]
["La Union","500363","La Union Special School for Culture and Arts"]
["La Union","500470","San Simon ES"]
["La Union","500471","BAY-O ELEMENTARY SCHOOL"]
["La Union","500495","Casilagan Elementary School"]
["La Union","500563","San Julian IS"]
["La Union","500600","Libtong Integrated School"]
["La Union","500601","Saytan Integrated School"]
["La Union","500797","LUZONG SUR INTEGRATED SCHOOL"]
["La Union","600003","Don Mariano Marcos Memorial State University- North La Union Campus"]
["La Union","600004","Don Mariano Marcos Memorial State University-South La Union Campus"]
["Laoag City","102182","Amarosa Elementary School"]
["Laoag City","102183","Balacad Elementary School"]
["Laoag City","102185","Buttong Elementary School"]
["Laoag City","102186","Cabeza Elementary School"]
["Laoag City","102187","Calayab Elementary School"]
["Laoag City","102188","Cavit-Araniw Elementary School"]
["Laoag City","102189","Darayday Elementary School"]
["Laoag City","102190","Gabu Elementary School"]
["Laoag City","102191","Laoag Central Elementary School"]
["Laoag City","102192","Tangid Elementary School"]
["Laoag City","102193","A. P. Santos ES (SPED Center)"]
["Laoag City","102194","Alipio N. Ignacio Memorial Elementary School"]
["Laoag City","102195","Caaoacan Elementary School"]
["Laoag City","102196","Casili Elementary School"]
["Laoag City","102197","Cataban Elementary School"]
["Laoag City","102198","Don Galicano R. Rafales Memorial Elementary School"]
["Laoag City","102199","Eulalio. F. Siazon Memorial Elementary School"]
["Laoag City","102200","Navotas Elementary School"]
["Laoag City","102201","Pila Elementary School"]
["Laoag City","102202","Shamrock Elementary School"]
["Laoag City","102203","Sta. Maria Elementary School"]
["Laoag City","102204","Suyo Elementary School"]
["Laoag City","102205","Bacsil Elementary School"]
["Laoag City","102206","Barit Elementary School"]
["Laoag City","102207","Vira Elementary School"]
["Laoag City","102208","Faustino Reyes Memorial Elementary School"]
["Laoag City","102209","Gabaldon Elementary School"]
["Laoag City","102210","Lagui-Sail Elementary School"]
["Laoag City","102211","Plaridel Elementary School"]
["Laoag City","102212","Roque B. Ablan Elementary School"]
["Laoag City","102213","Salet Elementary School"]
["Laoag City","153001","Sto. Nino Elementary School"]
["Laoag City","400276","Caterpillar Centre for Early Learners, Inc."]
["Laoag City","400277","Divine Word College Laoag"]
["Laoag City","400278","Holy Spirit Academy of Laoag"]
["Laoag City","400279","Ilocos Norte Adventist School Inc."]
["Laoag City","400280","Kids'  Kollege, Inc."]
["Laoag City","400282","Laoag Four Square Kindergarten Sch. Inc."]
["Laoag City","400285","Northern Christian College Basic Education School"]
["Laoag City","400286","Northside Bible Baptist Academy, Inc."]
["Laoag City","400287","Northwestern University"]
["Laoag City","400288","Our Saviour's Foundation, Inc."]
["Laoag City","400289","Padre Annibale Integrated School, Inc."]
["Laoag City","400290","Saved by Grace Christian Academy, Inc."]
["Laoag City","400293","St. Santiago School Foundation, Inc."]
["Laoag City","400294","The Living Gates of Praise Christian School,Inc."]
["Laoag City","408662","ANC MONTESSORI LEARNING AND ACTIVITY CENTER"]
["Laoag City","413001","International School of the Arts, the Languages, and the Academe"]
["Laoag City","413002","Emmanuel Fundamental Baptist Learning Center"]
["Laoag City","413003","Atty. Sixto S. Pedro Memorial Christian Academy"]
["Laoag City","413004","Bible Believing Baptist Church Educational Ministries Foundation, Inc."]
["Laoag City","413006","MRS Dayspring Christian School"]
["Laoag City","413007","Laoag Adventist Kindergarten School"]
["Laoag City","413008","Saint Joseph Parish Kindegarten School"]
["Laoag City","413009","The Salvation Army Educational Services, Inc."]
["Laoag City","413010","Maranatha Christian School of Laoag, Inc."]
["Laoag City","500056","Balatong Integrated School"]
["Laoag City","500742","San Mateo Integrated School"]
["Laoag City","600005","Mariano Marcos State University - College of Teacher Education- Laoag City"]
["Pangasinan I, Lingayen","101132","AGNO CENTRAL SCHOOL"]
["Pangasinan I, Lingayen","101133","Allabon ES"]
["Pangasinan I, Lingayen","101134","Aloleng ES"]
["Pangasinan I, Lingayen","101135","Aroas ES"]
["Pangasinan I, Lingayen","101136","Baruan ES"]
["Pangasinan I, Lingayen","101137","Calomboyan ES"]
["Pangasinan I, Lingayen","101138","Cayungnan ES"]
["Pangasinan I, Lingayen","101139","Don A. Evangelista MES"]
["Pangasinan I, Lingayen","101141","Justice Potenciano P. Pecson ES"]
["Pangasinan I, Lingayen","101142","Macaboboni ES"]
["Pangasinan I, Lingayen","101143","Namatucan ES"]
["Pangasinan I, Lingayen","101144","Patar ES"]
["Pangasinan I, Lingayen","101145","Juan Niño ES"]
["Pangasinan I, Lingayen","101146","San Juan Elementary School"]
["Pangasinan I, Lingayen","101147","Tupa Elementary School"]
["Pangasinan I, Lingayen","101148","Viga ES"]
["Pangasinan I, Lingayen","101150","Anonang ES"]
["Pangasinan I, Lingayen","101151","Baybay ES"]
["Pangasinan I, Lingayen","101152","Bocacliw Elementary School"]
["Pangasinan I, Lingayen","101153","Bocboc East ES"]
["Pangasinan I, Lingayen","101154","Bocboc West ES"]
["Pangasinan I, Lingayen","101155","Buer-Bayaoas ES"]
["Pangasinan I, Lingayen","101156","Calsib ES"]
["Pangasinan I, Lingayen","101157","Casagatan ES"]
["Pangasinan I, Lingayen","101158","Dona Catalina ES"]
["Pangasinan I, Lingayen","101159","MANLOCBOC ELEMENTARY SCHOOL"]
["Pangasinan I, Lingayen","101161","Ninoy ES"]
["Pangasinan I, Lingayen","101162","Panacol Elementary School"]
["Pangasinan I, Lingayen","101163","Pogonsili ES"]
["Pangasinan I, Lingayen","101164","Sipitan ES"]
["Pangasinan I, Lingayen","101203","Aruab ES"]
["Pangasinan I, Lingayen","101205","Awile ES"]
["Pangasinan I, Lingayen","101206","Batiarao Elementary School"]
["Pangasinan I, Lingayen","101207","Cabungan ES"]
["Pangasinan I, Lingayen","101208","Caniogan Elementary School"]
["Pangasinan I, Lingayen","101209","Carot ES"]
["Pangasinan I, Lingayen","101210","Dolaoan ES"]
["Pangasinan I, Lingayen","101211","Imbo Elementary School"]
["Pangasinan I, Lingayen","101212","Macaleeng ES"]
["Pangasinan I, Lingayen","101213","Macandocandong ES"]
["Pangasinan I, Lingayen","101214","Mal-Ong ES"]
["Pangasinan I, Lingayen","101215","Marempey ES"]
["Pangasinan I, Lingayen","101216","Namagbagan Elementary School"]
["Pangasinan I, Lingayen","101217","Sablig ES"]
["Pangasinan I, Lingayen","101218","San Jose ES"]
["Pangasinan I, Lingayen","101219","San Nicolas Elementary School"]
["Pangasinan I, Lingayen","101221","Tondol ES"]
["Pangasinan I, Lingayen","101222","Toritori ES"]
["Pangasinan I, Lingayen","101223","Abunciang ES"]
["Pangasinan I, Lingayen","101224","Ambabaay ES"]
["Pangasinan I, Lingayen","101225","Aporao ES"]
["Pangasinan I, Lingayen","101226","Arwas ES"]
["Pangasinan I, Lingayen","101227","Ballag ES"]
["Pangasinan I, Lingayen","101229","Bani West Central School"]
["Pangasinan I, Lingayen","101230","Banog Norte ES"]
["Pangasinan I, Lingayen","101231","Banog Sur ES"]
["Pangasinan I, Lingayen","101232","Bogtong ES"]
["Pangasinan I, Lingayen","101233","Calabeng Elementary School"]
["Pangasinan I, Lingayen","101234","Centro Toma ES"]
["Pangasinan I, Lingayen","101235","Colayo ES"]
["Pangasinan I, Lingayen","101236","Dacap Norte Elementary School"]
["Pangasinan I, Lingayen","101237","Dacap Sur ES"]
["Pangasinan I, Lingayen","101238","Garrita Elementary School"]
["Pangasinan I, Lingayen","101239","Luac ES"]
["Pangasinan I, Lingayen","101240","Macabit ES"]
["Pangasinan I, Lingayen","101241","Masidem ES"]
["Pangasinan I, Lingayen","101242","Quinaoayanan ES"]
["Pangasinan I, Lingayen","101243","Ranao ES"]
["Pangasinan I, Lingayen","101244","Ranom Iloco ES"]
["Pangasinan I, Lingayen","101245","San Jose ES"]
["Pangasinan I, Lingayen","101246","San Miguel Elementary School"]
["Pangasinan I, Lingayen","101247","San Simon ES"]
["Pangasinan I, Lingayen","101248","San Vicente ES"]
["Pangasinan I, Lingayen","101249","TIEP ELEMENTARY SCHOOL"]
["Pangasinan I, Lingayen","101250","Tipor ES"]
["Pangasinan I, Lingayen","101251","Tugui Grande ES"]
["Pangasinan I, Lingayen","101252","Anambongan ES"]
["Pangasinan I, Lingayen","101253","Aquilino Banaag ES"]
["Pangasinan I, Lingayen","101254","Basista Central School"]
["Pangasinan I, Lingayen","101255","Cabeldatan ES"]
["Pangasinan I, Lingayen","101256","Dumpay ES"]
["Pangasinan I, Lingayen","101257","Magsaysay ES"]
["Pangasinan I, Lingayen","101258","Obong ES"]
["Pangasinan I, Lingayen","101259","Patacbo Elementary School"]
["Pangasinan I, Lingayen","101260","Perez ES"]
["Pangasinan I, Lingayen","101261","Alinggan-Banaban ES"]
["Pangasinan I, Lingayen","101262","Amanperez ES"]
["Pangasinan I, Lingayen","101263","Ataynan ES"]
["Pangasinan I, Lingayen","101264","Bacnono ES"]
["Pangasinan I, Lingayen","101265","Balaybuaya ES"]
["Pangasinan I, Lingayen","101266","Bani ES"]
["Pangasinan I, Lingayen","101267","Bayambang CS"]
["Pangasinan I, Lingayen","101268","Beleng Elementary School"]
["Pangasinan I, Lingayen","101269","Bical Elementary School"]
["Pangasinan I, Lingayen","101270","Bongato East ES"]
["Pangasinan I, Lingayen","101271","Bongato West ES"]
["Pangasinan I, Lingayen","101272","BUENLAG ELEMENTARY SCHOOL"]
["Pangasinan I, Lingayen","101273","Idong-Inanlorenza Elementary School"]
["Pangasinan I, Lingayen","101274","LANGIRAN ELEMENTARY SCHOOL"]
["Pangasinan I, Lingayen","101275","Macayocayo ES"]
["Pangasinan I, Lingayen","101276","Maigpa ES"]
["Pangasinan I, Lingayen","101277","Malimpec Elementary School"]
["Pangasinan I, Lingayen","101278","Nalsian ES"]
["Pangasinan I, Lingayen","101279","Sapang ES"]
["Pangasinan I, Lingayen","101280","Tamaro-Tambac ES"]
["Pangasinan I, Lingayen","101281","Tanolong Elementary School"]
["Pangasinan I, Lingayen","101282","Tococ East West ES"]
["Pangasinan I, Lingayen","101284","Amancosiling Elementary School"]
["Pangasinan I, Lingayen","101286","Bascos-Manambong Parte ES"]
["Pangasinan I, Lingayen","101287","Buayaen Central School"]
["Pangasinan I, Lingayen","101288","Carungay ES"]
["Pangasinan I, Lingayen","101289","Cason Elementary School"]
["Pangasinan I, Lingayen","101290","Caturay Elementary School"]
["Pangasinan I, Lingayen","101291","Darawey ES"]
["Pangasinan I, Lingayen","101292","Dosoc ES"]
["Pangasinan I, Lingayen","101293","Hermoza ES"]
["Pangasinan I, Lingayen","101294","Inirangan ES"]
["Pangasinan I, Lingayen","101295","Malioer ES"]
["Pangasinan I, Lingayen","101296","Managos ES"]
["Pangasinan I, Lingayen","101297","Obillo ES"]
["Pangasinan I, Lingayen","101298","Pangdel ES"]
["Pangasinan I, Lingayen","101299","Paragos ES"]
["Pangasinan I, Lingayen","101300","San Gabriel 2nd ES"]
["Pangasinan I, Lingayen","101301","San Gabriel-Iton ES"]
["Pangasinan I, Lingayen","101302","San Vicente ES"]
["Pangasinan I, Lingayen","101303","Catalino Castañeda Elementary"]
["Pangasinan I, Lingayen","101304","Tampog ES"]
["Pangasinan I, Lingayen","101305","Tatarac Apalen ES"]
["Pangasinan I, Lingayen","101306","Telbang ES"]
["Pangasinan I, Lingayen","101307","WARDING ELEMENTARY SCHOOL"]
["Pangasinan I, Lingayen","101308","Wawa ES"]
["Pangasinan I, Lingayen","101309","Baybay ES"]
["Pangasinan I, Lingayen","101310","Biec Elementary School"]
["Pangasinan I, Lingayen","101311","Binmaley I CS"]
["Pangasinan I, Lingayen","101312","Binmaley North ES"]
["Pangasinan I, Lingayen","101313","Buenlag ES"]
["Pangasinan I, Lingayen","101314","Caloocan Norte ES"]
["Pangasinan I, Lingayen","101315","Caloocan Sur ES"]
["Pangasinan I, Lingayen","101316","Dupo ES"]
["Pangasinan I, Lingayen","101317","Lomboy ES"]
["Pangasinan I, Lingayen","101318","Malindong Elementary School"]
["Pangasinan I, Lingayen","101319","Pallas-Papagueyan ES"]
["Pangasinan I, Lingayen","101320","Parayao Centro ES"]
["Pangasinan I, Lingayen","101321","Sabangan ES"]
["Pangasinan I, Lingayen","101322","San Isidro Sur ES"]
["Pangasinan I, Lingayen","101323","Balagan ES"]
["Pangasinan I, Lingayen","101324","Balogo ES"]
["Pangasinan I, Lingayen","101325","Basing Elementary School"]
["Pangasinan I, Lingayen","101326","Calit ES"]
["Pangasinan I, Lingayen","101327","Camaley CS"]
["Pangasinan I, Lingayen","101328","Canaoalan ES"]
["Pangasinan I, Lingayen","101329","Dulag Elementary School"]
["Pangasinan I, Lingayen","101330","Gayaman ES"]
["Pangasinan I, Lingayen","101331","Linoc ES"]
["Pangasinan I, Lingayen","101332","Manat ES"]
["Pangasinan I, Lingayen","101333","Nagpalangan ES"]
["Pangasinan I, Lingayen","101334","Naguilayan Elementary School"]
["Pangasinan I, Lingayen","101335","Pototan ES"]
["Pangasinan I, Lingayen","101336","Sta. Rosa ES"]
["Pangasinan I, Lingayen","101337","Tombor ES"]
["Pangasinan I, Lingayen","101338","Arnedo ES"]
["Pangasinan I, Lingayen","101339","Balingasay ES"]
["Pangasinan I, Lingayen","101340","Beda Elementary School"]
["Pangasinan I, Lingayen","101341","Binabalian Elementary School"]
["Pangasinan I, Lingayen","101343","Cabuyao Elementary School"]
["Pangasinan I, Lingayen","101345","Catuday Elementary School"]
["Pangasinan I, Lingayen","101346","Catungi ES"]
["Pangasinan I, Lingayen","101347","Culang Elementary School"]
["Pangasinan I, Lingayen","101348","Dewey ES"]
["Pangasinan I, Lingayen","101349","Estanza ES"]
["Pangasinan I, Lingayen","101350","Gagaban ES"]
["Pangasinan I, Lingayen","101351","Goyoden ES"]
["Pangasinan I, Lingayen","101352","Ilog-Malino ES"]
["Pangasinan I, Lingayen","101353","Lambes ES"]
["Pangasinan I, Lingayen","101355","Lucero Elementary School"]
["Pangasinan I, Lingayen","101356","Luciente I ES"]
["Pangasinan I, Lingayen","101357","Luciente II ES"]
["Pangasinan I, Lingayen","101358","Luna Elementary School"]
["Pangasinan I, Lingayen","101359","Patar ES"]
["Pangasinan I, Lingayen","101360","Pilar ES"]
["Pangasinan I, Lingayen","101361","Samang Norte ES"]
["Pangasinan I, Lingayen","101362","Salud ES"]
["Pangasinan I, Lingayen","101363","Samang Elementary School"]
["Pangasinan I, Lingayen","101364","Sampaloc Elementary School"]
["Pangasinan I, Lingayen","101365","SAN ROQUE ES"]
["Pangasinan I, Lingayen","101366","Tanobong ES"]
["Pangasinan I, Lingayen","101367","Tara ES"]
["Pangasinan I, Lingayen","101369","Victory Elementary School"]
["Pangasinan I, Lingayen","101370","Yabyaban Elementary School"]
["Pangasinan I, Lingayen","101371","Zaragoza ES"]
["Pangasinan I, Lingayen","101372","Asinan Elementary School"]
["Pangasinan I, Lingayen","101373","Asuncion ES"]
["Pangasinan I, Lingayen","101374","Buenlag ES"]
["Pangasinan I, Lingayen","101376","Gueset ES"]
["Pangasinan I, Lingayen","101377","Magsaysay Elementary School"]
["Pangasinan I, Lingayen","101378","Magtaquing ES"]
["Pangasinan I, Lingayen","101379","Polong ES"]
["Pangasinan I, Lingayen","101380","Salasa ES"]
["Pangasinan I, Lingayen","101381","Samat ES"]
["Pangasinan I, Lingayen","101382","San Francisco ES"]
["Pangasinan I, Lingayen","101383","Torres-Bugallon ES"]
["Pangasinan I, Lingayen","101384","Angarian ES"]
["Pangasinan I, Lingayen","101385","Bañaga ES"]
["Pangasinan I, Lingayen","101386","Bolaoen ES"]
["Pangasinan I, Lingayen","101387","Cabayaoasan ES"]
["Pangasinan I, Lingayen","101388","Cayanga ES"]
["Pangasinan I, Lingayen","101389","Dimantal E/S"]
["Pangasinan I, Lingayen","101390","Hacienda Elementary School"]
["Pangasinan I, Lingayen","101391","Laguit Centro ES"]
["Pangasinan I, Lingayen","101392","Laguit Padilla ES"]
["Pangasinan I, Lingayen","101393","Pangascasan ES"]
["Pangasinan I, Lingayen","101395","Salincaoet ES"]
["Pangasinan I, Lingayen","101396","Salomague Norte ES"]
["Pangasinan I, Lingayen","101397","Salomague Sur ES"]
["Pangasinan I, Lingayen","101398","Tococ ES"]
["Pangasinan I, Lingayen","101399","Umanday CS"]
["Pangasinan I, Lingayen","101400","Anapao ES"]
["Pangasinan I, Lingayen","101401","Burgos Central School"]
["Pangasinan I, Lingayen","101402","Cabaruan ES"]
["Pangasinan I, Lingayen","101403","Cabongaoan ES"]
["Pangasinan I, Lingayen","101404","Concordia ES"]
["Pangasinan I, Lingayen","101405","Don Antonio Bonilla ES"]
["Pangasinan I, Lingayen","101406","Don Antonio Bonilla Mem. ES"]
["Pangasinan I, Lingayen","101407","Don Matias ES"]
["Pangasinan I, Lingayen","101408","Ilio-Ilio ES"]
["Pangasinan I, Lingayen","101409","Papallasen ES"]
["Pangasinan I, Lingayen","101410","Poguruac ES"]
["Pangasinan I, Lingayen","101411","San Miguel ES"]
["Pangasinan I, Lingayen","101413","Sapa Pequeña ES"]
["Pangasinan I, Lingayen","101414","Tambacan ES"]
["Pangasinan I, Lingayen","101415","Ambonao ES"]
["Pangasinan I, Lingayen","101416","Balani-Parongking ES"]
["Pangasinan I, Lingayen","101417","Balingit Constantino-Lasip ES"]
["Pangasinan I, Lingayen","101418","Banaoang ES"]
["Pangasinan I, Lingayen","101419","Bued East ES"]
["Pangasinan I, Lingayen","101420","Bued ES"]
["Pangasinan I, Lingayen","101421","Cabilocaan ES"]
["Pangasinan I, Lingayen","101422","Calasiao Central School"]
["Pangasinan I, Lingayen","101423","Elpidio P. Roy-Gabon ES"]
["Pangasinan I, Lingayen","101424","Nalsian Bacayao ES"]
["Pangasinan I, Lingayen","101425","Quesban ES"]
["Pangasinan I, Lingayen","101426","San Miguel ES"]
["Pangasinan I, Lingayen","101427","San Vicente ES"]
["Pangasinan I, Lingayen","101428","Ambuetel Elementary School"]
["Pangasinan I, Lingayen","101429","Buenlag CS"]
["Pangasinan I, Lingayen","101430","Dinalaoan ES"]
["Pangasinan I, Lingayen","101431","Doyong Centro ES"]
["Pangasinan I, Lingayen","101432","Doyong Malabago ES"]
["Pangasinan I, Lingayen","101433","Idoldol ES"]
["Pangasinan I, Lingayen","101434","Longos Elementary School"]
["Pangasinan I, Lingayen","101435","Lumbang ES"]
["Pangasinan I, Lingayen","101436","Macabito Elementary School"]
["Pangasinan I, Lingayen","101437","Mancup ES"]
["Pangasinan I, Lingayen","101438","Nagsaing Elementary School"]
["Pangasinan I, Lingayen","101439","Songkoy ES"]
["Pangasinan I, Lingayen","101440","Talibaew ES"]
["Pangasinan I, Lingayen","101441","Amalbalan ES"]
["Pangasinan I, Lingayen","101442","Bobonot ES"]
["Pangasinan I, Lingayen","101443","Tomas N. Bonilla ES"]
["Pangasinan I, Lingayen","101445","Don Juan Bernal Sr. ES"]
["Pangasinan I, Lingayen","101446","Eguia ES"]
["Pangasinan I, Lingayen","101447","Gais Guipe ES"]
["Pangasinan I, Lingayen","101448","Macalang ES"]
["Pangasinan I, Lingayen","101449","Juan Bustamante ES"]
["Pangasinan I, Lingayen","101450","Malacapas ES"]
["Pangasinan I, Lingayen","101451","Malimpin ES"]
["Pangasinan I, Lingayen","101452","Mac Arthur Salanga Mem. ES"]
["Pangasinan I, Lingayen","101453","Petal ES"]
["Pangasinan I, Lingayen","101454","Tambac ES"]
["Pangasinan I, Lingayen","101455","Tambobong ES"]
["Pangasinan I, Lingayen","101456","Uli ES"]
["Pangasinan I, Lingayen","101457","Viga ES"]
["Pangasinan I, Lingayen","101458","Atel-Batang ES"]
["Pangasinan I, Lingayen","101459","Babuyan ES"]
["Pangasinan I, Lingayen","101460","Bamban Sur ES"]
["Pangasinan I, Lingayen","101461","Bayambang ES"]
["Pangasinan I, Lingayen","101462","Cato ES"]
["Pangasinan I, Lingayen","101463","Doliman ES"]
["Pangasinan I, Lingayen","101465","Maringindingin ES"]
["Pangasinan I, Lingayen","101466","Maya Elementary School"]
["Pangasinan I, Lingayen","101467","Nangalisan San Juan ES"]
["Pangasinan I, Lingayen","101468","Nayom ES"]
["Pangasinan I, Lingayen","101469","Patima ES"]
["Pangasinan I, Lingayen","101471","Potol ES"]
["Pangasinan I, Lingayen","101472","BOLO ELEMENTARY SCHOOL"]
["Pangasinan I, Lingayen","101473","BONGALON ELEMENTARY SCHOOL"]
["Pangasinan I, Lingayen","101474","Dulig ES"]
["Pangasinan I, Lingayen","101475","Kadampat ES"]
["Pangasinan I, Lingayen","101476","Labrador Central School"]
["Pangasinan I, Lingayen","101477","Laois ES"]
["Pangasinan I, Lingayen","101479","Tobuan ES"]
["Pangasinan I, Lingayen","101480","Uyong Elementary School"]
["Pangasinan I, Lingayen","101481","Dulag ES"]
["Pangasinan I, Lingayen","101482","Libsong ES"]
["Pangasinan I, Lingayen","101483","Lingayen I CS"]
["Pangasinan I, Lingayen","101484","Magsaysay ES"]
["Pangasinan I, Lingayen","101485","Matalava ES"]
["Pangasinan I, Lingayen","101486","Naguelguel Elementary School"]
["Pangasinan I, Lingayen","101487","Namolan ES"]
["Pangasinan I, Lingayen","101488","Quibaol ES"]
["Pangasinan I, Lingayen","101489","Tonton Elementary School"]
["Pangasinan I, Lingayen","101490","Tumbar ES"]
["Pangasinan I, Lingayen","101491","Baay ES"]
["Pangasinan I, Lingayen","101492","Balangobong Elementary School"]
["Pangasinan I, Lingayen","101493","Samson-Bengson Elementary School"]
["Pangasinan I, Lingayen","101494","Capandanan ES"]
["Pangasinan I, Lingayen","101496","Domalandan East ES"]
["Pangasinan I, Lingayen","101497","Estanza ES"]
["Pangasinan I, Lingayen","101498","Guesang ES"]
["Pangasinan I, Lingayen","101499","Malimpuec ES"]
["Pangasinan I, Lingayen","101500","Padilla CS ES"]
["Pangasinan I, Lingayen","101501","Sabangan ES"]
["Pangasinan I, Lingayen","101502","Aliwekwek ES"]
["Pangasinan I, Lingayen","101503","BALOCOC ELEMENTARY SCHOOL"]
["Pangasinan I, Lingayen","101504","Bantayan ES"]
["Pangasinan I, Lingayen","101505","Basing Elementary School"]
["Pangasinan I, Lingayen","101507","Lasip ES"]
["Pangasinan I, Lingayen","101509","Pangapisan Elementary School"]
["Pangasinan I, Lingayen","101510","Poblacion CS"]
["Pangasinan I, Lingayen","101511","Rosario ES"]
["Pangasinan I, Lingayen","101512","Wawa Elementary School"]
["Pangasinan I, Lingayen","101515","Caabiangan ES"]
["Pangasinan I, Lingayen","101516","Cabanaetan ES"]
["Pangasinan I, Lingayen","101517","Cabinuangan ES"]
["Pangasinan I, Lingayen","101518","Calzada ES"]
["Pangasinan I, Lingayen","101519","Caranglaan ES"]
["Pangasinan I, Lingayen","101520","Dalupang ES"]
["Pangasinan I, Lingayen","101521","De Guzman Elementary School"]
["Pangasinan I, Lingayen","101522","Luna ES"]
["Pangasinan I, Lingayen","101523","Mabini CS"]
["Pangasinan I, Lingayen","101524","Magalong ES"]
["Pangasinan I, Lingayen","101525","Patar Elementary School"]
["Pangasinan I, Lingayen","101526","San Pedro ES"]
["Pangasinan I, Lingayen","101527","Sta. Rita Elementary School"]
["Pangasinan I, Lingayen","101528","Surod Elementary School"]
["Pangasinan I, Lingayen","101529","Tagudin ES"]
["Pangasinan I, Lingayen","101530","Villacorta ES"]
["Pangasinan I, Lingayen","101531","Abonagan - Bobon Elementary School"]
["Pangasinan I, Lingayen","101532","Alacan-Guilig ES"]
["Pangasinan I, Lingayen","101533","Asin Este ES"]
["Pangasinan I, Lingayen","101534","Bacundao Elementary School"]
["Pangasinan I, Lingayen","101535","Balite ES"]
["Pangasinan I, Lingayen","101536","Barang ES"]
["Pangasinan I, Lingayen","101537","Bogtong ES"]
["Pangasinan I, Lingayen","101538","Bolaoit ES"]
["Pangasinan I, Lingayen","101539","Cabeldatan ES"]
["Pangasinan I, Lingayen","101540","Calbeg Elementary School"]
["Pangasinan I, Lingayen","101541","Genaro Armas ES"]
["Pangasinan I, Lingayen","101542","Lokeb Este ES"]
["Pangasinan I, Lingayen","101543","Lokeb Norte ES"]
["Pangasinan I, Lingayen","101544","Lokeb Sur ES"]
["Pangasinan I, Lingayen","101545","Lunec ES"]
["Pangasinan I, Lingayen","101546","Malasiqui I CS"]
["Pangasinan I, Lingayen","101547","Mangan Dampay ES"]
["Pangasinan I, Lingayen","101548","Pasima ES"]
["Pangasinan I, Lingayen","101549","Payar-Gomez ES"]
["Pangasinan I, Lingayen","101550","Polong ES"]
["Pangasinan I, Lingayen","101551","Tabo-Sili ES"]
["Pangasinan I, Lingayen","101552","Jorge C. De Vera ES"]
["Pangasinan I, Lingayen","101553","Tolonguat ES"]
["Pangasinan I, Lingayen","101554","Aliaga ES"]
["Pangasinan I, Lingayen","101555","Apaya ES"]
["Pangasinan I, Lingayen","101556","Bakitiw ES"]
["Pangasinan I, Lingayen","101557","Biba ES"]
["Pangasinan I, Lingayen","101558","Bongar ES"]
["Pangasinan I, Lingayen","101559","Cabatling ES"]
["Pangasinan I, Lingayen","101560","Canan ES"]
["Pangasinan I, Lingayen","101561","Don Pedro ES"]
["Pangasinan I, Lingayen","101562","Gatang ES"]
["Pangasinan I, Lingayen","101563","Goliman ES"]
["Pangasinan I, Lingayen","101564","Iba ES"]
["Pangasinan I, Lingayen","101565","J.C. Macaranas ES"]
["Pangasinan I, Lingayen","101566","Lepa ES"]
["Pangasinan I, Lingayen","101568","Malimpec ES"]
["Pangasinan I, Lingayen","101569","Mendoza Memorial ES"]
["Pangasinan I, Lingayen","101570","Nalsian-Tomling ES"]
["Pangasinan I, Lingayen","101571","Bernabe Q. Jimenez E/S"]
["Pangasinan I, Lingayen","101572","Olea Elementary School"]
["Pangasinan I, Lingayen","101573","Palapar ES"]
["Pangasinan I, Lingayen","101574","Pamaranum ES"]
["Pangasinan I, Lingayen","101575","San Julian CS"]
["Pangasinan I, Lingayen","101576","Talospatang ES"]
["Pangasinan I, Lingayen","101577","TOBOR ELEMENTARY SCHOOL"]
["Pangasinan I, Lingayen","101578","Bedania ES"]
["Pangasinan I, Lingayen","101579","Bueno ES"]
["Pangasinan I, Lingayen","101580","Bunlalacao ES"]
["Pangasinan I, Lingayen","101581","Cabayaoasan ES"]
["Pangasinan I, Lingayen","101582","Caturay Elementary School"]
["Pangasinan I, Lingayen","101583","Dorongan ES"]
["Pangasinan I, Lingayen","101584","Linmansangan ES"]
["Pangasinan I, Lingayen","101585","Mangatarem I CS"]
["Pangasinan I, Lingayen","101586","Nancasalan ES"]
["Pangasinan I, Lingayen","101587","Olo ES"]
["Pangasinan I, Lingayen","101588","Sawat ES"]
["Pangasinan I, Lingayen","101589","Silag ES"]
["Pangasinan I, Lingayen","101590","Torre ES"]
["Pangasinan I, Lingayen","101591","Valerio ES"]
["Pangasinan I, Lingayen","101592","Andangin-Baracbac ES"]
["Pangasinan I, Lingayen","101593","Bantay ES"]
["Pangasinan I, Lingayen","101594","Bantocaling ES"]
["Pangasinan I, Lingayen","101595","Bogtong ES"]
["Pangasinan I, Lingayen","101596","Cabaluyan ES"]
["Pangasinan I, Lingayen","101597","Cabarabuan ES"]
["Pangasinan I, Lingayen","101598","Cabaruan ES"]
["Pangasinan I, Lingayen","101599","Cacaoiten ES"]
["Pangasinan I, Lingayen","101600","Calomboyan Sur ES"]
["Pangasinan I, Lingayen","101601","Casilagan ES"]
["Pangasinan I, Lingayen","101602","Lawak-Langka ES"]
["Pangasinan I, Lingayen","101603","Macarang ES"]
["Pangasinan I, Lingayen","101604","Malabobo ES"]
["Pangasinan I, Lingayen","101605","Mangatarem II CS"]
["Pangasinan I, Lingayen","101606","Muelang ES"]
["Pangasinan I, Lingayen","101607","Naguilayan ES"]
["Pangasinan I, Lingayen","101608","Pampano ES"]
["Pangasinan I, Lingayen","101609","Parian ES"]
["Pangasinan I, Lingayen","101610","Ponglo ES"]
["Pangasinan I, Lingayen","101611","Quetegan ES"]
["Pangasinan I, Lingayen","101612","Sapang ES"]
["Pangasinan I, Lingayen","101613","Tagac ES"]
["Pangasinan I, Lingayen","101614","Takipan Elementary School"]
["Pangasinan I, Lingayen","101615","Umangan ES"]
["Pangasinan I, Lingayen","101616","Amanoaoac ES"]
["Pangasinan I, Lingayen","101617","Baloling ES"]
["Pangasinan I, Lingayen","101618","Golden ES"]
["Pangasinan I, Lingayen","101619","Jimenez Elementary School"]
["Pangasinan I, Lingayen","101620","Lambayan ES"]
["Pangasinan I, Lingayen","101621","Luyan ES"]
["Pangasinan I, Lingayen","101622","Mapandan Central School SPED Center"]
["Pangasinan I, Lingayen","101623","Nilombot ES"]
["Pangasinan I, Lingayen","101624","Pias ES"]
["Pangasinan I, Lingayen","101625","Primicias Elementary School"]
["Pangasinan I, Lingayen","101626","Sta. Maria ES"]
["Pangasinan I, Lingayen","101627","Torres ES"]
["Pangasinan I, Lingayen","101628","Alibago ES"]
["Pangasinan I, Lingayen","101629","Balingueo Elementary School"]
["Pangasinan I, Lingayen","101630","Dalongue ES"]
["Pangasinan I, Lingayen","101631","East Central School"]
["Pangasinan I, Lingayen","101632","Gueguesangen ES"]
["Pangasinan I, Lingayen","101633","Malanay Elementary School"]
["Pangasinan I, Lingayen","101634","Maronong ES"]
["Pangasinan I, Lingayen","101635","Patayak ES"]
["Pangasinan I, Lingayen","101636","SONQUIL ES"]
["Pangasinan I, Lingayen","101637","STA. BARBARA CENTRAL SCHOOL"]
["Pangasinan I, Lingayen","101638","Tuliao ES"]
["Pangasinan I, Lingayen","101639","Banaoang Central School"]
["Pangasinan I, Lingayen","101640","Banzal ES"]
["Pangasinan I, Lingayen","101641","Botao-Tebag ES"]
["Pangasinan I, Lingayen","101642","Cablong ES"]
["Pangasinan I, Lingayen","101643","Carosucan ES"]
["Pangasinan I, Lingayen","101644","Daroy ES"]
["Pangasinan I, Lingayen","101645","Leet Elementary School"]
["Pangasinan I, Lingayen","101646","Maningding-Ventinilla ES"]
["Pangasinan I, Lingayen","101647","Maticmatic ES"]
["Pangasinan I, Lingayen","101648","Maticmatic ES II"]
["Pangasinan I, Lingayen","101649","Minien-Tebag ES"]
["Pangasinan I, Lingayen","101650","Nilombot ES"]
["Pangasinan I, Lingayen","101651","Payas ES"]
["Pangasinan I, Lingayen","101652","Primicias ES"]
["Pangasinan I, Lingayen","101653","Tebag Elementary School"]
["Pangasinan I, Lingayen","101654","Baquioen ES"]
["Pangasinan I, Lingayen","101655","Ballog ES"]
["Pangasinan I, Lingayen","101656","Batidape Comm.Sch."]
["Pangasinan I, Lingayen","101657","Baybay Elementary School"]
["Pangasinan I, Lingayen","101658","Bolaoen ES"]
["Pangasinan I, Lingayen","101659","Caarosipan ES"]
["Pangasinan I, Lingayen","101660","Cabalitian ES"]
["Pangasinan I, Lingayen","101661","CACAO  ES"]
["Pangasinan I, Lingayen","101662","Calombuyan Elementary. Sch."]
["Pangasinan I, Lingayen","101663","Raymunda Verzosa ES"]
["Pangasinan I, Lingayen","101664","Macaycayawan ES"]
["Pangasinan I, Lingayen","101665","Napo-Logolog ES"]
["Pangasinan I, Lingayen","101668","Seselangen ES"]
["Pangasinan I, Lingayen","101669","Sioasio ES"]
["Pangasinan I, Lingayen","101670","Sto. Domingo ES"]
["Pangasinan I, Lingayen","101671","Sual CS"]
["Pangasinan I, Lingayen","101672","Angatel ES"]
["Pangasinan I, Lingayen","101673","Balangay ES"]
["Pangasinan I, Lingayen","101674","Batancaoa North ES"]
["Pangasinan I, Lingayen","101675","Batancaoa South Elementary School"]
["Pangasinan I, Lingayen","101676","Baug Elementary School"]
["Pangasinan I, Lingayen","101678","Camanbugan ES"]
["Pangasinan I, Lingayen","101679","Col. T. Custodio ES"]
["Pangasinan I, Lingayen","101681","Don Martin Palisoc ES"]
["Pangasinan I, Lingayen","101682","Duplac ES"]
["Pangasinan I, Lingayen","101683","Galarin ES"]
["Pangasinan I, Lingayen","101684","Gueteb ES"]
["Pangasinan I, Lingayen","101685","Malayo - Buenlag ES"]
["Pangasinan I, Lingayen","101686","Malibong Elementary School"]
["Pangasinan I, Lingayen","101687","Pasibi Bituag E/S"]
["Pangasinan I, Lingayen","101688","Pasibe West Elementary School"]
["Pangasinan I, Lingayen","101689","Don Pio B. Palisoc ES"]
["Pangasinan I, Lingayen","101690","Real Elementary School"]
["Pangasinan I, Lingayen","101691","Salavante Elementary"]
["Pangasinan I, Lingayen","101692","Sawat ES"]
["Pangasinan I, Lingayen","151501","Palma ES"]
["Pangasinan I, Lingayen","151502","Aplaya Elementary School"]
["Pangasinan I, Lingayen","151503","Buenlag ES"]
["Pangasinan I, Lingayen","151504","Cabaluyan 1st ES"]
["Pangasinan I, Lingayen","151506","Suaco Elementary School"]
["Pangasinan I, Lingayen","151507","Pacalat ES"]
["Pangasinan I, Lingayen","151508","Talogtog ES"]
["Pangasinan I, Lingayen","151509","Tococ-Bariker E/S"]
["Pangasinan I, Lingayen","151510","Manambong Sur ES"]
["Pangasinan I, Lingayen","151511","Bamban Norte ES"]
["Pangasinan I, Lingayen","151512","Malabago ES"]
["Pangasinan I, Lingayen","151513","Modesto V. Ferrer ES"]
["Pangasinan I, Lingayen","151514","Cabayugan Primary School"]
["Pangasinan I, Lingayen","151515","Pacuan ES"]
["Pangasinan I, Lingayen","151516","Dorongan Silag ES"]
["Pangasinan I, Lingayen","151517","Caviernesan ES"]
["Pangasinan I, Lingayen","151518","Bacundao East ES"]
["Pangasinan I, Lingayen","151519","Potiocan Elementary  School"]
["Pangasinan I, Lingayen","151520","Ican Elementary School"]
["Pangasinan I, Lingayen","151521","Palapar Norte ES"]
["Pangasinan I, Lingayen","151522","Palong ES"]
["Pangasinan I, Lingayen","151523","Binalay ES"]
["Pangasinan I, Lingayen","151524","Alejandro V. Frias Elementary School"]
["Pangasinan I, Lingayen","400128","Aguilar Catholic School Inc."]
["Pangasinan I, Lingayen","400139","Asbury College, Inc."]
["Pangasinan I, Lingayen","400140","St. Nicholas Catholic School of Anda"]
["Pangasinan I, Lingayen","400142","Mary Help of Christians Catholic School"]
["Pangasinan I, Lingayen","400143","Marianne College of Science and Technology"]
["Pangasinan I, Lingayen","400144","Mother Goose Special School System, Inc."]
["Pangasinan I, Lingayen","400145","ST. VINCENT'S CATHOLIC SCHOOL OF BAYAMBANG, INC."]
["Pangasinan I, Lingayen","400146","Binmaley Catholic School, Inc."]
["Pangasinan I, Lingayen","400151","Señor Santiago Learning Center"]
["Pangasinan I, Lingayen","400152","Jessan's School, Inc."]
["Pangasinan I, Lingayen","400153","St. Andrew Catholic School"]
["Pangasinan I, Lingayen","400154","Calasiao Educational Center"]
["Pangasinan I, Lingayen","400155","Precious Minds Montessori and High School"]
["Pangasinan I, Lingayen","400156","Dasol Catholic School,Inc"]
["Pangasinan I, Lingayen","400159","St. Columban's School Inc."]
["Pangasinan I, Lingayen","400160","The Adelphi College"]
["Pangasinan I, Lingayen","400161","Carvlex Academy"]
["Pangasinan I, Lingayen","400162","Grace Baptist Learning Center of GFBC, Inc"]
["Pangasinan I, Lingayen","400163","Harvent School Foundation, Inc."]
["Pangasinan I, Lingayen","400164","Jesus Good Shepherd Development Center"]
["Pangasinan I, Lingayen","400165","JN Montessori and High School, Inc."]
["Pangasinan I, Lingayen","400166","Lingayen Educational Center"]
["Pangasinan I, Lingayen","400168","Saint Columban's College"]
["Pangasinan I, Lingayen","400169","St. Columban's Institute"]
["Pangasinan I, Lingayen","400171","First Asian Learning Center of Northern Luzon"]
["Pangasinan I, Lingayen","400172","Malasiqui Adventist School, Inc."]
["Pangasinan I, Lingayen","400173","Malasiqui Agno Valley College, Inc."]
["Pangasinan I, Lingayen","400174","Malasiqui Catholic School"]
["Pangasinan I, Lingayen","400175","Perpetual Help College of Pangasinan"]
["Pangasinan I, Lingayen","400176","Mangatarem Catholic School"]
["Pangasinan I, Lingayen","400177","Mystical Rose College of Science and Technology"]
["Pangasinan I, Lingayen","400178","REMLIFE DREAM SCHOOL"]
["Pangasinan I, Lingayen","407696","Gleamers Academy"]
["Pangasinan I, Lingayen","411528","BFF (Bancolita-Frias Family) Learning Academy"]
["Pangasinan I, Lingayen","411574","Asiana Learning Institute, Inc."]
["Pangasinan I, Lingayen","500374","Ambayat Integrated School"]
["Pangasinan II, Binalonan","101694","Alcala CS"]
["Pangasinan II, Binalonan","101729","Balungao CS"]
["Pangasinan II, Binalonan","101763","Calixto A. Bautista ES"]
["Pangasinan II, Binalonan","101765","San Felipe ES"]
["Pangasinan II, Binalonan","101793","Baritao ES"]
["Pangasinan II, Binalonan","101832","Batchelor Elementary School"]
["Pangasinan II, Binalonan","101863","BALACAG  ELEMENTARY SCHOOL"]
["Pangasinan II, Binalonan","101888","Bakit-Bakit ES"]
["Pangasinan II, Binalonan","101897","Salvacion Elementary School"]
["Pangasinan II, Binalonan","101933","Casibong ES"]
["Pangasinan II, Binalonan","101959","San Antonio ES"]
["Pangasinan II, Binalonan","101990","Malilion Elementary School"]
["Pangasinan II, Binalonan","101995","San Antonio West ES"]
["Pangasinan II, Binalonan","102033","Labayug ES"]
["Pangasinan II, Binalonan","102062","Barangobong ES"]
["Pangasinan II, Binalonan","102095","Baracbac Elementary School"]
["Pangasinan II, Binalonan","102104","Don Alberto Vergara ES"]
["Pangasinan II, Binalonan","102148","Unzad ES"]
["Pangasinan II, Binalonan","400197","St. John Institute"]
["Pangasinan II, Binalonan","400209","Bethel Christian Learning Center of Mangaldan Baptist Church, Inc"]
["Pangasinan II, Binalonan","412005","Bible Methodist Christian Academy, Inc."]
["Pangasinan II, Binalonan","412028","King's Kid Christian School, Inc."]
["Pangasinan II, Binalonan","412075","Witan Innovative School of Excellence"]
["San Carlos City","102215","Bolingit Elementary School"]
["San Carlos City","102243","Gamata Elementary School"]
["San Carlos City","102253","Bacnar Elementary School"]
["San Carlos City","413505","PIMSAT Colleges, Inc."]
["San Fernando City","101039","Catbangen ES"]
["San Fernando City","400110","La Union Cultural Institute"]
["Urdaneta City","102276","Nancayasan ES"]
["Urdaneta City","102296","Don Felipe Maramba ES"]
["Vigan City","100788","Camangaan Elementary School"]
["Vigan City","100797","Salindeg ES (Salindeg-Pong-ol, Barraca ES)"]
["Batanes","102315","Valugan Elementary School"]
["Cagayan","102479","Alba ES"]
["Cagayan","102332","Alinunu ES"]
["Cagayan","102508","Asinga-Via ES"]
["Cagayan","400352","Balleteros Adventist Multigrade School"]
["Cagayan","155017","Bauan E/S"]
["Cagayan","102460","Bulala Sur Elementary School"]
["Cagayan","102687","C. dela Cruz ES"]
["Cagayan","415017","Cagayan Little Angels Preschool (CLAP)"]
["Cagayan","102337","Canayun ES"]
["Cagayan","155025","Caranan-Babbay Elementary School"]
["Cagayan","102487","CATUGAY ELEM. SCHOOL"]
["Cagayan","155044","Dalaoig ES - Catarauan Annex"]
["Cagayan","102834","Dungan Elementary School"]
["Cagayan","102695","Gonzaga North Central School"]
["Cagayan","102519","Hot Spring ES"]
["Cagayan","102919","Lablabig ES"]
["Cagayan","102747","Logac ES"]
["Cagayan","102613","Magdalena ES"]
["Cagayan","102903","Marede ES"]
["Cagayan","102395","Matucay Elementary School"]
["Cagayan","102658","NABACCAYANCES"]
["Cagayan","102545","Nararagan Elementary School"]
["Cagayan","102397","PACAC E/S"]
["Cagayan","102968","Pata ES"]
["Cagayan","102449","Punta Elementary School"]
["Cagayan","102845","San Juan ES"]
["Cagayan","155030","San Mariano ES"]
["Cagayan","400350","St. Joseph's College of Baggao, Inc."]
["Cagayan","102754","Sta. Maria CS"]
["Cagayan","102955","Tamucco ES"]
["Cagayan","415054","Tolentino Academy of Lal-lo Inc."]
["Cagayan","415066","UNITED METHODIST MISSION SCHOOL"]
["Cauayan City","103184","Casalatan ES"]
["Cauayan City","103194","Mabantad North ES"]
["Cauayan City","251001","Maligaya Elementary School-Annex"]
["Cauayan City","103226","Tagaran ES"]
["City of Ilagan","103390","Cabeceria 24 ES"]
["City of Ilagan","103426","Malasin ES"]
["City of Ilagan","103394","San Manuel Cabeceria 4 ES"]
["City of Ilagan","103378","Sipay Elementary School"]
["Isabela","103595","Ambatali Elementary School"]
["Isabela","103889","Antagan 2nd Elementary School"]
["Isabela","103283","Aromin Elementary School"]
["Isabela","103843","Bangad Elementary School"]
["Isabela","500077","Bimonton Integrated School"]
["Isabela","415513","Cabagan Baptist School"]
["Isabela","103565","Callangigan Elementary School"]
["Isabela","103340","Camp Melchor F.D.C. Elementary School"]
["Isabela","103856","Colunguan Elementary School"]
["Isabela","103058","Dalakip Elementary School"]
["Isabela","103620","Dangan Elementary School"]
["Isabela","103548","Dimasalansan Elementary School"]
["Isabela","103083","Divisoria Elementary School"]
["Isabela","103600","Gen. Aguinaldo ES - Villa Verde PS Annex"]
["Isabela","415518","Isabela King of Glory Care School"]
["Isabela","103471","Lacab Primary School"]
["Isabela","103898","Liwanag Elementary School"]
["Isabela","103293","Madadamian Elementary School"]
["Isabela","103336","Malitao Elementary School"]
["Isabela","103516","Manaring Elementary School"]
["Isabela","103847","Mozzozzin Elementary School"]
["Isabela","103296","Narra Elementary School"]
["Isabela","103348","Pintor Elementary School"]
["Isabela","103475","Pungpongan Primary School"]
["Isabela","103316","Rumang-ay Elementary School"]
["Isabela","103644","San Antonio Elementary School"]
["Isabela","103000","San Fernando Elementary School"]
["Isabela","103502","San Jose Norte Elementary School"]
["Isabela","103646","San Rafael Elementary School"]
["Isabela","103626","Santiago Elementary School"]
["Isabela","103791","Sinamar Sur Dumag Elementary School"]
["Isabela","415516","St. Thomas Montessori De San Mariano"]
["Isabela","103456","Sto. Domingo ES - Annex (LSB)"]
["Isabela","155511","Udiao Elementary School"]
["Isabela","103508","Victoria Elementary School"]
["Isabela","500502","Villa Miranda Integrated School"]
["Nueva Vizcaya","103912","Calitlitan ES"]
["Nueva Vizcaya","103944","Singian ES"]
["Nueva Vizcaya","103971","Bambang East ES"]
["Nueva Vizcaya","103980","Ambaguio CS"]
["Nueva Vizcaya","104004","Bonfal Pilot CS"]
["Nueva Vizcaya","104041","Casecnan PS"]
["Nueva Vizcaya","104050","Munguia Elementary School"]
["Nueva Vizcaya","104095","Muta ES"]
["Nueva Vizcaya","104109","Acacia PS"]
["Nueva Vizcaya","104145","Tuppan PS"]
["Nueva Vizcaya","104163","Tutong Elementary School"]
["Nueva Vizcaya","104181","San Juan ES"]
["Nueva Vizcaya","104207","Pelaway ES"]
["Nueva Vizcaya","156006","Dr. Candido V. Rosario Sr. Elementary School"]
["Nueva Vizcaya","400493","Aurora Christian School Foundation, Inc."]
["Nueva Vizcaya","400526","Lactawan Learning Center"]
["Quirino","104233","Osmena ES"]
["Quirino","104252","Ambuklao ES"]
["Quirino","104300","Diffun West CS"]
["Quirino","104310","Pallutan ES"]
["Quirino","104360","Mainget PS"]
["Quirino","156502","VILLA FLOR E/S"]
["Quirino","156513","Diodol PS Annex"]
["Quirino","500108","Dumabel IS"]
["Santiago City","103821","San Andres ES"]
["Santiago City","400470","Northeastern College"]
["Santiago City","415533","Children First School, Inc."]
["Tuguegarao City","104403","Pallua ES"]
["Tuguegarao City","417011","Power of 3 Montessori"]
["Angeles City","107053","Cuayan Elementary School"]
["Angeles City","401316","Hillcrest Baptist Academy"]
["Angeles City","421012","L.Y.N. School For Young, Inc. (formerly FBR School for Young Minds)"]
["Angeles City","107046","Sitio Pader ES"]
["Aurora","104409","Baler CS"]
["Aurora","104515","Dibut ES"]
["Aurora","104516","Dikapinisan ES"]
["Aurora","104427","Francisco Benitez ES"]
["Aurora","104428","Martin Esteves ES"]
["Aurora","104526","Real ES"]
["Aurora","408065","St. John Ecumenical Learning Center of Maria Aurora, Inc."]
["Balanga City","104560","G.L. David Memorial  Elementary School"]
["Bataan","104688","Alauli ES"]
["Bataan","104543","Binuangan ES"]
["Bataan","104678","Capunitan ES"]
["Bataan","104656","Facundo Angeles MES"]
["Bataan","104578","Kataasan ES"]
["Bataan","400624","Mountain View Village School"]
["Bataan","408145","Northridge Montessori School of Limay, Inc."]
["Bataan","104668","Paraiso ES"]
["Bataan","104670","Sibul ES"]
["Bataan","400647","Trinity United Methodist School of Bataan INC"]
["Bulacan","105049","Alagao Elementary School"]
["Bulacan","105142","Bagong Barrio ES (Balasing PS Annex)"]
["Bulacan","105095","Batasan ES"]
["Bulacan","105001","Bintog ES"]
["Bulacan","418508","Bulacan College of Computer Science Inc."]
["Bulacan","104802","Caniogan ES"]
["Bulacan","418649","Colegio De Santiago Apostol, Inc."]
["Bulacan","104821","Daungan ES"]
["Bulacan","104767","Duhat Elementary School"]
["Bulacan","400658","Escuelahan de San Juan Montessori, Inc."]
["Bulacan","400948","Gloria Marizz Academy of Bulacan"]
["Bulacan","158514","Heritage Homes ES"]
["Bulacan","418582","Holy Rosary School of Paombong"]
["Bulacan","104744","Josefa V. Ycasiano Memorial School"]
["Bulacan","104904","Lambakin ES"]
["Bulacan","408690","Lyceum Of Sta. Maria, Bulacan, Inc."]
["Bulacan","418627","Maria Immaculate Novice School, Inc."]
["Bulacan","418523","Mary Mount Academy"]
["Bulacan","400816","Mother Teresa Academy of Marilao, Bulacan Inc."]
["Bulacan","104965","Paco Elementary School"]
["Bulacan","105106","Paliwasan ES"]
["Bulacan","105160","Pila Elementary School"]
["Bulacan","400684","Rafaela Academy Inc."]
["Bulacan","104817","San Jose ES"]
["Bulacan","158502","San Vicente ES"]
["Bulacan","104911","Saog Elementary School"]
["Bulacan","418670","St. Catherine Divine Shema Learning"]
["Bulacan","400823","St. Michael School of Marilao"]
["Bulacan","400900","Sta. Monica Learning Center, Plaridel"]
["Bulacan","400938","Sto. Niño Academy of San Rafael, Inc."]
["Bulacan","104717","TEODOSO R. MANUEL ELEMENTARY SCHOOL"]
["Bulacan","105064","Upig Elementary School"]
["Cabanatuan City","107097","Cabu Elementary School"]
["Cabanatuan City","107101","Ciriaco Mariano ES"]
["Cabanatuan City","107083","Mayapyap Elementary School"]
["Cabanatuan City","421508","Starlight Christian Learning Center, Inc."]
["Cabanatuan City","421525","Wesleyan 3rd Millenium Methodist Learning Center Inc"]
["Gapan City","401522","Gapan Educational Center for Children"]
["Mabalacat City","106074","Camachiles ES"]
["Mabalacat City","401155","Mary Help of Christians School Inc."]
["Mabalacat City","407801","St. Therese of the Child Jesus Learning Center of Pampanga, Inc"]
["Malolos City","104869","Dakila ES"]
["Malolos City","104897","Panasahan ES"]
["Malolos City","400776","International Montessori Center"]
["Malolos City","418506","ISIDORE DE SEVILLE INTEGRATED SCHOOL, INC."]
["Meycauayan City","104922","Lawa ES"]
["Meycauayan City","400852","St. Mary Montessori Academy"]
["Meycauayan City","418537","St. Michael Academy Sto Nino"]
["Munoz Science City","401022","Munoz United Methodist Church Learning Center"]
["Munoz Science City","500395","Gabaldon IS"]
["Nueva Ecija","105195","Ariendo ES"]
["Nueva Ecija","105224","San Fernando Norte ES"]
["Nueva Ecija","105233","Sta. Rita ES"]
["Nueva Ecija","105261","Burgos ES"]
["Nueva Ecija","105294","Sta. Clara ES"]
["Nueva Ecija","105351","E.L. Joson E/S"]
["Nueva Ecija","105382","Consuelo ES"]
["Nueva Ecija","105395","San Marcelino Elementary School"]
["Nueva Ecija","105423","Narvacan II ES"]
["Nueva Ecija","105450","San Pedro BLISS ES"]
["Nueva Ecija","105466","Nauzon ES"]
["Nueva Ecija","105491","Bosque ES"]
["Nueva Ecija","105515","Alalay Grande ES"]
["Nueva Ecija","105585","Pedro Valenzuela ES"]
["Nueva Ecija","105618","Sto. Tomas ES"]
["Nueva Ecija","105638","Bicos ES"]
["Nueva Ecija","105653","Rizal CS"]
["Nueva Ecija","105686","Pulo Elementary School"]
["Nueva Ecija","105739","Nieves ES"]
["Nueva Ecija","105781","Villa Juan ES"]
["Nueva Ecija","105798","Casulucan Este ES"]
["Nueva Ecija","105823","La Torre ES"]
["Nueva Ecija","105845","Sto. Domingo Elementary School"]
["Nueva Ecija","105866","Zaragoza CS"]
["Nueva Ecija","159029","Dupinga Elementary School"]
["Nueva Ecija","400998","Gethsemane Christian School Inc."]
["Nueva Ecija","401080","Rominas Heavenly Angels Montessori"]
["Nueva Ecija","401089","Liceo De Christ the King, Inc."]
["Nueva Ecija","419035","Essential Academy of Guimba N.E. Inc."]
["Nueva Ecija","419064","Bonifacio Luz Natividad Educational Foundation, Inc."]
["Olongapo City","107130","Tabacuhan ES"]
["Olongapo City","162003","Iram II ES"]
["Olongapo City","422008","FIRST School of SBFZ"]
["Pampanga","105884","Cupang Elementary School"]
["Pampanga","105912","Balas ES"]
["Pampanga","105919","Eliseo Belen ES"]
["Pampanga","105952","Vizal Sto. Niño ES"]
["Pampanga","105976","Sto. Rosario ES"]
["Pampanga","106011","Pulungmasle ES"]
["Pampanga","106036","Sta. Monica Elementary School"]
["Pampanga","106040","Wenceslao  ES"]
["Pampanga","106108","San Esteban ES"]
["Pampanga","106133","San Pedro II ES"]
["Pampanga","106158","Sapang Kawayan ES"]
["Pampanga","106176","San Patricio ES"]
["Pampanga","106201","Dawe ES"]
["Pampanga","106235","Siñura Elementary School"]
["Pampanga","106260","San Nicolas ES"]
["Pampanga","106272","Sasmuan CS"]
["Pampanga","159501","Bacolor ES - (Town Proper)"]
["Pampanga","159530","Sta. Cruz E/S (Annex)"]
["Pampanga","401103","St. James School, Inc."]
["Pampanga","401165","St. Nicholas Academy: CCEI"]
["Pampanga","401189","Saint Catherine's Academy:Center of Catholic Education Inc."]
["Pampanga","419532","Precious Gem Christian Academy"]
["Pampanga","419587","JC Glorious Kingdom Academy, Inc."]
["Pampanga","419651","NASAH Montessori Center of Learning, Inc."]
["San Fernando City","107195","San Fernando ES"]
["San Fernando City","407706","St. Jude Children School"]
["San Fernando City","423024","Nasah Montessori Center for Learning Inc."]
["San Fernando City","500143","Saguin IS"]
["San Jose City","105712","Tayabo Elementary School"]
["San Jose City","105724","Parang Mangga Elementary School"]
["San Jose del Monte City","107154","Francisco Homes ES"]
["San Jose del Monte City","107163","SAN RAFAEL (BBH) ELEMENTARY SCHOOL"]
["San Jose del Monte City","401418","Precious Brent School, Inc."]
["San Jose del Monte City","401477","Sta. Monica School of Bulacan"]
["San Jose del Monte City","408094","COLEGIO SAN AGUSTIN - BULACAN"]
["San Jose del Monte City","422528","Golden Children Academy, Inc."]
["San Jose del Monte City","422572","Holy Angel School of Sarmiento, Inc."]
["Tarlac","106321","Villa Concepcion ES"]
["Tarlac","106346","Malacampa ES - Main"]
["Tarlac","106357","Birbira ES"]
["Tarlac","106382","Bueno Elementary School"]
["Tarlac","106416","Talimundoc SM ES"]
["Tarlac","106423","Marimla ES"]
["Tarlac","106451","Gerona North CES"]
["Tarlac","106484","Santiago ES"]
["Tarlac","106512","Gossood PS"]
["Tarlac","106543","Baquero Norte ES"]
["Tarlac","106552","Sapang ES"]
["Tarlac","106572","Tablang ES"]
["Tarlac","106611","San Juan ES"]
["Tarlac","106620","Doclong 2nd Elementary School"]
["Tarlac","106664","San Vicente E/S"]
["Tarlac","106682","Sta. Ines CES"]
["Tarlac","160004","Dagundon ES"]
["Tarlac","160018","Manabayukan ES"]
["Tarlac","401230","Gerona Institute, Inc."]
["Tarlac","401267","Western Tarlac Adventist Multigrade School"]
["Tarlac","420003","SIBC Christian Academy, Inc."]
["Tarlac","420034","Concepcion Modern Child School, Inc."]
["Tarlac","420067","Berean Christian Academy of Capas, Inc."]
["Tarlac City","106704","San Jose ES"]
["Tarlac City","106726","Sto. Nino E/S"]
["Tarlac City","106761","Paradise ES"]
["Tarlac City","106770","Suizo Resettlement ES"]
["Tarlac City","489515","Montesun School Tarlac, Inc."]
["Zambales","101782","Alao Elementary School"]
["Zambales","106806","Mambog Elementary School"]
["Zambales","106839","Babancal Elementary School"]
["Zambales","106868","Villaflor Elementary School"]
["Zambales","106894","Panglit Elementary School"]
["Zambales","106907","Dampay Elementary School"]
["Zambales","106938","San Rafael Elementary School"]
["Zambales","106963","Doce-Martires Elementary School"]
["Zambales","106996","Pecson Mem. Elementary School"]
["Zambales","107009","Cawag Resettlement Elementary School"]
["Zambales","160517","New Taugtog Elementary School II"]
["Zambales","408539","Don Alejandro Paje Memorial School, Inc"]
["Zambales","420554","Dreamkids Learning Center, Inc."]
["Zambales","500511","Pamatawan Integrated School"]
["Zambales","500512","San Agustin Integrated School"]
["Antipolo City","109335","Cabading ES"]
["Antipolo City","494059","Four Shepherds Divine Academy, Inc."]
["Antipolo City","494060","Inheritance in Christ School"]
["Antipolo City","402905","Lady of the Rosary School"]
["Antipolo City","494117","New Life Evangelical Training School, Inc."]
["Antipolo City","494100","Pencils and Crayons Integrated School Inc."]
["Antipolo City","494147","Spring of the Spirit Excellent Grace Academe, Inc."]
["Antipolo City","409051","St. Jude of Antipolo Learning Academy, Inc."]
["Bacoor City","107871","Mabolo ES"]
["Bacoor City","401722","Bacoor Unida Evangelical School, Inc."]
["Bacoor City","401761","Green Valley Academy, Inc."]
["Bacoor City","401786","Love Christian Academy, Inc."]
["Bacoor City","401829","Saint Francis Institute, Learning and Business High School, Inc"]
["Bacoor City","409050","Clever Trek Learning Center"]
["Bacoor City","424312","Academy of Gentle Potter's Children Inc."]
["Bacoor City","424329","The First Ladder Preparatory School, Inc."]
["Bacoor City","424829","Bright Minds Academy of Bacoor Inc."]
["Batangas","401661","Almond Academy Foundation, Inc."]
["Batangas","107426","Apar Elementary School"]
["Batangas","107737","Balas Elementary School"]
["Batangas","401647","Batangas Eastern Colleges"]
["Batangas","401662","Blue Isle Integrated School"]
["Batangas","401578","Calaca Christian Institute of Batangas"]
["Batangas","107318","Calambuyan Elementary School"]
["Batangas","423620","Children of Heaven Learning Center"]
["Batangas","107824","Dao Elementary School"]
["Batangas","163513","Emilia L. Malabanan Elementary School"]
["Batangas","107835","Eulogio G. Cerrado Elementary School"]
["Batangas","408114","Holy Queen Learning Academy Inc."]
["Batangas","423545","Jesus for the World Christian Academy Branch, Inc."]
["Batangas","107239","Lanatan-Muntingtubig Elementary School"]
["Batangas","107409","Lemery Pilot Elementary School"]
["Batangas","107555","Mabato Elementary School"]
["Batangas","107558","Malaya Elementary School"]
["Batangas","107510","Maugat Elementary School"]
["Batangas","401665","Mo. Barbara Micarelli School"]
["Batangas","408116","Nicolites Montessori School-Calatagan, Inc."]
["Batangas","107619","Paaralang Elementarya ng Marcal"]
["Batangas","107516","Papaya Elementary School"]
["Batangas","107812","Papaya Elementary School"]
["Batangas","426034","Precious Gem Learning Center, Cuenca, Inc."]
["Batangas","107363","San Agustin Elementary School"]
["Batangas","107577","San Isidro Elementary School"]
["Batangas","107684","San Mariano Elementary School"]
["Batangas","423571","San Rafael Children Center"]
["Batangas","107464","Solo Elementary School"]
["Batangas","401675","St. Martin Montessori (Taal, Batangas) Inc."]
["Batangas","107281","Sta. Maria Elementary School"]
["Batangas","107656","Talon Elementary School"]
["Batangas","423546","Universal Scholastic Academe"]
["Batangas City","426015","Batangas God's Grace Christian Academy"]
["Batangas City","403155","CHRIST THE LORD INSTITUTE FOUNDATION, INC."]
["Batangas City","403165","Kipsi Elementary School"]
["Batangas City","403168","Regis Benedictine Academy"]
["Batangas City","109580","Tibig ES"]
["Batangas City","109562","Tulo I ES"]
["Binan City","108220","Ganado ES"]
["Binan City","108222","Loma Elementary School"]
["Binan City","408196","Southeast Asian Mission Elementary School Inc."]
["Binan City","424513","Sta. Selina School Foundation"]
["Calamba City","109830","Crossing ES"]
["Calamba City","109864","Barandal ES"]
["Calamba City","403354","North Marie Montessori Academy, Inc."]
["Calamba City","403356","Hillcrest Periwinkle School"]
["Calamba City","428529","Wellspring Academy of Canlubang, Inc."]
["Calamba City","428564","Xavier School Nuvali"]
["Cavite","107857","Amadeo ES"]
["Cavite","107866","Tamakan ES"]
["Cavite","107939","Family Village Resources ES"]
["Cavite","108001","Tambo ES"]
["Cavite","108026","Wakas ES"]
["Cavite","108053","Asis ES"]
["Cavite","108070","Halang Elementary School"]
["Cavite","108095","Bagong Buhay ES"]
["Cavite","108119","Guitasin PS"]
["Cavite","108140","Bulalo ES"]
["Cavite","108166","Punta ES"]
["Cavite","108186","Palawit ES"]
["Cavite","402086","Mother Theresa School (Gen. Trias, Cavite)"]
["Cavite","402097","The True Vine Dynamic School"]
["Cavite","402273","Child of Zion Academy, Inc."]
["Cavite","402310","Bethany Christian Academy of Tagaytay"]
["Cavite","402363","Notre Dame of Trece Martires"]
["Cavite","402384","Karunungan Village Academy"]
["Cavite","408568","Bernice Learning Center Cavite, Inc."]
["Cavite","424121","Academia de San Vicente Ferrer"]
["Cavite","424193","Villaggio Ignatius School"]
["Cavite","424206","Beatitudes Technological & Theological College - Trece Martires City, Cavite Inc."]
["Cavite","424301","La Madelle Academy, Inc."]
["Cavite","424361","Whin-Yard Institute of Business Education, Inc."]
["Cavite","424387","SLKS Kiddie School Inc."]
["Cavite","424816","L'Nissi Welfare and Learning Development Center Inc."]
["Cavite","424853","Cuddlers Christian Academy Inc."]
["Cavite City","403179","Bulilit Prep School"]
["Dasmarinas City","107906","New Era ES (Bucal II ES)"]
["Dasmarinas City","107915","Bautista Elementary School"]
["Dasmarinas City","401910","Christianhood Learning Center, Inc"]
["Dasmarinas City","401985","Gift of Wisdom Christian Institute Inc."]
["Dasmarinas City","402048","Solid Rock Learning School"]
["Dasmarinas City","424088","Timothy Disciple Mission Christian Academy, Inc."]
["Dasmarinas City","424211","Academia De San Raphael Inc"]
["Dasmarinas City","424447","Accademia di Maria Mediatrici"]
["Imus City","107978","Pasong Santol Elementary School"]
["Imus City","164010","Pasong Buaya III ES"]
["Imus City","402145","Jesus Good Shepherd School"]
["Imus City","402193","S.V. Montessori"]
["Imus City","424290","St. Mark Academy of Primarosa, Inc."]
["Imus City","424794","Shammah Christian School Inc."]
["Laguna","108190","Del Carmen ES"]
["Laguna","108212","Tranca ES"]
["Laguna","108259","Lamot ES - Annex"]
["Laguna","108276","Inao-Awan ES"]
["Laguna","108294","Calumpang ES"]
["Laguna","108327","Longos Elementary School"]
["Laguna","108360","Lazaan-Malinao ES"]
["Laguna","108375","Paete CS"]
["Laguna","108395","Dambo ES"]
["Laguna","108429","Sampaguita Village ES"]
["Laguna","108440","Gatid ES"]
["Laguna","108464","PARANG NG BUHO ELEM. SCHOOL"]
["Laguna","164505","Tubog ES"]
["Laguna","402470","Glorious Dawn Village School"]
["Laguna","402502","Shepherds Flock School of Cabuyao"]
["Laguna","402537","Munting Bata Learning Center"]
["Laguna","402559","Nagcarlan Adventist Elementary School"]
["Laguna","402594","Creative School of San Pedro"]
["Laguna","402644","Vian Rechel Academy, Inc."]
["Laguna","408151","MEANINGFUL MINDS CENTER FOR LEARNING, INC."]
["Laguna","408166","FRANCISCUS ACADEMY INC."]
["Laguna","409062","Knights and Angels Montessori School"]
["Laguna","424547","La Executivo Christian Baptist, Inst."]
["Laguna","424594","Laguna Northwestern College"]
["Laguna","424607","Merit Winners Academy"]
["Laguna","424642","Saint Francis of Assisi School of Cabuyao"]
["Lipa City","109641","Jose K. Obando MES (Antipolo ES)"]
["Lipa City","109651","San Francisco ES"]
["Lipa City","109696","Pinagtongulan ES"]
["Lipa City","403207","Early Start Learning Center"]
["Lipa City","427011","Child's Learning Experiences & Academic Program Center"]
["Lipa City","427043","Saint Gerard Fidelis School, Inc."]
["Lucena City","109728","Barra ES"]
["Lucena City","109735","Mayao Parada Elementary School"]
["Lucena City","403259","Sacred Heart College"]
["Lucena City","427532","MSEUF - Rosarian Centre for Creative Education"]
["Quezon","108513","Buhangin ES"]
["Quezon","108546","Masaya PS"]
["Quezon","108562","Cabugao ES"]
["Quezon","108605","Pangahoy ES"]
["Quezon","108614","Tiniguiban ES"]
["Quezon","108652","Don Abadilla ES"]
["Quezon","108674","Bulakin ES"]
["Quezon","108683","Pinagdanlayan ES"]
["Quezon","108717","Mararaot ES"]
["Quezon","108743","San Isidro ES"]
["Quezon","108770","Mabunga ES"]
["Quezon","108784","Cacawayan ES"]
["Quezon","108817","San Andres Elementary School"]
["Quezon","108843","Hondagua ES"]
["Quezon","108878","Macalelon CES Annex"]
["Quezon","108904","Cagbalete I Annex ES"]
["Quezon","108913","Polo ES"]
["Quezon","108944","Agdangan Central Elementary School"]
["Quezon","108974","Parang - Pinagbayanan ES"]
["Quezon","109007","Pitogo CS I"]
["Quezon","109034","Libo ES"]
["Quezon","109042","Panukulan CS"]
["Quezon","109075","Tagumpay ES"]
["Quezon","109100","Yugno ES"]
["Quezon","109108","Matipunso Elementary School"]
["Quezon","109143","Guinhalinan ES"]
["Quezon","109169","Sariaya East Central Main ES"]
["Quezon","109198","Bukal ES"]
["Quezon","109212","Manato ES"]
["Quezon","109269","Bulakin Elementary School"]
["Quezon","109294","Bienvenido S. Lat ES"]
["Quezon","402730","Manuel L. Quezon Elementary School Inc."]
["Quezon","402743","Saint Ignatius Parochial School, Inc."]
["Quezon","402834","Kiddie Corner School"]
["Quezon","409152","Gumaca Institute of Learning Inc."]
["Quezon","425055","St. Vincent Learning Center of Sariaya, Inc."]
["Quezon","425074","Brisbane Integrated School of Candelaria, Inc."]
["Rizal","109311","Doña Nieves Songco MS"]
["Rizal","109383","Kinagatan ES"]
["Rizal","109393","Balanti Elementary School"]
["Rizal","109419","Patunhay-Calahan ES"]
["Rizal","109456","Pililla ES Central"]
["Rizal","109489","Justice Vicente Santiago ES"]
["Rizal","109518","Rawang ES"]
["Rizal","136916","Yapak ES"]
["Rizal","165509","Kasiglahan Village ES Unit I"]
["Rizal","402980","Elim Christian School of Binangonan, Inc."]
["Rizal","403024","Light Bearer Christian Academy,Inc."]
["Rizal","403035","Peniel Integrated Christian Academy"]
["Rizal","403077","Renaissance School of Science and Technology"]
["Rizal","403112","Gratia Divina School"]
["Rizal","407852","JOHN MICHAEL LEARNING CENTER"]
["Rizal","407857","MARANATHA CHRISTIAN ACADEMY OF ANGONO, RIZAL INC."]
["Rizal","408922","John Moses Learning Center Inc."]
["Rizal","425513","Tierra Monte Integrated School"]
["Rizal","425558","Funland Learning Center,Inc."]
["Rizal","425570","Lamb of Christ Magistrate School,Inc."]
["Rizal","425604","Shinil Christian Academy"]
["Rizal","425642","Highland Park Christian School, Inc."]
["Rizal","425690","FIAT Center for Global Learners"]
["Rizal","425719","FASC Creative Learning School"]
["Rizal","425750","Lovely Angels Kiddie School"]
["Rizal","425768","St. Edith Academy Inc."]
["Rizal","425795","Mobic Christian Academy Inc."]
["Rizal","425821","College of Arts and Sciences of Asia and the Pacific Rodriguez Rizal Inc."]
["San Pablo City","109757","Sta. Maria Elementary School"]
["San Pablo City","109791","SAN PABLO CENTRAL SCHOOL"]
["San Pablo City","109810","San Pedro Elementary School"]
["San Pablo City","428008","J.A.J. Christian School, Inc."]
["San Pablo City","428022","Lakers Nook Learning Center Corp."]
["Sta. Rosa City","400486","Our Lady in Pink and Blue School Inc."]
["Sta. Rosa City","402666","Emmanuel Christian School"]
["Sta. Rosa City","402678","Marie Margarette School Incorporated"]
["Sta. Rosa City","426802","Bright Achiever Academy Laguna Inc."]
["Tanauan City","107770","Pagaspas ES"]
["Tanauan City","401685","Escuela Sagrada Familia"]
["Tanauan City","494516","Our Lady of Assumption College Batangas Branch"]
["Tayabas City","109239","Mate ES"]
["Tayabas City","109257","Malao-A / Calantas ES"]
["Calapan City","111546","San Antonio Elementary School"]
["Calapan City","111560","Gutad ES"]
["Calapan City","111581","Tawagan ES"]
["Marinduque","109879","Puting Buhangin ES"]
["Marinduque","109914","Malbog ES"]
["Marinduque","109938","Argao ES"]
["Marinduque","109947","Lamesa ES"]
["Marinduque","109974","Tagum ES"]
["Marinduque","110006","Mongpong Elementary School"]
["Marinduque","110015","Bonliw ES"]
["Marinduque","169002","Sumangga ES"]
["Occidental Mindoro","110076","Alfonso Valerio ES"]
["Occidental Mindoro","110230","Balani Min. Sch."]
["Occidental Mindoro","110231","Burgos ES"]
["Occidental Mindoro","110282","Caminawit CS"]
["Occidental Mindoro","403412","Foursquare Christian School"]
["Occidental Mindoro","110157","Kabanabahan Minority School"]
["Occidental Mindoro","110133","Laste ES"]
["Occidental Mindoro","110238","Malisbong ES"]
["Occidental Mindoro","429513","PAMANA KA (Paaralang Mangyan na angkop sa Kulturang Aalagaan)"]
["Occidental Mindoro","110174","Pinagturilan ES"]
["Occidental Mindoro","110219","San Miguel ES"]
["Occidental Mindoro","169502","Sanog-lakol Minority School"]
["Occidental Mindoro","110208","Sto. Niño ES"]
["Occidental Mindoro","110315","Yawi-Yawi I  ES"]
["Oriental Mindoro","110350","Apnagan ES"]
["Oriental Mindoro","110411","Balatasan ES"]
["Oriental Mindoro","170009","Bayanan Primary School"]
["Oriental Mindoro","110511","Caburo Mangyan School"]
["Oriental Mindoro","110629","Catalino Dizon Mem. School"]
["Oriental Mindoro","110459","Don B. Del Mundo MS"]
["Oriental Mindoro","110376","Formon ES"]
["Oriental Mindoro","110516","Karumangit ES"]
["Oriental Mindoro","110675","Leuteboro ES"]
["Oriental Mindoro","110614","Lucena A. Datinginoo MS"]
["Oriental Mindoro","110470","Manaul ES"]
["Oriental Mindoro","110597","Matulatula ES"]
["Oriental Mindoro","110638","Paclasan ES"]
["Oriental Mindoro","110580","Pambisan Munti ES"]
["Oriental Mindoro","110344","Pulantubig ES"]
["Oriental Mindoro","110426","San Isidro ES"]
["Oriental Mindoro","110390","Selda-Lazaro Memorial ES"]
["Oriental Mindoro","110346","Sta Rosa II ES"]
["Oriental Mindoro","110456","Tinalunan ES"]
["Oriental Mindoro","170016","Zhejohn ES"]
["Palawan","110747","Villa Sol Elementary School"]
["Palawan","110772","Madoldolon Elementary School"]
["Palawan","110781","San Jose Elementary School"]
["Palawan","110812","Melville Elementary School"]
["Palawan","110840","Ocayan Elementary School"]
["Palawan","110849","Saray Elementary School"]
["Palawan","110877","Linao Elementary School"]
["Palawan","110909","Naltep Elementary School"]
["Palawan","110942","Halsey Elementary School"]
["Palawan","110963","Ugnisan Elementary School"]
["Palawan","110978","Bulalacao Elementary School"]
["Palawan","111012","Suba Elementary School"]
["Palawan","111028","Manlag Elementary School"]
["Palawan","111049","Magsaysay Central School"]
["Palawan","111085","Bagong Pag-asa Elementary School"]
["Palawan","111124","Sicud Elementary School"]
["Palawan","111147","Ibangan Elementary School"]
["Palawan","111172","Sandoval Elementary School"]
["Palawan","111189","Tranquilino L. Oblan Elementary School"]
["Palawan","111215","Busy Bees Elementary School"]
["Palawan","111240","Paly Elementary School"]
["Palawan","111253","Yakal Elementary School"]
["Palawan","170522","Alfredo Gregorio Memorial Elementary School"]
["Palawan","170556","Tina Elementary School"]
["Palawan","403489","Southern Palawan Methodist Academy, Inc."]
["Palawan","430502","Immaculate Conception Parochial School"]
["Palawan","430519","Estrella del Norte Adventist Elementary School"]
["Puerto Princesa City","111476","Busngol Elementary School"]
["Puerto Princesa City","111509","Binduyan Elementary School"]
["Puerto Princesa City","111512","Concepcion ES"]
["Puerto Princesa City","171503","Tagbarungis ES"]
["Puerto Princesa City","431533","Holy Infant Jesus Learning Center"]
["Romblon","111280","Cambajao ES"]
["Romblon","111305","Sampong ES"]
["Romblon","111313","Labnig ES"]
["Romblon","111340","Odiongan North CS (Batiano)"]
["Romblon","111373","Cajimos Elementary School"]
["Romblon","111402","Concepcion Sur ES"]
["Romblon","111408","Alfredo P. Navarette MS (Lubi ES)"]
["Romblon","111443","Teresa Bernas MS"]
["Romblon","171003","Cabibihan ES"]
["Albay","111679","Alobo Elementary School"]
["Albay","111584","Bacacay East Central School"]
["Albay","111659","Balinad Elementary School"]
["Albay","112066","Biyong Elementary School"]
["Albay","111707","Bubulusan Elementary School"]
["Albay","111929","Camagong Elementary School"]
["Albay","111873","Comun Elementary School"]
["Albay","111956","Flores Elementary School"]
["Albay","112030","Guinanayan Elementary School"]
["Albay","111669","Kidaco Elementary School"]
["Albay","112071","Libtong Elementary School"]
["Albay","111714","Manases Olaybal Mem. ES (Sinungtan)"]
["Albay","112037","Manila Elementary School"]
["Albay","111674","Matnog Elementary School"]
["Albay","111992","Napo Elementary School"]
["Albay","403625","Our Lady of Salvacion College"]
["Albay","112012","Salvacion Elementary School"]
["Albay","112078","San Bernardo Elementary School"]
["Albay","432517","Seva Child Learning Center, Inc."]
["Albay","403575","Sunshine International School"]
["Albay","111884","Tagoytoy Elementary School"]
["Albay","432505","Verjozer Kiddie School"]
["Camarines Norte","112102","Primo R. Samonte ES"]
["Camarines Norte","112127","TALENTO-ROLL ELEMENTARY SCHOOL"]
["Camarines Norte","112162","L. D. Bamba ES"]
["Camarines Norte","112171","Sta. Elena ES"]
["Camarines Norte","112196","Tulay Na Lupa ES"]
["Camarines Norte","112230","Lope Manlangit ES"]
["Camarines Norte","112259","Tawig ES"]
["Camarines Norte","112269","Resettlement ES"]
["Camarines Norte","112296","Talisay ES"]
["Camarines Norte","173013","Dancalan ES"]
["Camarines Norte","433006","Basud Advent Institute"]
["Camarines Norte","500634","Sta. Elena Integrated School"]
["Camarines Sur","112323","Caranday Elementary School"]
["Camarines Sur","112358","Santiago Elementary School"]
["Camarines Sur","112375","Masoli ES"]
["Camarines Sur","112398","Ibayugan ES"]
["Camarines Sur","112431","Fabrica ES"]
["Camarines Sur","112457","Biong ES"]
["Camarines Sur","112482","Manguiring ES"]
["Camarines Sur","112500","Marupit Elementary School"]
["Camarines Sur","112527","Bahay ES"]
["Camarines Sur","112548","Lubas ES"]
["Camarines Sur","112586","Sinuknipan Elementary School"]
["Camarines Sur","112595","Canlong ES"]
["Camarines Sur","112641","Himanag Elementary School"]
["Camarines Sur","112658","Gubat CS"]
["Camarines Sur","112691","Patag Elementary School"]
["Camarines Sur","112701","Bahao ES"]
["Camarines Sur","112726","Alanao ES"]
["Camarines Sur","112760","Carangcang Elem School"]
["Camarines Sur","112793","Baliuag Viejo ES"]
["Camarines Sur","112797","Hamoraon ES"]
["Camarines Sur","112831","Aro-aldao ES."]
["Camarines Sur","112858","New Moriones Elem School"]
["Camarines Sur","112890","Lagha ES"]
["Camarines Sur","112916","Tinalmud ES"]
["Camarines Sur","112923","Cabocladan Elementary School"]
["Camarines Sur","112959","Laguio ES"]
["Camarines Sur","112985","Nato ES"]
["Camarines Sur","113014","Bagacay Elementary School"]
["Camarines Sur","113029","Tagas ES"]
["Camarines Sur","113055","Bulan ES"]
["Camarines Sur","113088","Malaguico ES"]
["Camarines Sur","113114","Banga Elementary School"]
["Camarines Sur","113123","Olag Pequeño ES"]
["Camarines Sur","173503","San Pedro ES"]
["Camarines Sur","173539","Bahay ES"]
["Camarines Sur","173556","Panagan ES"]
["Camarines Sur","403707","Colegio del Santisimo Rosario"]
["Camarines Sur","407877","Casa Amihan Playschool"]
["Camarines Sur","433552","Little Therese Parochial School"]
["Camarines Sur","433583","Honorville Child Learning Center"]
["Camarines Sur","500469","Toytoy Integrated School"]
["Catanduanes","113170","Puraran Elementary School"]
["Catanduanes","113197","Camburo ES"]
["Catanduanes","113218","Biong ES"]
["Catanduanes","113235","Catamban ES"]
["Catanduanes","113270","Barihay ES"]
["Catanduanes","113285","Alma ES"]
["Catanduanes","113330","San Roque Elementary School"]
["Catanduanes","113340","Dugui Too Elementary School"]
["Catanduanes","113372","Valencia ES"]
["Catanduanes","434013","Marian Formation Center"]
["Catanduanes","434024","The Blooming Child Developmental School"]
["Iriga City","114436","San Pedro ES"]
["Iriga City","403827","University of Northeastern Philippines"]
["Legaspi City","114473","San Francisco ES"]
["Legaspi City","176003","Banquerohan Elementary school-SPED"]
["Legaspi City","403850","St. Agnes Academy"]
["Ligao City","111813","Basag ES"]
["Ligao City","111846","Maonon ES"]
["Ligao City","231003","Batang ES, Tobgon Ext"]
["Masbate","113380","Capsay ES"]
["Masbate","113415","Gregorio Dongon Elementary School"]
["Masbate","113448","Calumpang CS"]
["Masbate","113477","Batuan CS"]
["Masbate","113488","Royroy Elementary School"]
["Masbate","113511","Divisoria Elementary School"]
["Masbate","113547","Victor M. Diano ES"]
["Masbate","113556","Pulot ES"]
["Masbate","113600","Cabanuyoan Elementary School"]
["Masbate","113615","San Vicente ES"]
["Masbate","113642","Cagmasoso ES"]
["Masbate","113689","Capaclan Elementary School"]
["Masbate","113719","Bangad Elementary School"]
["Masbate","113745","Luyong Catungan ES"]
["Masbate","113766","Guinhadap Elementary School"]
["Masbate","113789","Biga-a Elem. School"]
["Masbate","113814","Palho ES"]
["Masbate","113857","Altavista ES"]
["Masbate","113877","San Fernando East ES"]
["Masbate","113912","Dancalan ES"]
["Masbate","113927","Pedro  S. Lazaro ES"]
["Masbate","113950","Magsaysay ES"]
["Masbate","174508","TESA ES"]
["Masbate","434505","Eden's Christian Academy, Inc."]
["Masbate","434540","OUR LADY OF THE PILLAR DIOCESAN SCHOOL"]
["Masbate City","113680","Julian V. Antonio Elementary School"]
["Masbate City","490504","Snappy's Kiddie School, Inc."]
["Naga City","114508","Julian B. Meliton Elementary School"]
["Naga City","403873","Naga College Foundation, Inc."]
["Naga City","436531","Mary Nymph Montessori School"]
["Sorsogon","114001","Bical ES"]
["Sorsogon","114024","Palale ES"]
["Sorsogon","114033","BLISS Elementary School"]
["Sorsogon","114065","Sabang ES"]
["Sorsogon","114094","San Pascual ES"]
["Sorsogon","114127","Maypangi Elementary School"]
["Sorsogon","114131","Rosal ES"]
["Sorsogon","114162","Gimagaan ES"]
["Sorsogon","114196","Ogao ES"]
["Sorsogon","114217","Sta. Ana ES"]
["Sorsogon","114231","Cogon ES"]
["Sorsogon","114264","Maalo ES"]
["Sorsogon","114281","Magallanes North CS"]
["Sorsogon","114324","Pange ES"]
["Sorsogon","114325","Pawa ES"]
["Sorsogon","114372","Del Rosario ES"]
["Sorsogon","114393","Gogon ES"]
["Sorsogon","175001","Alberto de Castro ES"]
["Sorsogon","175015","BLISS PS"]
["Sorsogon","435001","Church of the Nazarene Philippines, Inc"]
["Sorsogon City","114544","San Pascual Elementary School"]
["Sorsogon City","114581","Sorsogon Pilot Elementary School"]
["Sorsogon City","437003","Sorsogon Puericulture Learning Center, Inc."]
["Tabaco City","114593","Oras ES"]
["Tabaco City","403908","D.B. Peña Memorial College Found., Inc."]
["Tabaco City","437506","Tabaco City Fundamental School, Inc."]
["Aklan","114641","Talon Elementary School"]
["Aklan","114677","Tinapuay PS"]
["Aklan","114718","Capilijan PS"]
["Aklan","114744","San Jose ES"]
["Aklan","114745","Unat Bagacay ES"]
["Aklan","114788","Magugba PS"]
["Aklan","114822","Pang-itan Elementary School"]
["Aklan","114850","Malay Elementary School"]
["Aklan","114859","Cabayugan ES"]
["Aklan","114887","Nabas ES"]
["Aklan","114922","Navitas ES"]
["Aklan","403935","Infant Jesus School-Kalibo, Inc."]
["Aklan","403945","Bloomfield Integrated Academy Inc. (Boracay)"]
["Aklan","438037","Mga Apo ni San Isidro Catholic School, Inc."]
["Aklan","438072","First Love Jubilee Academy of Boracay, Inc."]
["Aklan","500642","Palay Integrated School"]
["Antique","114946","Magdalena ES"]
["Antique","114989","Nelia Boston Maghari MES"]
["Antique","115005","Banago ES"]
["Antique","115041","Fe-Caridad ES"]
["Antique","115042","Flores Elementary School"]
["Antique","115073","Iraya ES"]
["Antique","115104","Guiamon PS"]
["Antique","115137","Taboc ES"]
["Antique","115163","Perfecta PS"]
["Antique","115173","Zaldivar Elementary School"]
["Antique","115206","T. Dela Cruz ES"]
["Antique","115228","Rosario J. Moscoso MS"]
["Antique","115242","General Luna ES"]
["Antique","115275","Walker-Proper Elementary School"]
["Antique","115314","Catungan 3rd & 4th ES"]
["Antique","115335","Tinubuan PS"]
["Antique","115344","Malabor ES"]
["Antique","115378","Manaling PS"]
["Antique","115403","Lublub ES"]
["Antique","403973","Sta. Rita Academy, Inc."]
["Antique","438503","LSD Child Study Center, Inc."]
["Antique","438538","Our Lady of Guadalupe Tibiao Parochial School Inc."]
["Antique","438579","Semirara Pastureland Christian Academy, Inc."]
["Bacolod City","117481","EDUCATION AND TRAINING CENTER SCHOOL - I"]
["Bacolod City","117491","Sum-ag ES"]
["Bacolod City","404130","Megumi Academy Inc."]
["Bacolod City","441017","Glorious Shepherd Kiddie School"]
["Bacolod City","441059","J.O.Y. Christian School Inc."]
["Bacolod City","441077","Bacolod Child Development Center"]
["Bacolod City","441128","Precious Gems Christian Center (Handuman Bacolod City, Inc.)"]
["Bacolod City","441180","College of Arts and Sciences of Asia and the Pacific, Bacolod City, Inc."]
["Bago City","117497","Inocencio Lucasan ES"]
["Bago City","117522","Louisiana Elementary School"]
["Bago City","441517","Saint John the Baptist Kinder School of Bago City, INC."]
["Cadiz City","117556","Tres Andanas ES"]
["Cadiz City","404161","Holy Infant Academy of Cadiz, Inc."]
["Capiz","115431","Bita PS"]
["Capiz","115444","Andres E. Quintia Sr. ES (Nasunogan)"]
["Capiz","115470","Aglanot ES"]
["Capiz","115496","Taslan ES (dumarao)"]
["Capiz","115513","Tigis PS"]
["Capiz","115540","Pangabat ES"]
["Capiz","115565","Manayupit ES"]
["Capiz","115603","Libo-o Primary School"]
["Capiz","115612","Agbanban Elementary School"]
["Capiz","115655","Felixberto Dicon Dorado Sr. ES"]
["Capiz","115671","Dulangan ES"]
["Capiz","115704","Rizal ES"]
["Capiz","115715","Madulano ES"]
["Capiz","115739","Guibongan PS"]
["Capiz","115774","Bato-bato PS"]
["Capiz","115807","Camburanan ES"]
["Capiz","115810","Cristina ELEMENTARY SCHOOL"]
["Capiz","408657","Mambusao Seventh-Day Adventist Preparatory School"]
["Capiz","439027","Pres. Roxas Fundamental Baptist Learning Center Inc."]
["Capiz","500428","Agkawayan Integrated School"]
["Guimaras","115823","Daragan Elementary School"]
["Guimaras","115832","Salvacion Elementary School"]
["Guimaras","115870","Espinosa Elementary School"]
["Guimaras","115892","Calaya Elementary School"]
["Guimaras","115902","Paaralan ng Buhay ng Pandaraonan"]
["Guimaras","439510","Buenavista Lighthouse Christian Academy, Inc."]
["Iloilo","115936","Punta Buri ES"]
["Iloilo","115969","Ugbo Elementary School"]
["Iloilo","115997","Cabayogan- Latauan ES"]
["Iloilo","116005","Mapili ES"]
["Iloilo","116038","Talokgangan ES"]
["Iloilo","116061","Tiwi ES"]
["Iloilo","116073","Nueva Sevilla ES"]
["Iloilo","116098","Embarcadero ES"]
["Iloilo","116125","Jelicuon ES"]
["Iloilo","116165","Guiso ES"]
["Iloilo","116190","Marandig Primary School"]
["Iloilo","116215","Dayhagan ES"]
["Iloilo","116234","Miape-Aro PS"]
["Iloilo","116259","Polopiña ES"]
["Iloilo","116279","Moroboro Elementary School"]
["Iloilo","116294","Batuan ES"]
["Iloilo","116329","Sapao ES"]
["Iloilo","116345","Tamboilan ES"]
["Iloilo","116388","Atimonan Elementary School"]
["Iloilo","116397","Leon Consumo MES"]
["Iloilo","116422","Tiringanan PS"]
["Iloilo","116444","Bagongbong ES"]
["Iloilo","116465","Pughanan ES"]
["Iloilo","116490","Dapdapan PS"]
["Iloilo","116533","Bolo ES"]
["Iloilo","116558","Subog ES"]
["Iloilo","116583","Igbita-Tigmalapad ES"]
["Iloilo","116598","Badiangan Elementary School"]
["Iloilo","116618","Wari-Wari ES"]
["Iloilo","116651","DOLORES P. TIRADOR ES"]
["Iloilo","116662","Casalsagan ES"]
["Iloilo","116686","Manduawak ES"]
["Iloilo","116720","Balabago ES"]
["Iloilo","116748","Toog-Tiglawa ES"]
["Iloilo","116779","Ireneo Engle Sr. MES"]
["Iloilo","116788","Sara CES"]
["Iloilo","116812","Payao ES"]
["Iloilo","116847","Isauan-Talento PS"]
["Iloilo","116856","Victoria ES"]
["Iloilo","180044","Jawod ES"]
["Iloilo","404000","Batad Adventist Elementary School, Inc."]
["Iloilo","404032","Sara Fundamental Baptist Academy,Inc."]
["Iloilo","440002","CenterPhil Montessori Learning Center, Inc."]
["Iloilo","440024","Calvary Baptist Academy Inc. (Oton, Iloilo)"]
["Iloilo","440057","Barotac Viejo Baptist Learning Center"]
["Iloilo","440092","ALPHA and OMEGA LEARNING CENTER"]
["Iloilo","440124","Tigbauan Fundamental Learning Center, Inc."]
["Iloilo","440133","First Baptist Church Of Zarraga Learning Center Inc."]
["Iloilo","440179","Guibuangan Baptist Learning Center, Inc."]
["Iloilo","440241","Fellowship Baptist Academy of San Rafael, Inc."]
["Iloilo City","117616","Navais-Borres ES (L. Borres ES)"]
["Iloilo City","117625","Taal ES"]
["Iloilo City","408217","La Paz Faith Christian Academy"]
["Iloilo City","442519","Iloilo Scholastic Academy Inc."]
["Iloilo City","442565","Colegio del Sagrado Corazon de Jesus, Inc."]
["Iloilo City","442594","Maya Playgarden and Daycare Center, Inc."]
["Iloilo City","442635","VIS Kindergarten Montessori, Inc."]
["Kabankalan City","117847","Oringao ES"]
["Kabankalan City","117863","Magtongtong ES"]
["Kabankalan City","117890","Pacao ES"]
["Kabankalan City","445504","Daan Banua FBC Learning Center, Inc."]
["La Carlota City","443001","Maranatha Christian Academy"]
["Negros Occidental","116879","Tambu ES"]
["Negros Occidental","116888","Nasanagan ES"]
["Negros Occidental","116922","Harbort Elementary School"]
["Negros Occidental","116948","Cantomanyog ES"]
["Negros Occidental","116981","Talacdan ES"]
["Negros Occidental","116987","Tomina ES"]
["Negros Occidental","117020","Batea PS"]
["Negros Occidental","117081","Ceferino Gargaritano ES"]
["Negros Occidental","117107","Talaban ES"]
["Negros Occidental","117118","Pilar ES"]
["Negros Occidental","117150","Don E. Bilbao ES"]
["Negros Occidental","117176","Enclaro ES"]
["Negros Occidental","117208","Riverside ES"]
["Negros Occidental","117235","Lalagsan ES"]
["Negros Occidental","117244","Chambery ES"]
["Negros Occidental","117272","Quintin Remo ES"]
["Negros Occidental","117303","Miranda ES"]
["Negros Occidental","117312","Carmen ES"]
["Negros Occidental","117336","Salvador Benedicto ES"]
["Negros Occidental","117371","Camindangan ES"]
["Negros Occidental","117405","General Luna ES"]
["Negros Occidental","117423","Ayungon ES"]
["Negros Occidental","117441","J. L. Suarez ES"]
["Negros Occidental","180527","SAARBA Elementary School"]
["Negros Occidental","404058","Hinigaran Adventist Elementary School"]
["Negros Occidental","404095","Open Door Christian Academy Talisay, Inc"]
["Negros Occidental","440518","Fun for Kids Development Center"]
["Negros Occidental","440592","Diocese of Kabankalan Pre-elementary School, Inc. - Isio, Cauayan"]
["Passi City","117896","Agdahon Elementary School"]
["Passi City","117922","Libo-o Elementary School"]
["Passi City","446003","4th Watch Maranatha Christian School"]
["Roxas City","117672","Plaridel East ES"]
["Roxas City","443504","St Michael Montessori Inc."]
["Roxas City","443515","Capiz Adventist Academy Inc."]
["Sagay City","117703","Plaridel Elementary School"]
["Sagay City","117739","Rufino T. Halipa Sr Elementary School"]
["San Carlos City","117754","School of the Future"]
["San Carlos City","117762","Pano-olan ES"]
["San Carlos City","117789","Lamesa ES"]
["Silay City","117815","Hawaiian Phil. Company ES"]
["Silay City","445011","Fits Learning Center"]
["Silay City","500198","Silay SPED Center"]
["Bais City","120090","Cipriano Alcala Memorial Elementary School"]
["Bayawan City","120123","Bayawan City East Central School"]
["Bayawan City","120131","Kasla Elementary School"]
["Bayawan City","120167","Uban-Uban Elementary School"]
["Bogo City","119107","Bogo Central School 111"]
["Bohol","117931","Canlimpong PS"]
["Bohol","117964","Talisay PS"]
["Bohol","117990","Montaña PS"]
["Bohol","117999","Cabad-Candasig ES"]
["Bohol","118033","Mandawa ES"]
["Bohol","118055","Villa Aurora ES"]
["Bohol","118092","Calape Central ES"]
["Bohol","118101","Pangangan ES"]
["Bohol","118142","La Paz ES"]
["Bohol","118162","Alegria ES"]
["Bohol","118171","Causwagan ES"]
["Bohol","118208","Fatima ES"]
["Bohol","118233","Villa Aurora ES"]
["Bohol","118258","Dao ES"]
["Bohol","118291","Duero Central ES"]
["Bohol","118312","Garcia-Hernandez Central ES"]
["Bohol","118326","Campao ES"]
["Bohol","118360","Lombog ES"]
["Bohol","118377","Ilaya PS"]
["Bohol","118396","Canlinte PS"]
["Bohol","118429","Mayana ES"]
["Bohol","118464","Gotozon E/s"]
["Bohol","118489","Sondol PS"]
["Bohol","118499","Lintuan ES"]
["Bohol","118531","Valaga ES"]
["Bohol","118560","Lourdes Elementary School"]
["Bohol","118569","Buenasuerte ES"]
["Bohol","118595","Gaus ES"]
["Bohol","118630","Abehilan ES"]
["Bohol","118656","San Miguel Central ES"]
["Bohol","118687","Nan-od ES"]
["Bohol","118699","Cambuac Sur ES"]
["Bohol","118742","San Francisco ES"]
["Bohol","118770","Avelino Chagas MES"]
["Bohol","118802","Bay-ang ES"]
["Bohol","118811","California ES"]
["Bohol","118834","Sentinela ES"]
["Bohol","186507","Alicia CES Annex"]
["Bohol","408172","Bohol Maranatha Christian Academy -Trinidad Branch"]
["Bohol","408328","Panglao Evangelical Learning Center, Inc."]
["Bohol","446520","St. Therese Kindergarten School of Bilar, Bohol, Inc."]
["Bohol","446576","Sacred Heart of Jesus School"]
["Bohol","500209","Inabanga North Central Integrated School (Elementary)"]
["Carcar City","119169","Valencia Elementary School"]
["Carcar City","404321","Carcar Christian School, Inc."]
["Cebu","118882","Anislag PS"]
["Cebu","118904","Bonbon ES"]
["Cebu","118925","Cansuje ES"]
["Cebu","118950","Jampang ES"]
["Cebu","118968","Bairan ES"]
["Cebu","119009","Patong ES"]
["Cebu","119019","Biasong ES"]
["Cebu","119065","Kabangbang Central ES"]
["Cebu","119087","Pancil ES"]
["Cebu","119142","Cajel ES"]
["Cebu","119149","Magdolinog ES"]
["Cebu","119208","Bagalnga ES"]
["Cebu","119243","Lanipga ES"]
["Cebu","119272","Pajo Elementary School"]
["Cebu","119280","Jubot ES"]
["Cebu","119313","Banhigan ES"]
["Cebu","119377","DUMANJUG CENTRAL SCHOOL"]
["Cebu","119416","San Roque ES"]
["Cebu","119443","Looc ES"]
["Cebu","119453","Bomedco ES"]
["Cebu","119490","Bala ES"]
["Cebu","119538","Oslob Central ES"]
["Cebu","119547","Montserrat ES"]
["Cebu","119573","Tangub ES"]
["Cebu","119607","Dalahikan ES"]
["Cebu","119641","Consuelo ES"]
["Cebu","119666","Looc ES"]
["Cebu","119684","Toong ES"]
["Cebu","119718","Mangyan ES"]
["Cebu","119737","Manahaw Primary School"]
["Cebu","119755","Libjo ES"]
["Cebu","119782","Tabunok ES"]
["Cebu","119825","Amatugan ES"]
["Cebu","187005","Tomonoy ES"]
["Cebu","187036","Dumalerio PS"]
["Cebu","404334","Our Lady of Joy Learning Center"]
["Cebu","404380","St. Pius X School of Samboan, Inc."]
["Cebu","408789","Southlane Learning Association, Inc."]
["Cebu","447013","Barili Evangelical Christian School, Inc."]
["Cebu","447040","Christian Learning Center of Argao, Cebu, Inc."]
["Cebu","447082","St. Isidore Labrador Child Development Center, Inc."]
["Cebu","447102","Blessed Virgin Mary Learning Center Inc."]
["Cebu","500484","Lipayran ES"]
["Cebu","500651","Zaragosa Integrated School"]
["Cebu City","119867","Bitlang ES"]
["Cebu City","119907","Inayawan ES"]
["Cebu City","119918","Tagba-o Elementary School"]
["Cebu City","404438","Formation School and Kiddies' Learning Center, Inc."]
["Cebu City","404486","Cebu Institute of Technology - University"]
["Cebu City","407986","PSHF Lighthouse Learning Center, Inc."]
["Cebu City","447506","Rainbow Connection Child Learning Center"]
["Cebu City","447528","Frobel School for Early Literacy Inc"]
["Cebu City","447564","Three H Redwood Academy"]
["Cebu City","500230","Malubog Integrated School"]
["City of Naga, Cebu","119505","Cogon Elementary School"]
["City of Naga, Cebu","447091","Royal Child Academy, Inc."]
["Danao City","491501","Northern Cebu Christian School Inc."]
["Dumaguete City","119932","Amador Dagudag MES"]
["Dumaguete City","404535","St. Paul University Dumaguete"]
["Dumaguete City","448008","Dumaguete Agape Chinese Christian Academy"]
["Guihulngan City","120249","Laos ES"]
["Guihulngan City","120627","Banban Elementary School"]
["Guihulngan City","120636","Paliran Elementary School"]
["Lapu-Lapu City","119977","Gun-ob ES"]
["Lapu-Lapu City","404538","Advance Institute of Technology, Inc. of Lapu-Lapu City"]
["Lapu-Lapu City","408154","Sto. Nino Holy Child Academy Inc."]
["Lapu-Lapu City","448519","Sto. Niño Mactan Montessori School,Inc."]
["Lapu-Lapu City","448549","Navales Christian Academy, Inc."]
["Mandaue City","120004","Banilad ES"]
["Mandaue City","404563","ACA Learning Center Inc."]
["Mandaue City","449012","Holy Child Learning Center - JPIC, Inc."]
["Negros Oriental","120024","Jantianon Elementary School"]
["Negros Oriental","120057","Tampocon I Elementary School"]
["Negros Oriental","120170","Batangan Elementary School"]
["Negros Oriental","120214","Pinamentigan ES"]
["Negros Oriental","120223","Bulak Elementary School"]
["Negros Oriental","120315","Busilac ES"]
["Negros Oriental","120338","Arebasore Elementary School"]
["Negros Oriental","120363","Lapong Elementary School"]
["Negros Oriental","120379","Tingtingon ES"]
["Negros Oriental","120406","Tupas ES"]
["Negros Oriental","120454","Casalaan ES"]
["Negros Oriental","120466","MALOH CENTRAL SCHOOL"]
["Negros Oriental","120498","Bagtic PS (Tubod)"]
["Negros Oriental","120524","Talalak Elementary School"]
["Negros Oriental","120594","Pinalubngan Elementary School"]
["Negros Oriental","120621","Pulangbato Elementary School"]
["Negros Oriental","120648","Lutoban ES"]
["Negros Oriental","189529","Kabangkalan ES"]
["Negros Oriental","449527","LG Kiddie Friendly Learning Center Inc  c."]
["Siquijor","120688","Tignao Elementary School"]
["Siquijor","190004","Cangmunag Elementary School"]
["Siquijor","404632","BIT International College-Siquijor,Inc."]
["Tagbilaran City","404280","University of Bohol"]
["Talisay City","119792","Tanke Elementary School"]
["Talisay City","233505","Campinsa Elementary School"]
["Tanjay City","120407","Abante Elementary School"]
["Tanjay City","120544","Bulon ES"]
["Tanjay City","120572","Plaza Central School"]
["Toledo City","120720","Tongkay ES"]
["Toledo City","120729","Himatugan Elementary School"]
["Toledo City","120753","North City Central School"]
["Baybay City","121092","San Isidro Elementary School"]
["Baybay City","121102","Baybay II Central School"]
["Baybay City","404659","Alpha Christian School, Inc."]
["Biliran","120760","Caucab ES"]
["Biliran","120793","Looc ES"]
["Biliran","120806","Kawayanon ES"]
["Biliran","120829","Bilwang ES"]
["Biliran","120863","STO. NINO ELEMENTARY SCHOOL"]
["Biliran","120872","Eden Elementary School"]
["Borongan City","122360","Cati-an PS"]
["Borongan City","122386","San Pablo ES"]
["Calbayog City","123995","Langoyon Elementary School"]
["Calbayog City","124024","Salvacion Elementary School"]
["Calbayog City","124054","Bayo Elementary School"]
["Calbayog City","124065","Mabini II Elementary School"]
["Calbayog City","124100","Mancol Elementary School"]
["Calbayog City","124128","Tinambacan Central School"]
["Calbayog City","124134","Cag-olango Elementary School"]
["Catbalogan City","123397","Catbalogan I Central Elementary School"]
["Catbalogan City","123430","Cabugawan Elementary School"]
["Eastern Samar","122334","Catumsan Elementary School"]
["Eastern Samar","122418","Guibuangan Elementary School"]
["Eastern Samar","122427","Bonghon Elementary School"]
["Eastern Samar","122461","Malobago Primary School"]
["Eastern Samar","122486","Laurel Primary School"]
["Eastern Samar","122496","Roxas Primary School"]
["Eastern Samar","122521","Campoyong Elementary School"]
["Eastern Samar","122550","San Roque Primary School"]
["Eastern Samar","122591","Canliwag Elementary School"]
["Eastern Samar","122616","General Malvar Elementary School"]
["Eastern Samar","122617","Guindalitan Elementary School"]
["Eastern Samar","122654","Anacta Primary School"]
["Eastern Samar","122688","Sta. Margarita Elementary School"]
["Eastern Samar","122710","Burak Elementary School"]
["Eastern Samar","122723","Caruyagon Elementary School"]
["Eastern Samar","122757","Sto. Tomas Elementary School"]
["Eastern Samar","192501","Inayawan Elementary School"]
["Leyte","120890","Canmarating Elementary School"]
["Leyte","120899","Tabigue Elementary School"]
["Leyte","120934","Odiongan Elementary School"]
["Leyte","120958","Tabangohay Elementary School"]
["Leyte","120967","Calaasan Elementary School"]
["Leyte","120999","Mahayag Elementary School"]
["Leyte","121027","Bulod Primary School"]
["Leyte","121060","Bago Elementary School"]
["Leyte","121064","Dolho Elementary School"]
["Leyte","121167","Malaihao Elementary School"]
["Leyte","121192","Hibunauan Elementary School"]
["Leyte","121225","Gutosan Elementary School"]
["Leyte","121238","Cabul-an Elementary School"]
["Leyte","121260","Cassidy Elementary School"]
["Leyte","121294","Hiabangan Elementary School"]
["Leyte","121326","General Roxas Elementary School"]
["Leyte","121355","Victory Elementary School"]
["Leyte","121364","Naval Elementary School"]
["Leyte","121390","Pontod Elementary School"]
["Leyte","121423","Guadalupe Elementary School"]
["Leyte","121432","Tinago Elementary School"]
["Leyte","121454","Badiang Elementary School"]
["Leyte","121491","Zabala Elementary School"]
["Leyte","121516","Alegria Elementary School"]
["Leyte","121543","Lonoy Elementary School"]
["Leyte","121559","Bongtod Primary School"]
["Leyte","121584","Sta. Ana Elementary School"]
["Leyte","121607","Sambulawan Elementary School"]
["Leyte","121644","Malipoon Primary School"]
["Leyte","121653","Uguis Elementary School"]
["Leyte","121697","Sta. Fe-Itum Elementary School"]
["Leyte","121712","Union Elementary School"]
["Leyte","121745","San Agustin Elementary School"]
["Leyte","121761","San Antonio Elementary School"]
["Leyte","121780","Tambis Elementary School"]
["Leyte","121813","Canino-an Elementary School"]
["Leyte","121838","Kabungaan Elementary School"]
["Leyte","121860","Malpag Primary School"]
["Leyte","121881","Tibak Elementary School"]
["Leyte","121907","Amandangay Elementary School"]
["Leyte","121925","Cogon Elementary School"]
["Leyte","121950","Daniel Z. Romualdez Memorial Elementary School"]
["Leyte","121976","Abijao Elementary School"]
["Leyte","191525","Cabalagnan Primary School"]
["Leyte","191546","Cantandog II Primary School"]
["Leyte","191556","Burabod Primary School"]
["Leyte","404679","Doane Baptist School of Leyte - Isabel"]
["Leyte","451510","Sto. Niño de Tanauan Leyte School for Basic Education, Inc."]
["Leyte","454551","St. Anthony of Padua Tunga Leyte Learning Center, Inc."]
["Leyte","500233","Calubian Integrated School"]
["Maasin City","122151","Bato I ES"]
["Maasin City","498501","Prestige International School, Inc. - Maasin"]
["Northern Samar","122797","SALVACION ELEMENTARY SCHOOL"]
["Northern Samar","122808","J. A. Santos ES"]
["Northern Samar","122842","Old Rizal ES"]
["Northern Samar","122862","San Pascual Elementary School"]
["Northern Samar","122902","Libon Elementary"]
["Northern Samar","122903","Lubedico Elementary School"]
["Northern Samar","122927","Gamay West ES"]
["Northern Samar","122970","Bayog ES"]
["Northern Samar","122995","Imelda ES"]
["Northern Samar","123016","Geguinta ES"]
["Northern Samar","123038","Rizal ES"]
["Northern Samar","123065","Libas ES"]
["Northern Samar","123098","Roxas Elementary School"]
["Northern Samar","123117","Cahicsan Elementary School"]
["Northern Samar","123133","San Isidro Primary School"]
["Northern Samar","123166","Simora Elementary School"]
["Northern Samar","123181","Manahaw Elementary School"]
["Northern Samar","123201","Pilar Elementary School"]
["Northern Samar","123226","Layuhan ES"]
["Northern Samar","123246","Maragat ES"]
["Northern Samar","193011","Sta. Potenciana ES"]
["Northern Samar","193012","Cagmanaba Elementary School"]
["Ormoc City","124148","Can-adieng Elementary School"]
["Ormoc City","124175","Cagbuhangin Elementary School"]
["Ormoc City","124200","Airport Primary School"]
["Ormoc City","124212","Libertad Elementary School"]
["Ormoc City","404791","Saint Peter's College of Ormoc"]
["Samar (Western Samar)","123306","Bangon ES"]
["Samar (Western Samar)","123339","Dolongan ES"]
["Samar (Western Samar)","123341","Iba Elementary School"]
["Samar (Western Samar)","123374","Literon Elementary School"]
["Samar (Western Samar)","123448","Cabac ES"]
["Samar (Western Samar)","123482","Iquiran ES"]
["Samar (Western Samar)","123491","San Jose ES"]
["Samar (Western Samar)","123515","Macugo ES"]
["Samar (Western Samar)","123556","San Agustin ES"]
["Samar (Western Samar)","123590","Dogongan Elementary School"]
["Samar (Western Samar)","123591","Garcia ES"]
["Samar (Western Samar)","123622","Barayong ES"]
["Samar (Western Samar)","123650","Bangon Elementary School"]
["Samar (Western Samar)","123683","Blanca-Aurora ES"]
["Samar (Western Samar)","123712","BALOGO ELEMENTARY SCHOOL"]
["Samar (Western Samar)","123719","Hitaasan ES"]
["Samar (Western Samar)","123757","Anibongon ES"]
["Samar (Western Samar)","123782","Hita-as ES"]
["Samar (Western Samar)","123794","San Juan ES"]
["Samar (Western Samar)","123829","Alcazar ES"]
["Samar (Western Samar)","123847","Libucan Dacu ES"]
["Samar (Western Samar)","123891","TOMABE ES"]
["Samar (Western Samar)","123900","Pacao Elementary School"]
["Samar (Western Samar)","123939","CANTATO ELEMENTARY SCHOOL"]
["Samar (Western Samar)","123961","Tutobigan Elementary School"]
["Samar (Western Samar)","193502","Del Rosario ES"]
["Samar (Western Samar)","193535","Sugod Elementary School"]
["Southern Leyte","122000","Catuogan Multigrade Elementary  School"]
["Southern Leyte","122026","Calag-Itan Elementary School"]
["Southern Leyte","122064","Ambao Elementary School"]
["Southern Leyte","122069","Cabulisan Multi-Grade Elem.School"]
["Southern Leyte","122094","Catig Primary School"]
["Southern Leyte","122188","Mabini Elementary School"]
["Southern Leyte","122213","San Vicente Elementary School"]
["Southern Leyte","122222","Lungsodaan Elementary School"]
["Southern Leyte","122255","Sua Elementary School"]
["Southern Leyte","122289","Himos-onan Elementary School"]
["Southern Leyte","122318","Maanyag Elementary School"]
["Southern Leyte","192021","Anislagon Primary School"]
["Southern Leyte","404710","HINUNDAYAN CATHOLIC INSTITUTE, INC."]
["Tacloban City","124229","Sagkahan ES"]
["Tacloban City","124254","Bliss Elementary School"]
["Tacloban City","455014","Cambridge Center for International Studies - EV Phils., Inc. (CIE)"]
["Tacloban City","500893","Greendale Residences Integrated School"]
["Dapitan City","125937","Capucao PS"]
["Dipolog City","125962","Dicayas ES"]
["Dipolog City","125996","San Jose ES"]
["Dipolog City","404895","Dipolog City Institute of Technology"]
["Dipolog City","500046","Gulayon IS"]
["Isabela City","126033","Lunot Elementary School"]
["Isabela City","198005","Balawatin PS"]
["Pagadian City","126064","Lenienza ES"]
["Pagadian City","126077","Palpalan ES"]
["Pagadian City","458505","Pagadian City Salvation and Praise Learning Center"]
["Zamboanga City","126101","Lima ES"]
["Zamboanga City","126122","Dita ES"]
["Zamboanga City","126155","Camp Socorro ES"]
["Zamboanga City","126165","Manicahan Pob. ES"]
["Zamboanga City","126190","Mulu-Muluan ES"]
["Zamboanga City","126215","Luyahan ES"]
["Zamboanga City","126255","Tigbalabag ES"]
["Zamboanga City","404940","Immaculate Concepcion Elementary School, Tetuan"]
["Zamboanga City","459013","Ferndale International School"]
["Zamboanga City","459028","Salum Kindergarten School"]
["Zamboanga del Norte","124295","Gutalac CS"]
["Zamboanga del Norte","124313","Malian ES"]
["Zamboanga del Norte","124322","Balatakan ES"]
["Zamboanga del Norte","124356","Pianon ES"]
["Zamboanga del Norte","124382","New Dapitan ES"]
["Zamboanga del Norte","124415","Kipit ES"]
["Zamboanga del Norte","124420","Lawigan ES"]
["Zamboanga del Norte","124450","El Paraiso ES"]
["Zamboanga del Norte","124483","Nabilid ES"]
["Zamboanga del Norte","124509","Libuton ES"]
["Zamboanga del Norte","124518","Sitoy ES"]
["Zamboanga del Norte","124544","Tinglan ES"]
["Zamboanga del Norte","124575","Lingasad ES"]
["Zamboanga del Norte","124612","San Roque ES"]
["Zamboanga del Norte","124637","ANTONINO ELEMENTARY SCHOOL"]
["Zamboanga del Norte","124664","Nebo ES"]
["Zamboanga del Norte","124672","Sinaad ES"]
["Zamboanga del Norte","124706","Anungan ES"]
["Zamboanga del Norte","124731","Paniran ES"]
["Zamboanga del Norte","124744","Libay ES"]
["Zamboanga del Norte","124779","Lapero ES"]
["Zamboanga del Norte","124798","Kalawit ES"]
["Zamboanga del Norte","124840","Lambog Jubael ES"]
["Zamboanga del Norte","124849","Cabong ES"]
["Zamboanga del Norte","195510","Malinao PS"]
["Zamboanga del Norte","195537","Imam Nasaron Haron ES"]
["Zamboanga del Norte","404824","Liloy Immanuel School"]
["Zamboanga del Norte","455515","Jewels Christian Baptist Kindergarten School"]
["Zamboanga del Sur","124903","San Juan PS"]
["Zamboanga del Sur","124917","Datagan ES"]
["Zamboanga del Sur","124951","San Roque Elementary School"]
["Zamboanga del Sur","124969","Legarda Uno ES"]
["Zamboanga del Sur","124986","Upper Dimaya PS"]
["Zamboanga del Sur","125019","Calumangi ES"]
["Zamboanga del Sur","125033","San Vicente ES"]
["Zamboanga del Sur","125054","Saad ES"]
["Zamboanga del Sur","125087","Nopulan ES"]
["Zamboanga del Sur","125120","Lower Pulacan ES"]
["Zamboanga del Sur","125148","Sibuguey ES"]
["Zamboanga del Sur","125157","Antonio V. Apostol Sr. Mem. CES"]
["Zamboanga del Sur","125184","Lourmah ES"]
["Zamboanga del Sur","125216","Josefina ES"]
["Zamboanga del Sur","125225","Sagua ES"]
["Zamboanga del Sur","125276","Bag-ong Argao ES"]
["Zamboanga del Sur","125287","Silangit ES"]
["Zamboanga del Sur","125312","Campo V Elementary School"]
["Zamboanga del Sur","125340","Langilan Elementary School"]
["Zamboanga del Sur","125355","Digos ES"]
["Zamboanga del Sur","125380","Barubuhan ES"]
["Zamboanga del Sur","125413","San Roque ES"]
["Zamboanga del Sur","125439","Florentino B. Dag-uman ES"]
["Zamboanga del Sur","125448","Upper Tiparak ES"]
["Zamboanga del Sur","125482","Sugod ES"]
["Zamboanga del Sur","125505","Sagucan ES"]
["Zamboanga del Sur","196040","Simuyak Elementary School"]
["Zamboanga del Sur","404837","Sta. Teresita Academy"]
["Zamboanga Sibugay","125512","Calades ES"]
["Zamboanga Sibugay","125529","Pandan-Pandan ES"]
["Zamboanga Sibugay","125554","Maganay ES"]
["Zamboanga Sibugay","125578","Mejo ES"]
["Zamboanga Sibugay","125598","La Victoria ES"]
["Zamboanga Sibugay","125623","Jesus Lauron ES"]
["Zamboanga Sibugay","125642","Gacbusan ES"]
["Zamboanga Sibugay","125682","Tandu-Comot ES"]
["Zamboanga Sibugay","125691","Del Pilar ES"]
["Zamboanga Sibugay","125731","Upper Tipan ES"]
["Zamboanga Sibugay","125750","Villagonzalo ES"]
["Zamboanga Sibugay","125759","Fatima ES"]
["Zamboanga Sibugay","125795","New Sagay ES"]
["Zamboanga Sibugay","125818","Coloran ES"]
["Zamboanga Sibugay","125852","Sagay ES"]
["Zamboanga Sibugay","125856","Achasol ES"]
["Zamboanga Sibugay","125887","Batungan ES"]
["Zamboanga Sibugay","196511","Sta. Cruz PS"]
["Zamboanga Sibugay","404880","Marian College Inc."]
["Zamboanga Sibugay","456506","Jack and Jill Preschool Center of UCCP Ipil, Inc."]
["Bukidnon","126273","Mabuhay ES"]
["Bukidnon","126299","Miaray ES"]
["Bukidnon","126335","New Visayas ES"]
["Bukidnon","126359","Old Nongnongan ES"]
["Bukidnon","126368","Sto. Nino ES"]
["Bukidnon","126400","Kawilihan ES"]
["Bukidnon","126429","Manubiray ES"]
["Bukidnon","126439","Kikipot ES"]
["Bukidnon","126462","Bershiba ES"]
["Bukidnon","126500","Bantuanon ES"]
["Bukidnon","126533","Sta Fe Elementary School"]
["Bukidnon","126615","Sumalsag ES"]
["Bukidnon","126631","Kitam-Is ES"]
["Bukidnon","126664","Magsaysay ES"]
["Bukidnon","126680","Bangahan ES"]
["Bukidnon","126699","Quarry Elementary School"]
["Bukidnon","126725","Cawayan ES"]
["Bukidnon","126771","Palacpacan Elementary School"]
["Bukidnon","126794","Balaon Elementary School"]
["Bukidnon","126821","San Isidro ES"]
["Bukidnon","199509","Pasayanon ES"]
["Bukidnon","199542","Bacayan Primary School"]
["Bukidnon","405030","Kolampion Adventist Elementary School"]
["Bukidnon","459466","Don Carlos Baptist Christian School, Inc."]
["Bukidnon","459565","Dangcagan Baptist Learning Center"]
["Bukidnon","500681","South Dalurong Integrated School"]
["Cagayan de Oro City","127970","Baluarte Elementary School"]
["Cagayan de Oro City","127981","Midkiwan Elementary School"]
["Cagayan de Oro City","128005","Pamalihi Elementary School"]
["Cagayan de Oro City","405212","The Fisher's Valley Academy"]
["Cagayan de Oro City","407897","Christian Little Day Care Center"]
["Cagayan de Oro City","407983","Graceville Learning School, Inc."]
["Cagayan de Oro City","462042","Little Me Academy"]
["Camiguin","126893","Tangaro ES"]
["Camiguin","126929","Cabuan ES"]
["El Salvador","127667","Amoros ES"]
["El Salvador","127675","Kibonbon ES"]
["Gingoog City","128023","Dinawehan Elementary School"]
["Gingoog City","128058","Roy Vizcara Elementary School"]
["Gingoog City","462506","Jeremiah Christian Academy Gingoog City Inc"]
["Gingoog City","500800","Dukdokaan Integrated School - Elem"]
["Iligan City","128109","Kabacsanan ES"]
["Iligan City","128132","Pudog ES"]
["Iligan City","405285","Iligan Capitol College"]
["Iligan City","405297","San Miguel Village School, Inc."]
["Iligan City","463041","Sto. Nino Academy of Iligan"]
["Lanao del Norte","126949","Abaga ES"]
["Lanao del Norte","126959","Pendulunan ES"]
["Lanao del Norte","126998","San Vicente ES"]
["Lanao del Norte","127022","Ilian ES"]
["Lanao del Norte","127050","Tugar ES"]
["Lanao del Norte","127084","El Salvador ES"]
["Lanao del Norte","127112","Camp I Elementary School"]
["Lanao del Norte","127123","Sta. Cruz ES"]
["Lanao del Norte","127157","Pualas PS"]
["Lanao del Norte","127178","Camp Allere ES"]
["Lanao del Norte","127197","Katubuan PS"]
["Lanao del Norte","127234","Teofilo Morales Sr. MES"]
["Lanao del Norte","200535","Maliwanag Primary School"]
["Lanao del Norte","407967","F. Margaret Anne Learning Center of Maigo"]
["Lanao del Norte","460515","Tubod Christian  Academy"]
["Malaybalay City","126545","Lunokan ES"]
["Malaybalay City","126572","San Roque ES"]
["Malaybalay City","199518","Kibalabag ES"]
["Malaybalay City","405002","Malaybalay UMC Ecumenical School"]
["Misamis Occidental","127258","Mitazan IS"]
["Misamis Occidental","127283","Punta Sulong ES"]
["Misamis Occidental","127317","Bunawan ES"]
["Misamis Occidental","127326","Pestanas ES"]
["Misamis Occidental","127351","Kinangay Norte PS"]
["Misamis Occidental","127382","Napangan ES"]
["Misamis Occidental","127411","BURGOS ELEMENTARY SCHOOL"]
["Misamis Occidental","127420","Luzaran ES"]
["Misamis Occidental","127489","Aquino Integrated School"]
["Misamis Occidental","127522","Libertad Elementary School"]
["Misamis Occidental","127555","Fulgencio Baloria-Sinonoc ES"]
["Misamis Occidental","127579","Sinuza ES"]
["Misamis Occidental","201010","Mabas PS"]
["Misamis Occidental","461009","Baliangao Evangelical Learning Center"]
["Misamis Oriental","127604","Binitinan ES"]
["Misamis Oriental","127635","Aposkahoy II ES"]
["Misamis Oriental","127650","Madaguing ES"]
["Misamis Oriental","127692","Pagahan ES"]
["Misamis Oriental","127718","Bolisong ES"]
["Misamis Oriental","127754","Cogon ES"]
["Misamis Oriental","127763","Pangayawan ES"]
["Misamis Oriental","127785","Magsaysay CS"]
["Misamis Oriental","127825","Palaopao es"]
["Misamis Oriental","127834","Bagocboc ES"]
["Misamis Oriental","127883","Macopa ES"]
["Misamis Oriental","127900","Dayawan ES"]
["Misamis Oriental","127933","Maputi ES"]
["Misamis Oriental","201505","Bauk-Bauk ES"]
["Misamis Oriental","405169","Opol Grace Christian School"]
["Misamis Oriental","461509","Mopstea, Inc. Learning Center Villa"]
["Misamis Oriental","500251","Lantad IS"]
["Misamis Oriental","500520","Bulahan IS"]
["Oroquieta City","127449","Pines CES"]
["Oroquieta City","495502","Firm Foundation Christian Academy"]
["Ozamis City","128187","Antero U. Roa Central School"]
["Ozamis City","405310","La Salle University -Ozamiz Integrated School"]
["Ozamis City","407777","Nazarene Kiddie Learning Center Ozamiz, Inc."]
["Tangub City","128228","Manga ES"]
["Tangub City","128255","Silangit ES"]
["Tangub City","499004","Lighthouse Cool Bridge Academy, Inc."]
["Valencia City","126857","Sinalayan ES"]
["Valencia City","400273","Golden Harvest Christian Academy"]
["Valencia City","500705","Mt. Nebo ES"]
["Compostela Valley","128284","Barubo ES"]
["Compostela Valley","128293","Datu Ampunan ES"]
["Compostela Valley","128326","Tuk-an ES"]
["Compostela Valley","128350","Hijo ES"]
["Compostela Valley","128363","Anislagan ES"]
["Compostela Valley","128390","Mauswagon ES"]
["Compostela Valley","128416","Salvacion ES"]
["Compostela Valley","128458","Alimadmad ES"]
["Compostela Valley","128483","San Juan ES"]
["Compostela Valley","128506","New Sibonga ES"]
["Compostela Valley","128518","La Purisima ES"]
["Compostela Valley","128552","Napnapan ES"]
["Compostela Valley","204007","Bankerohan Sur ES"]
["Compostela Valley","405320","Assumption Academy of Compostela"]
["Compostela Valley","464013","Nabunturan Christian Learning Center-  Comval, Inc."]
["Compostela Valley","464033","Emilio R. Gacal Sr. Christian School"]
["Davao City","129486","V. Corcuera ES"]
["Davao City","129495","Lourdes ES"]
["Davao City","129527","Mudiang ES"]
["Davao City","129555","Cesareo VillaAbrille Elementary School"]
["Davao City","129565","Dominga ES"]
["Davao City","129590","Don Mariano Marcos ES"]
["Davao City","129634","Upian ES"]
["Davao City","129651","SIR ES"]
["Davao City","129685","Gasco ES"]
["Davao City","129699","Lapu Lapu ES"]
["Davao City","129721","Leon A. Garcia Sr. ES"]
["Davao City","405429","AMA Basic Education ( formerly St. Augustine International School)"]
["Davao City","405443","Davao Marianne Preschool Inc"]
["Davao City","405486","Southern Phils. Polytechnic College, Inc."]
["Davao City","405534","Adams Pre-School, Inc."]
["Davao City","405569","Holy Cross College of Calinan, Inc."]
["Davao City","466019","Southern Philippines Baptist Theological Seminary, Inc."]
["Davao City","466036","The Little Lamb Schoolhouse (Bacaca Road, 19-B)"]
["Davao City","466068","Pamulaan Center for IP Education,Inc."]
["Davao City","466121","Beatitudes of Jesus Christ Academy of Davao"]
["Davao City","466137","Vines and Branches Montessori School Incol"]
["Davao del Norte","101973","Kamingawan ES"]
["Davao del Norte","128579","Magbaad ES"]
["Davao del Norte","128621","New Casay ES"]
["Davao del Norte","128645","Adelanto ES"]
["Davao del Norte","128666","Patel Elementary School"]
["Davao del Norte","128711","Mambing ES"]
["Davao del Norte","128750","La Libertad ES"]
["Davao del Norte","204520","Clementa F. Royo Elementary School"]
["Davao del Norte","204529","Ngan  Elementary School"]
["Davao del Norte","464510","Carroll A. Baltimore Christian Academy, Inc. - Tuganay Branch"]
["Davao del Norte","464535","Philippine Baptist Christian College of Mindanao, Inc. - Sto. Tomas Branch"]
["Davao del Sur","128812","Bansalan Central Elem. School"]
["Davao del Sur","128821","Tinongtongan ES"]
["Davao del Sur","128897","Marcos Sombilon Elementary School"]
["Davao del Sur","128918","Sto. Niño Elementary School"]
["Davao del Sur","128943","Tacul Elementary School"]
["Davao del Sur","129013","Cabligan ES"]
["Davao del Sur","129037","Sulatorio ES"]
["Davao del Sur","129084","Pogpog ES"]
["Davao del Sur","129099","SANTA CRUZ CES"]
["Davao del Sur","205005","Molopolo ES"]
["Davao del Sur","465012","GRS School of Bansalan, Inc."]
["Davao Occidental","128850","Jose Villanueva ES"]
["Davao Occidental","128961","Aglaungan Elementary School"]
["Davao Occidental","128970","J. Doromal ES"]
["Davao Occidental","129003","Manuel Peralta ES"]
["Davao Occidental","129072","Tinina ES"]
["Davao Occidental","205015","Camalig ES"]
["Davao Occidental","205053","New Mabuhay ES"]
["Davao Oriental","129153","Campawan ES"]
["Davao Oriental","129204","San Jose ES"]
["Davao Oriental","129225","San Luis ES"]
["Davao Oriental","129241","Mercedes Elementary School"]
["Davao Oriental","129336","R. Sumambot ES"]
["Davao Oriental","129353","Limentuog ES"]
["Davao Oriental","205512","Nursery ES"]
["Digos City","129748","Colorado ES"]
["Digos City","129757","Pedro Basalan ES"]
["Digos City","405574","Mindanao Montessori School, Inc."]
["Island Garden City of Samal","128606","Mambago-B Elementary School"]
["Island Garden City of Samal","128684","Bandera Elementary School"]
["Island Garden City of Samal","499518","Panabo Faith Mission Academy IGACOS Banch"]
["Mati City","129186","Paniquian ES"]
["Mati City","129303","Calasagan ES"]
["Mati City","129319","Tagboa ES"]
["Mati City","129378","Culian ES"]
["Mati City","129412","Asuncion Rondina Perez MS"]
["Mati City","129424","Tuburan Village ES"]
["Mati City","257001","Jose C. Martinez Jr. Elementary School"]
["Panabo City","129781","Cabili ES"]
["Panabo City","129822","Waterfall ES"]
["Panabo City","467011","Northspring Academy,Inc."]
["Tagum City","128795","MANGGA ELEMENTARY SCHOOL"]
["Tagum City","405380","Meem Learning Center, Inc."]
["Tagum City","500425","Liboganon Integrated School"]
["Cotabato City","131264","Don E. Sero Elementary School"]
["Cotabato City","405803","Nahdah Central Academy (Madrasatun Nahdatil Islamiah)"]
["Cotabato City","469531","Kutangbato Shalom Learning Center, Inc."]
["General Santos City","131289","Dadiangas East ES"]
["General Santos City","131284","Irineo Santiago Elementary School"]
["General Santos City","405844","New Era University, General Santos City Branch"]
["General Santos City","131316","Paopao Elementary School"]
["General Santos City","405854","The Heritage Academy of the Philippines"]
["Kidapawan City","131358","Paco Central Elementary School"]
["Kidapawan City","131366","Katipunan Elementary School"]
["Kidapawan City","407758","Kidapawan Childrens Education Center"]
["Koronadal City","131384","Sabino ES"]
["Koronadal City","405877","FUMC Academy of Koronadal City, Inc."]
["Koronadal City","471021","Korbel Foundation College, Inc."]
["North Cotabato","100863","Colonsalnafil Elementary School"]
["North Cotabato","129842","Mapurok ES"]
["North Cotabato","129876","Tubak ES"]
["North Cotabato","129901","Datu Mantangkil ES"]
["North Cotabato","129911","Kinawayan ES"]
["North Cotabato","129946","Pinamulaan ES"]
["North Cotabato","129967","Malapag ES"]
["North Cotabato","130008","Lower Paatan ES"]
["North Cotabato","130019","Nangaan ES"]
["North Cotabato","130057","Kinarum ES"]
["North Cotabato","130078","Juan Enghog Mem. ES"]
["North Cotabato","130087","KATIPUNAN 1 ELEMENTARY SCHOOL"]
["North Cotabato","130121","Malungon ES"]
["North Cotabato","130147","Estado ES"]
["North Cotabato","130174","Midsayap Pilot ES"]
["North Cotabato","130188","Malamote ES"]
["North Cotabato","130220","Nes ES"]
["North Cotabato","130246","Liboo ES"]
["North Cotabato","130283","Balacayon Elementary School"]
["North Cotabato","130291","Lower Pangangcalan Primary School"]
["North Cotabato","130317","Barungis ES"]
["North Cotabato","130354","Hope ES"]
["North Cotabato","130391","Bituan ES"]
["North Cotabato","207501","Kulawan ES"]
["North Cotabato","207510","Tambac ES"]
["North Cotabato","207545","Dilanggalen ES"]
["North Cotabato","405594","Greenfield SDA ES-Napanlahan-Arakan"]
["North Cotabato","405637","Pikit Montessori Educational Center Inc."]
["North Cotabato","407765","Pamulaan Center for IP Education, Inc. - Deisek Ne Beni Campus"]
["North Cotabato","467548","Sibsib Southern Baptist Church Learning Center Inc."]
["Sarangani","103062","Rancho Primary School"]
["Sarangani","130451","Calonkambing ES"]
["Sarangani","130469","Margus Elementary School"]
["Sarangani","130505","M. Quinto ES"]
["Sarangani","130540","Reganit ES"]
["Sarangani","130598","Datal Tampal Elementary School"]
["Sarangani","130611","Malandag CES Sped Center"]
["Sarangani","208020","Felipe K. Constantino ES"]
["Sarangani","405653","Notre Dame of Bolul, T'murok, Inc."]
["Sarangani","500270","Datal Batong Integrated School"]
["Sarangani","500289","Banlibato IS"]
["Sarangani","500648","Salimama ES"]
["Sarangani","500926","Sofan Integrated School"]
["South Cotabato","130628","P. Septin ES (Imbong ES)"]
["South Cotabato","130652","Little Baguio ES"]
["South Cotabato","130686","Tafal ES"]
["South Cotabato","130714","Sotelo ES"]
["South Cotabato","130736","Bentung ES"]
["South Cotabato","130750","Viray-Lising ES"]
["South Cotabato","130785","Talahik ES"]
["South Cotabato","130806","Datal Bob ES"]
["South Cotabato","130856","Escobillo ES"]
["South Cotabato","130866","Taplan ES"]
["South Cotabato","130905","Lunen ES"]
["South Cotabato","208519","Kiantay ES"]
["South Cotabato","405693","Thelsan School Inc."]
["South Cotabato","405711","Notre Dame of Sto. Niño, Inc."]
["South Cotabato","468536","Elim Christian Learning Center of Polomolok, Inc."]
["Sultan Kudarat","103711","Datu Manguda Capitan Elementary School"]
["Sultan Kudarat","130945","Nalum Elementary School"]
["Sultan Kudarat","130954","S'Daf Panamin Primary School"]
["Sultan Kudarat","130986","New Tarlac Elementary School"]
["Sultan Kudarat","131019","Bual Elementary School"]
["Sultan Kudarat","131057","Malegdeg Elementary School"]
["Sultan Kudarat","131059","Nati Elementary School"]
["Sultan Kudarat","131086","Sigayan Elementary School"]
["Sultan Kudarat","131131","Villamonte Elementary School"]
["Sultan Kudarat","131162","Tamnag Central School"]
["Sultan Kudarat","131194","Bagumbayan Elementary School"]
["Sultan Kudarat","131205","Tual Elementary School"]
["Sultan Kudarat","209032","Balnate Elementary School"]
["Sultan Kudarat","469017","Esperanza Alliance Learning Center, Inc."]
["Sultan Kudarat","500437","Marawir Integrated School"]
["Sultan Kudarat","500759","Chua Elementary School"]
["Tacurong City","131238","Rajah Muda ES"]
["Agusan del Norte","131415","A.P. Quiamjot ES"]
["Agusan del Norte","131433","Jabonga Central Elementary School"]
["Agusan del Norte","131458","Bonifacio ES"]
["Agusan del Norte","131481","Buhang ES"]
["Agusan del Norte","131544","Cadahondahonan ES"]
["Agusan del Norte","131545","Prospero D. Salas ES"]
["Agusan del Norte","211505","Bokbokon Elementary School"]
["Agusan del Norte","408369","BUENAVISTA BAPTIST CHRISTIAN ACADEMY, INC."]
["Agusan del Sur","131661","San Marcos ES"]
["Agusan del Sur","131676","Imelda ES"]
["Agusan del Sur","131697","Batac Elementary School"]
["Agusan del Sur","131731","Mabuhay ES"]
["Agusan del Sur","131742","San Miguel ES"]
["Agusan del Sur","131767","Sagunto ES"]
["Agusan del Sur","131802","New Maasin ES"]
["Agusan del Sur","131833","Alegria ES"]
["Agusan del Sur","131865","Causwagan ES"]
["Agusan del Sur","131876","Mahayahay ES"]
["Agusan del Sur","131902","Del Monte ES"]
["Agusan del Sur","131942","Culi Elementary School"]
["Agusan del Sur","131979","Don Flaviano ES"]
["Agusan del Sur","132002","Kapatungan Elementary School"]
["Agusan del Sur","132016","San Roque ES"]
["Agusan del Sur","212025","Kalampayan ES"]
["Agusan del Sur","407682","EVAN CHRISTIAN LEARNING CENTER OF PROSPERIDAD AGUSAN DEL SUR INC"]
["Agusan del Sur","408624","Josiah Ken Christian School, Inc."]
["Agusan del Sur","600105","PHILIPPINE NORMAL UNIVERSITY"]
["Bayugan City","131627","Berseba ES"]
["Bayugan City","281501","Dalikan Elementary School"]
["Bayugan City","472023","OLGINA KINDERGARTEN SCHOOL"]
["Bislig City","132635","San Roque Central Elementary School"]
["Bislig City","235001","P. M. Clar Primary School"]
["Butuan City","132056","Doongan Elementary School"]
["Butuan City","132065","Buhangin Elementary School"]
["Butuan City","132108","San Roque ES"]
["Butuan City","212504","Tud-ol ES"]
["Butuan City","408160","BUTUAN FREE METHODIST EDUCATIONAL CENTER,INC."]
["Butuan City","472514","Philippine Electronics and Communication Institute of Technology"]
["Butuan City","500317","La Soledad ES"]
["Cabadbaran City","131580","South Cabadbaran CES"]
["Cabadbaran City","500312","North Cabadbaran CES"]
["Dinagat Island","132398","Justiniana ES"]
["Dinagat Island","132421","Esperanza ES"]
["Dinagat Island","132516","Don Ruben Elementary School"]
["Siargao","132124","Cabawa Elementary School"]
["Siargao","132133","Sta Felomina Elementary School"]
["Siargao","132166","Cancohoy Elementary School"]
["Siargao","132192","San Roque Elementary School"]
["Siargao","132225","Bongdo Elementary School"]
["Siargao","473002","Kid's House Learning Center"]
["Surigao City","132250","Hanigad ES"]
["Surigao City","132278","Bilabid ES"]
["Surigao City","132303","Sumilom ES"]
["Surigao City","406003","Jesus Cares Foundational Learning Academy"]
["Surigao del Norte","132341","Oslao Elementary School"]
["Surigao del Norte","132387","Taganito ES"]
["Surigao del Norte","132442","San Francisco ES"]
["Surigao del Norte","132469","Badas Elementary School"]
["Surigao del Norte","132478","Placer Central Elementary School"]
["Surigao del Norte","132547","SALVACION ES"]
["Surigao del Norte","474009","Mt. Carmel Catholic Kindergarten School of Tagana-an"]
["Surigao del Norte","474019","Badas Learning Center"]
["Surigao del Sur","132642","Arangasa Elementary School"]
["Surigao del Sur","132657","Buntalid Elementary School"]
["Surigao del Sur","132695","Carrascal Central Elementary School"]
["Surigao del Sur","132712","Madrelino Elementary School"]
["Surigao del Sur","132734","Hinatuan North Central Elementary School"]
["Surigao del Sur","132772","Diatagon Elementary School"]
["Surigao del Sur","132786","Barcelona Central Elementary School"]
["Surigao del Sur","132809","Salvacion Primary School"]
["Surigao del Sur","132846","Antipolo Elementary School"]
["Surigao del Sur","132891","Umalag Elementary School"]
["Surigao del Sur","132925","Tagongon Elementary School"]
["Surigao del Sur","132951","Tabon-tabon Elementary School"]
["Surigao del Sur","214506","Sto. Nino Primary School"]
["Surigao del Sur","406033","Mother of Mercy Academy"]
["Surigao del Sur","500050","Esperanza Elementary School"]
["Surigao del Sur","500570","Palasao Elementary School"]
["Tandag City","132977","San Jose Elementary School"]
["Basilan","133034","Lantawan Proper PS"]
["Basilan","133072","Lukbaldaya PS"]
["Basilan","133081","Babag ES"]
["Basilan","133112","Sumisip CES"]
["Basilan","133143","Bucalao PS"]
["Basilan","133191","Jose Abad Santos PS"]
["Basilan","133200","Mangalut ES"]
["Basilan","409105","Tabuan-Lasa Pilot Madrasah"]
["Lamitan City","133018","Suguemmul ES"]
["Lanao del Sur - I","133229","Bubong-Lalabuan ES"]
["Lanao del Sur - I","133258","Bacolod PS"]
["Lanao del Sur - I","133264","Lumbac ES"]
["Lanao del Sur - I","133294","Pagalongan PS"]
["Lanao del Sur - I","133327","Burua PS"]
["Lanao del Sur - I","133357","Tuca-Camalig PS"]
["Lanao del Sur - I","133366","Sultan Matanog PS"]
["Lanao del Sur - I","133401","Mangondato ES"]
["Lanao del Sur - I","133420","Gadongan ES"]
["Lanao del Sur - I","133462","Panggao PS"]
["Lanao del Sur - I","133471","Pendolonan PS"]
["Lanao del Sur - I","133521","Malaigang ES"]
["Lanao del Sur - I","133542","Punud ES"]
["Lanao del Sur - I","215514","Salocod PS"]
["Lanao del Sur - I","215549","Minaring PS"]
["Lanao del Sur - I","254515","Abinal ES"]
["Lanao del Sur - II","133564","RAYA ELEMENTARY SCHOOL"]
["Lanao del Sur - II","133604","Rantian Elementary School"]
["Lanao del Sur - II","133627","Coloyan Primary School"]
["Lanao del Sur - II","133645","Sundig Primary School"]
["Lanao del Sur - II","133680","Calalon Primary School"]
["Lanao del Sur - II","133698","Raya Miniros PS"]
["Lanao del Sur - II","133718","Sabanding PS"]
["Lanao del Sur - II","133760","Tiongcop ES"]
["Lanao del Sur - II","133815","Porug PS"]
["Lanao del Sur - II","133847","Tubaran ES"]
["Lanao del Sur - II","133856","Salipongan PS"]
["Lanao del Sur - II","216026","Sapa Primary School"]
["Lanao del Sur - II","216071","Madaya PS"]
["Lanao del Sur - II","476005","Al-Shadiq Islamic School"]
["Maguindanao I","133882","Kaya-Kaya ES"]
["Maguindanao I","133957","Malala ES"]
["Maguindanao I","133982","Pagatin ES"]
["Maguindanao I","134085","Mamasabulod ES"]
["Maguindanao I","134125","Paglat CES"]
["Maguindanao I","134192","Sambolawan Elementary School"]
["Maguindanao I","134247","BULUDAN PRIMARY SCHOOL"]
["Maguindanao I","216536","Maitumaig ES"]
["Maguindanao I","216555","Mangelen Andang ES"]
["Maguindanao I","216615","Langgapanan ES"]
["Maguindanao I","216655","Angkokoy ES"]
["Maguindanao I","408716","J-Rapha Learning Center"]
["Maguindanao II","133899","Korosuyan ES"]
["Maguindanao II","133904","Nabalawag ES"]
["Maguindanao II","133998","Lasdan PS"]
["Maguindanao II","134023","Bagumbayan ES"]
["Maguindanao II","134063","Marantao PS"]
["Maguindanao II","134103","Punta CES"]
["Maguindanao II","134150","Nuling CES"]
["Maguindanao II","134173","Tapayan CES"]
["Maguindanao II","134279","Kinimi Elementary School"]
["Maguindanao II","134288","Resa Elementary School"]
["Maguindanao II","216565","Guiawa PS"]
["Maguindanao II","408654","Kampilan Learning Center, Inc."]
["Maguindanao II","408942","Christian Gathering Learning Center - Sarmiento"]
["Marawi City","134930","Madaya Lilod-I ES"]
["Marawi City","134956","Camp Bagong Amai Pakpak ES"]
["Marawi City","478002","Bubong Marzok Memorial College Foundation"]
["Marawi City","478010","Lake Lanao Foundation , Inc"]
["Sulu","134299","Bwansa Elementary School"]
["Sulu","134338","Salih Yusah ES"]
["Sulu","134370","Rasul ES"]
["Sulu","134377","Ipil PS"]
["Sulu","134407","Parian Kayawan PS"]
["Sulu","134444","Bualoh Lipid ES"]
["Sulu","134459","Matatal ES"]
["Sulu","134509","Tong Gasang PS"]
["Sulu","134519","Buka-Buka PS"]
["Sulu","134562","Mudjunun Elementary School"]
["Sulu","134591","Sisangat ES"]
["Sulu","134605","Hj.Usman Sangkalang ES"]
["Sulu","134634","Kagay ES"]
["Sulu","134672","Dungon ES"]
["Sulu","217043","Lawm Buwahan PS"]
["Sulu","252503","Kanjarang ES"]
["Sulu","252519","Mangal Mangal PS"]
["Sulu","477008","Southwestern Mindanao Islamic Institute"]
["Tawi-Tawi","134702","Luuk Buntal ES"]
["Tawi-Tawi","134719","Panglima Annao ES"]
["Tawi-Tawi","134746","Silubbog PS Annex"]
["Tawi-Tawi","134771","Sapah ES"]
["Tawi-Tawi","134820","Banaran CES"]
["Tawi-Tawi","134845","Laud Sitangkai Annex ES"]
["Tawi-Tawi","134865","Bintawlan ES"]
["Tawi-Tawi","134880","Himba PS"]
["Tawi-Tawi","217515","Salip Angkaya Patal ES"]
["Tawi-Tawi","217533","Hji. Mokhtar Sulayman ES"]
["Abra","134972","Macarcarmay ES"]
["Abra","135005","San Jose ES"]
["Abra","135044","Udangan PS"]
["Abra","135067","Lan-ag ES"]
["Abra","135076","Pacoc ES"]
["Abra","135104","Lul-luno ES"]
["Abra","135122","Malamsit Elementary School"]
["Abra","135148","Villa Mercedes ES"]
["Abra","135173","Bilabila ES"]
["Abra","135212","Lagayan CS"]
["Abra","218505","Sta. Rosa PS"]
["Abra","500743","La Paz Integrated School"]
["Apayao","135239","Milagrosa ES"]
["Apayao","135263","Buguit Elementary School"]
["Apayao","135299","Binuan ES"]
["Apayao","135332","Calabigan ES"]
["Apayao","135335","Dagupan ES"]
["Apayao","135369","San Mariano ES"]
["Apayao","219026","Lt. Balag PS"]
["Baguio City","136403","Apolinario Mabini ES"]
["Baguio City","136412","Lindawan Elementary School"]
["Baguio City","406219","Baguio Patriotic High School"]
["Baguio City","406273","St. Vincent de Ferrer Learning Center"]
["Baguio City","409140","ST. JOHN PAUL II LEARNING CENTER, INC."]
["Baguio City","481577","Pines City Baptist Academy"]
["Benguet","135391","Ja'pa PS"]
["Benguet","135421","Nagawa ES"]
["Benguet","135444","Kiweng PS"]
["Benguet","135469","Bayoyo-Lukingan-Awal ES"]
["Benguet","135495","Sagandoy ES"]
["Benguet","135530","Oling Elementary School"]
["Benguet","135550","Chapides ES"]
["Benguet","135568","Cuba Bo. Sch."]
["Benguet","135604","Napsong Bo. Sch."]
["Benguet","135619","Bekkel ES"]
["Benguet","135667","Sapid Elementary School"]
["Benguet","135678","Mating Mang-osan ES"]
["Benguet","135715","Toybongan ES"]
["Benguet","219502","Barbarit PS"]
["Benguet","219530","Yugo-Bantales Elementary School"]
["Benguet","406156","San Jose School Of La Trinidad, Inc. (Elem. Dept.)"]
["Benguet","479522","Philippines Asia Bible College Foundation, Inc."]
["Ifugao","135750","Haitan PS"]
["Ifugao","135762","Ubao ES"]
["Ifugao","135813","Banaue CS"]
["Ifugao","135822","Ducligan ES"]
["Ifugao","135857","Maggok ES"]
["Ifugao","135885","Dulao ES"]
["Ifugao","135894","Tupaya Elementary School"]
["Ifugao","135924","Chumang ES"]
["Ifugao","135955","Tinoc CS"]
["Kalinga","135959","Ab-abaan Elementary School"]
["Kalinga","135981","Salegseg Primary School"]
["Kalinga","135994","Mabongtot Elementary School"]
["Kalinga","136040","Camalog Elementary School"]
["Kalinga","136066","Anonang Elementary School"]
["Kalinga","136076","Rizal Central School"]
["Kalinga","136141","Dalkinsan Elementary School"]
["Mt. Province","136186","Kadaclan Elementary School"]
["Mt. Province","136214","Letang Elementary School"]
["Mt. Province","136247","Suquib Primary School"]
["Mt. Province","136256","Dantay Elementary School"]
["Mt. Province","136281","Addang Elementary School"]
["Mt. Province","136319","Gayang Elementary School"]
["Mt. Province","136328","Sabangan Central School"]
["Mt. Province","136370","Mabalite Elementary School"]
["Mt. Province","221012","New LubonElementary School"]
["Tabuk City","136092","Bulo West Elementary School"]
["Tabuk City","136106","Matucnang Elementary School"]
["Tabuk City","136169","Guilayon Elementary School"]
["Tabuk City","406191","Tabuk Seventh-day Adventist School"]
["Tabuk City","480510","Kidz Space Learning Center"]
["Caloocan City","136630","Sta. Quiteria ES"]
["Caloocan City","136655","Sampaguita Elementary School"]
["Caloocan City","406717","St. Clare College of Caloocan"]
["Caloocan City","407961","Jesus The Messiah Community School"]
["Caloocan City","408429","Our Mother of Grace School, Inc."]
["Caloocan City","483507","Regina Coeli Education Center Foundation, Inc."]
["Caloocan City","483558","Rhexane Academy, Inc."]
["Caloocan City","483588","St. Catherine de Novaliches School, Inc."]
["Caloocan City","483627","St. Vincent Christian Academy of Caloocan"]
["Caloocan City","483633","Joseah School of Caloocan"]
["City of San Juan","136749","Kabayanan ES"]
["Las Piñas City","136777","Las Pinas ES Central"]
["Las Piñas City","136781","Vergonville ES"]
["Las Piñas City","407104","St. Mark's Institute"]
["Las Piñas City","407133","OB Montessori Center"]
["Las Piñas City","408730","Grace and Angels Tutorial Center, Inc."]
["Las Piñas City","486513","Magnificat School of Mary Inc."]
["Las Piñas City","486549","Holy Infant's Playhouse"]
["Makati City","136689","Guadalupe Viejo ELementary School"]
["Makati City","406839","Learn and Do Tutorial Center"]
["Makati City","408599","Christian Legacy Integrated Learning and Tutorial Center Corp."]
["Makati City","485044","Pristine Montessori Inc."]
["Makati City","485058","Kids Playlab Preschool, Inc."]
["Malabon City","136852","Acacia ES"]
["Malabon City","408049","Sampedro Children's Learning Center (SCLC), Inc."]
["Malabon City","487520","White Angel Academy"]
["Mandaluyong City","406757","Jose Rizal University"]
["Mandaluyong City","484012","CURUM Christian School, Inc."]
["Manila","136428","Gregoria de Jesus ES"]
["Manila","136438","Magat Salamat Elementary School"]
["Manila","136474","Dr. Celedonio A. Salvador Elementary School"]
["Manila","406296","St. Paul School - Tondo"]
["Manila","406307","Holy Heart Christian Academy, Inc."]
["Manila","406349","Regina Apostolorum Academy"]
["Manila","407875","EDRA Learning Center Inc."]
["Manila","408189","St. Lucy Integrated School of Manila"]
["Manila","408601","Mission Elect of God Academy Inc."]
["Manila","409180","Learning Time School, Inc."]
["Manila","482060","St. Vincent Blessed School of Manila"]
["Marikina City","136681","Fortune ES"]
["Marikina City","406769","Midtown Puso Child Dev't. Center"]
["Marikina City","406793","Kostka School of Marikina"]
["Marikina City","408938","Laro, Lapis at Libro, Inc."]
["Marikina City","484547","Marikina Mustard Seed Christian Academy"]
["Muntinlupa City","136913","Cupang ES Annex"]
["Muntinlupa City","407310","Christian Love School, Inc."]
["Muntinlupa City","407345","Anima Christi Center for Learning and Human Dev't Inc."]
["Muntinlupa City","488521","Sophie Roquero Kiddie School, Inc."]
["Navotas","136856","Bagumbayan Elementary School"]
["Navotas","136862","North Bay Boulevard Elementary School"]
["Paranaque City","136762","Don Galo ES"]
["Paranaque City","406986","Pean Integrated School of  Paranaque, Inc."]
["Paranaque City","407041","Olivarez College"]
["Paranaque City","407753","DOREA ACADEMY"]
["Paranaque City","408418","Philippine Christian School of Tomorrow Home Education Program"]
["Paranaque City","486022","St. Theresa De Avila School of Parañaque"]
["Pasay City","136587","Epifanio delos Santos ES"]
["Pasay City","136596","Villamor Airbase ES"]
["Pasay City","483018","BERMAS ACADEMY, INC."]
["Pasay City","485016","Food for Hungry Minds School, Inc."]
["Pasig City","406870","Escuela Catolica De San Sebastian"]
["Pasig City","406905","St. Paul College of Pasig"]
["Pasig City","406907","Sta. Rosa Catholic School"]
["Pasig City","409166","Sharp Kid Learning Center Inc."]
["Pasig City","485559","St. Paul College Pasig -Fr. Louis Chauvet Foundation School"]
["Pasig City","485596","Greenwoods Kiddie Center of  the  Sacred Heart"]
["Quezon City","136493","San Jose Elementary School"]
["Quezon City","136518","Bonifacio Memorial ES"]
["Quezon City","136536","Nagkaisang Nayon ES"]
["Quezon City","136581","Marcelo H. del Pilar ES"]
["Quezon City","405965","Global Minds Academy of the Philippines, Inc."]
["Quezon City","406441","Francisco School"]
["Quezon City","406462","Grace Montessori School of Novaliches"]
["Quezon City","406474","Divine Grace School"]
["Quezon City","406518","Edlen Learning Institute, Inc."]
["Quezon City","406555","School of the Holy Spirit of Quezon City"]
["Quezon City","406596","National College of Business and Arts - Cubao (Main)"]
["Quezon City","406601","Roosevelt College, Inc."]
["Quezon City","407680","The Builders' School Building Ideas, Crafting Solutions, Inc."]
["Quezon City","408552","Joyful Hands Kiddie Center of Cubao, QC, Inc"]
["Quezon City","482507","Fremont Learning Academy, Inc."]
["Quezon City","482522","Falcon School, Inc."]
["Quezon City","482573","Pax Christi Learning Castor of Quezon City"]
["Quezon City","482619","Atherton School, Inc."]
["Quezon City","482690","Blessed Redeemer Christian School"]
["Quezon City","482727","Olympian Preparatory & English School"]
["Quezon City","482766","Peacemaker International Christian Academy Branch"]
["Quezon City","482768","Holy Child Academy - St. Francisville Branch"]
["Quezon City","482769","Jesus Christ's Covenant Global Church-Saint Joshua School"]
["Quezon City","482770","CzeCet Christian School, Inc."]
["Quezon City","482771","Heuin Dol World Mission Christian Academy"]
["Quezon City","482772","Gospel Christian School Inc. (GCSI)"]
["Quezon City","482773","Flor de Grace School, Inc."]
["Quezon City","482774","St. Matthew de Asis School"]
["Quezon City","482775","The Abba's Orchard School, Inc"]
["Quezon City","482776","Marist School of Quezon City, Inc."]
["Quezon City","482777","Piagetian Guided Educational Center"]
["Quezon City","482779","St. Pascual Integrated School Inc."]
["Quezon City","482780","SGS-Shephedrs's Grace School"]
["Quezon City","482781","Holy Child Academy - North Fairview"]
["Quezon City","482782","Divine Grace Christian Academy of QC"]
["Quezon City","482783","Bethel Christian School of Holy Spirit, Inc."]
["Quezon City","482785","Breakthrough Christian Academy, Inc."]
["Quezon City","482789","King Solomon Christian School International, Inc."]
["Quezon City","482790","King Solomon Christian School International, Inc.-Extn."]
["Quezon City","482791","Stepstone Christian Academy"]
["Quezon City","482792","Saint Nicholas of Bari School"]
["Quezon City","482793","St. Zyrile de Alexandria School"]
["Quezon City","482795","Our Lady of Victories Catholic School of QC"]
["Quezon City","482796","Brittany Christian Academy, Inc."]
["Quezon City","482798","Holy Spirit Preparatory Academy of QC"]
["Quezon City","482799","Saint Paul Educational Center"]
["Quezon City","482800","Anima Christi Academy, Inc."]
["Quezon City","482802","Quezon City Christ is Lord Academy"]
["Quezon City","482803","Manchester United School Foundation Inc."]
["Quezon City","482804","Lifegiver Educational Center, Inc."]
["Quezon City","482805","Saints And Angels School"]
["Quezon City","482806","Castle Ville Academy"]
["Quezon City","482807","Cradle of Learners (Inclusive School for Individualized Educ., Inc"]
["Quezon City","482808","Immanuel Hope Christian Academy, Inc."]
["Quezon City","482809","PMF Elizabeth Academy, Inc."]
["Quezon City","482810","C.R.I.B. Ideal School"]
["Quezon City","482811","DML Montessori School of Quezon City, Inc."]
["Quezon City","482812","Wordlab School, Inc."]
["Quezon City","482813","Gymnazo Christian Academy"]
["Quezon City","482814","Mary & Child Academy of Sauyo Inc."]
["Quezon City","482815","Temple Hill International School, Inc."]
["Quezon City","482816","Little Lamb Child Care & Dev't. Center"]
["Quezon City","482817","St. Augustine International School"]
["Quezon City","482818","Paisley Garden Academe of QC., Inc."]
["Quezon City","482819","St. Martin Bright Kids School"]
["Quezon City","482820","Casa De Bambini Learning Center"]
["Quezon City","482821","Discovery House Montessori of QC"]
["Quezon City","482822","Little King of Kings Learning Center of Nova., Inc."]
["Quezon City","482823","St. Jude Academy"]
["Quezon City","482824","Family Montessori Preschool of Loyola, Inc."]
["Quezon City","482825","St. John the Baptist Academy of Novaliches Inc."]
["Quezon City","482826","Santa Rafaela Maria School"]
["Quezon City","482827","Corner House Learning Center"]
["Quezon City","482828","Footsteps Learning Center Inc."]
["Quezon City","482829","Einstein Bright Kids Academy"]
["Quezon City","482830","Daystar Academy, Inc."]
["Quezon City","482831","JOHN DEWEY SCHOOL FOR CHILDREN, INC."]
["Quezon City","482832","PAIL AND SHOVEL INTEGRATED SCHOOL, INC."]
["Quezon City","482833","St. Anselm Preschool"]
["Quezon City","482834","Escuela De Corazon of Quezon City Inc."]
["Quezon City","482835","Little Stephanie Learning School, Inc."]
["Quezon City","482836","John Mark Christian School of Nova., Inc."]
["Quezon City","482880","Merry Hearts Learning Center"]
["Quezon City","482881","Headway School For Giftedness"]
["Quezon City","482882","Academia De Bellamino Inc."]
["Quezon City","482885","LSA Evergreen Christian Academy"]
["Quezon City","482886","Jems Achievers Learning Center Inc."]
["Quezon City","482887","Brother Sun Sister Moon Academy, Inc."]
["Quezon City","482888","Sunrise Christian Academy Inc."]
["Quezon City","482889","Book of Life Christian Academy Novaliches, Inc."]
["Quezon City","482890","School of the Corpus Christi (Quezon City), Inc."]
["Quezon City","482891","The Fountain of Life School of Quezon City, Inc."]
["Quezon City","482893","Fourthwatch Maranatha Christian Academy of Quezon City Inc."]
["Quezon City","482894","Our Lady of Peñafrancia Academy"]
["Quezon City","482895","Mind Matters Christian Academy, Inc."]
["Quezon City","482896","Golden Rock  Preparatory School"]
["Quezon City","482897","Aim Scholastic Informative Academy, Inc."]
["Quezon City","482898","Zionofpraise Academy, Inc."]
["Quezon City","482899","Perez Kids Academy of Quezon City, Inc."]
["Quezon City","482900","Little Harvard Academy Corp."]
["Quezon City","482901","Inventor Nurturer Academy, Inc."]
["Quezon City","482902","Lifegiverville Academy, Inc."]
["Quezon City","482903","Young Faye Learning School, Inc."]
["Quezon City","482904","Diamond Star Learning Center"]
["Quezon City","482905","Juan Miguel Academy of Quezon City"]
["Quezon City","482906","Montessori Education Center of Asia Pacific, Inc."]
["Quezon City","482907","Common-Wealth Academy"]
["Quezon City","482908","Saint Therese Learning Academy of Quezon City, Inc."]
["Quezon City","482909","School of Thoughts and Principles, Inc."]
["Quezon City","482910","Erudition School, Inc. Doing Business Under the Name of Leap School for Young Children"]
["Quezon City","482911","ZBDG'EE ACADEMY, INC"]
["Quezon City","482912","Greater Heights Development and Tutorial Center, Inc."]
["Quezon City","482913","Kinder Minds, Inc."]
["Quezon City","482914","Joyful Scholars Montessori, Inc."]
["Quezon City","482915","The Great Glen Learning Academy"]
["Quezon City","482916","John Xanderian Learning Center"]
["Quezon City","482917","Commonwealth Seventh-Day Adventist Preparatory School, Inc"]
["Quezon City","482918","Royal Kids Academy of Arts Inc."]
["Quezon City","482919","Parish of the Holy Sacrifice Outreach Program Foundation Inc."]
["Quezon City","482920","Starlight School, Inc."]
["Quezon City","482921","CLF New Life Christian School, Inc."]
["Quezon City","482922","Jals Preparatory School, Inc."]
["Quezon City","482923","Archangel Gabriel School of Veterans, Inc"]
["Quezon City","482924","The Child of St. Anne Learning Center"]
["Quezon City","482925","N.S Montessori Center"]
["Quezon City","482926","J and J Learning Center Inc."]
["Quezon City","482927","Philippine Montessori Center"]
["Quezon City","482928","Blessed Kiddie Educational Center of Quezon City, Inc."]
["Quezon City","482929","Saint Francis School, Inc."]
["Quezon City","482930","Integrated Center for the Young Inc."]
["Quezon City","482931","Centro Pambata School, Inc."]
["Quezon City","482932","Maria Montessori School of Mount Carmel, Inc."]
["Quezon City","482933","Shield of Life Montessori School, Inc."]
["Quezon City","482934","Pedia House For Early Child Development Preschool"]
["Quezon City","482935","Angels of Peace Academy Foundation Inc."]
["Quezon City","482936","Victoria Preparatory School, Inc."]
["Quezon City","482937","Citadel Child Learning Center, Inc"]
["Quezon City","482938","Bannister Academy Corp."]
["Quezon City","482939","Mater Christi School, Inc"]
["Quezon City","482940","Hoscomco Academy, Inc."]
["Quezon City","482941","Little Anak Learning School, Inc."]
["Quezon City","482942","Milestone Innovative Academy, Inc."]
["Quezon City","482943","Learn and Play Child Development and Study Center, Inc."]
["Quezon City","482944","Quezon City S.D.A. Elementary School"]
["Quezon City","482945","Most Holy Rosary of Pompei Pre-School"]
["Quezon City","482946","Lord's Grace Learning Center"]
["Quezon City","482947","Teaching Children Through Personalized Intervention Academy, Inc. - Main"]
["Quezon City","482948","Teaching Children Through Personalized Intervention Academy, Inc. - Branch"]
["Quezon City","482949","Cribs to Crayons Academy, Inc."]
["Quezon City","482950","East Baesa Academy of Quezon City, Inc."]
["Quezon City","482951","Christian City Academy"]
["Quezon City","482952","Creative Explorers Educational Foundation, Inc"]
["Quezon City","482953","Ilang-Ilang Education Institute of Payatas, Inc."]
["Quezon City","482954","Angel Isabella Kidstar Learning Center"]
["Quezon City","482955","Prince Nikki School, Inc."]
["Quezon City","482956","Eclaro Academy, Inc"]
["Quezon City","482957","Little Sandbox Incorporated"]
["Quezon City","482958","St. Gertrude School of Novaliches Inc."]
["Quezon City","482959","Jardine Kiddie Playhouse Center"]
["Quezon City","482960","Peter and Paul Institute of Quezon City, Inc"]
["Quezon City","482961","Christian Louis Academy Pasong Tamo Inc."]
["Quezon City","482962","First Line Integrated School, Inc."]
["Quezon City","482963","St. Alexis Community School of QC., Inc"]
["Quezon City","482964","Mia-Angela Montessori Learning Center"]
["Quezon City","482965","Niño Learning Center Inc"]
["Quezon City","482966","Holy Trinity Academy of Commonwealth Quezon City, Inc"]
["Quezon City","482967","St. Francis School - VSA Arts Philippines, Inc"]
["Quezon City","482968","Dominiques Solis Academy Corporation"]
["Quezon City","482969","Ephesians Christian Academy of Quezon City, Inc."]
["Quezon City","482970","Clues Learning Center"]
["Quezon City","482971","Datamex - College of Saint Adeline, Inc."]
["Quezon City","482972","Aim High Learning School"]
["Quezon City","482973","Clarion School International Institute Inc."]
["Quezon City","482974","Mary the Queen College of Science and Technology Inc."]
["Quezon City","482975","Universal Evangelical Christian School (UECS), Inc."]
["Quezon City","482976","Charis Central Academy"]
["Quezon City","482977","Vancouver Hill Preschool, Inc"]
["Quezon City","482978","Kingsville Learning Center, Inc."]
["Quezon City","482979","Mount Charmel School For Achievers, Inc."]
["Quezon City","482980","Divine Trinity Learning Academy Inc."]
["Quezon City","482981","PAUW-UP Child Study Center"]
["Quezon City","482982","Estar Castle Integrated School, Inc."]
["Quezon City","482983","Don Morriss Excellent School, Inc."]
["Quezon City","482986","St. John De Brebeuf Integrated School Inc."]
["Quezon City","482988","Jelaine Academy of Quezon City, Inc."]
["Quezon City","482989","Kids Camp Learning Center"]
["Quezon City","482990","The People of God Excellent Academe, Inc."]
["Quezon City","482991","Camelean Academy"]
["Quezon City","482992","Links Learning Center Corp."]
["Quezon City","482993","Bridges Foundation, Incorporated"]
["Quezon City","482994","Benz-on School, Inc."]
["Quezon City","482999","St. Jude Christian School of Quezon City"]
["Quezon City","483000","Red. Brick Academy, Inc."]
["Quezon City","600282","UP Integrated School"]
["Taguig","136871","Ciriaco P. Tiñga Elementary School"]
["Taguig","136872","Dr. Artemio. E. Natividad ES"]
["Taguig","136873","Eusebio C. Santos Elementary School"]
["Taguig","136875","Ricardo P. Cruz, Sr. Elementary School"]
["Taguig","136877","Tipas Elementary School -Main"]
["Taguig","136878","Tipas Elementary School - Annex"]
["Taguig","136879","Ususan Elementary School"]
["Taguig","136880","Bagong Tanyag Elementary School - Main"]
["Taguig","136881","Bagong Tanyag Elementary School - Annex A"]
["Taguig","136882","Bagong Tanyag Elementary School - Annex B"]
["Taguig","136883","Cipriano P. Sta. Teresa Elementary School"]
["Taguig","136884","Daanghari Elementary School"]
["Taguig","136885","Enlisted Men's Signal Village Elementary School"]
["Taguig","136886","Kapitan Jose Cardones Memorial ES"]
["Taguig","136887","Upper Bicutan ES"]
["Taguig","136889","Silangan Elementary School"]
["Taguig","136890","Maharlika Elementary School"]
["Taguig","136891","Tenement Elementary School"]
["Taguig","136892","Aguho Elementary School"]
["Taguig","136893","Capt. Hipolito Francisco Elementary School - Main"]
["Taguig","136894","Capt. Hipolito Francisco Elementary School Annex"]
["Taguig","136895","Paulina Manalo ES"]
["Taguig","136896","Pateros Elementary School"]
["Taguig","136897","Sta. Ana Elementary School"]
["Taguig","136898","Sto. Rosario Elementary School"]
["Taguig","228002","Gat. Andres Bonifacio Elmentary School"]
["Taguig","407242","Academia de San Bartolome de Taguig"]
["Taguig","407243","Colegio de Sta. Ana"]
["Taguig","407245","Fairyland Grade School, Inc."]
["Taguig","407247","Little Friends of St. Mary Learning Center"]
["Taguig","407249","St. Ignatius of Loyola School"]
["Taguig","407250","St. Vincent Learning Center, Inc."]
["Taguig","407251","Anne Claire Montessori School"]
["Taguig","407252","ATHENS ACADEMY, INC."]
["Taguig","407255","Blessed Trinity Learning Center, Inc."]
["Taguig","407257","D.F. Tinker Bell School, Inc."]
["Taguig","407258","The Fisher Valley College, Hagonoy"]
["Taguig","407259","Gabby's Christian School, Upper Bicutan"]
["Taguig","407260","Gabby's Christian Academy of Signal Village, Inc"]
["Taguig","407261","Genesis Educational Services Foundation"]
["Taguig","407263","Gracel Christian College foundation, Inc"]
["Taguig","407264","Grant's Apostolic Institute"]
["Taguig","407266","Jesus Is Lord Christian School Foundation Taguig-Pateros, Inc."]
["Taguig","407267","MCA Montessori School (Fort Bonifacio Branch)"]
["Taguig","407268","Moises Christian Academy, Inc."]
["Taguig","407269","Mt. Moriah Christian Academy, Inc."]
["Taguig","407272","Royal Era Academy"]
["Taguig","407273","SAINT FRANCIS OF ASSISI COLLEGE OF TAGUIG,INC."]
["Taguig","407274","Saint Helena School, Inc."]
["Taguig","407275","St. Ives School, Inc."]
["Taguig","407276","Saint Lawrence Foundation School, Inc, CIM"]
["Taguig","407278","Sto. Niño Catholic School"]
["Taguig","407280","Academia de San Isidro"]
["Taguig","407281","Army's Angels Integrated School, Inc."]
["Taguig","407282","Beacon International School Foundation Inc."]
["Taguig","407283","Christian Light Academy of Taguig, INC."]
["Taguig","407285","Gabby's Christian School (E.P. Village Branch)"]
["Taguig","407286","God's Grace Christian Academy, Inc."]
["Taguig","407288","Integrated Montessori Center"]
["Taguig","407292","Philippine Army Officers' Ladies Foundation School"]
["Taguig","407295","St. Bernard Academy of Taguig, Inc.,"]
["Taguig","407296","Gonzales Learning Center"]
["Taguig","407297","Grem Village Learning Center, Inc."]
["Taguig","407298","LRC Learning Center"]
["Taguig","407299","Pateros Catholic School"]
["Taguig","407303","Saint Genevieve School of Pateros"]
["Taguig","407767","ADB Mindsfield Learning School, Inc."]
["Taguig","407768","Little Therese Learning School, Inc."]
["Taguig","407769","Providence Advent Academy"]
["Taguig","407770","The International Montessori School @Treston Inc."]
["Taguig","407814","Global Leaders International School"]
["Taguig","407815","Hand In Hand Learning Center, Inc."]
["Taguig","407816","Olympian's Integrated Montessori School, Inc."]
["Taguig","407817","Our Lady of Guidance Kids House and Learning Center of Taguig, Inc."]
["Taguig","407818","Thel's Muslim-Christian Academy, Inc."]
["Taguig","407819","Armor Kiddie and Learning Center of Taguig Inc."]
["Taguig","407906","The Living Miracle Foundation, Inc."]
["Taguig","408002","Treasure Hidden Field Academy, Inc."]
["Taguig","408005","Child Scholars Learning Academy Inc."]
["Taguig","408006","Rosarian Integrated School of Taguig Inc."]
["Taguig","408012","Maranatha Christian Academy of Taguig City, Inc."]
["Taguig","408039","Lord of the Harvest of All Nations Academy, Inc."]
["Taguig","408110","The Abba's Orchard School, Inc."]
["Taguig","408127","St. John Kiddie School of Taguig, Inc."]
["Taguig","408240","Tha Abba's Orchard School Inc. (BR)"]
["Taguig","408241","In Touch Educational Center, Inc."]
["Taguig","408441","Cradle of Great Minds Learning Centre"]
["Taguig","408442","King David's Learning Center"]
["Taguig","408454","Bethany Christian Learning School of Western Bicutan, Inc."]
["Taguig","408476","TRIDIUM ACADEMY, INC."]
["Taguig","408513","Heaven's Door Christian Academy"]
["Taguig","408514","Manila Japanese School"]
["Taguig","408527","Search Mission Baptist Academy, Inc."]
["Taguig","408528","AMB Wonder Development Academy, Inc."]
["Taguig","408529","St. Ives School, Inc."]
["Taguig","408965","Cambridge Children's Learning and Development, Inc."]
["Taguig","488004","Zinah Christian Academy, Inc."]
["Taguig","488005","SEP Christian School"]
["Taguig","488007","E.P Ville Integrated Academy"]
["Taguig","488009","HOLY SPIRIT CHRISTIAN LEARNING CENTRE, INC."]
["Taguig","488010","St. Patricia Foundation School,Inc."]
["Taguig","488011","Moreh Academy Inc."]
["Taguig","488012","Victory Christian International School"]
["Taguig","488014","Noah's Academy Incorporated"]
["Taguig","488015","Centerville Academy Inc."]
["Taguig","488016","Mary Lourdes Academy, Inc."]
["Taguig","488017","Hansarang Christian Academy, Inc."]
["Taguig","488018","Learn & Explore Montessori School, Inc."]
["Taguig","488019","(FTJCA) Family Tabernacle of Jesus Christ Almighty Christian Academy"]
["Taguig","488020","Excellent Achievers Learning Center, Inc."]
["Taguig","488022","Huckleberry Montessori School, Inc., Upper Bicutan"]
["Taguig","488025","Morning Glory Christian Academy of Taguig Inc."]
["Taguig","488026","Tipas Catholic School, Inc."]
["Taguig","488029","GLOBAL SYSTEM INTEGRATED SCHOOL INC."]
["Taguig","488030","Mere Academy, Inc."]
["Taguig","488032","HSL - Braille College,Inc."]
["Taguig","488033","MGC New Life Christian Academy"]
["Taguig","488035","D'Carmelite School, Inc."]
["Taguig","488036","Total Concept Integrated School, Inc."]
["Taguig","488037","Ben S. Novicio Academy"]
["Taguig","488039","Gymnazo Christian Academy , Inc."]
["Taguig","488041","Eastern Achiever Academy of Taguig, Inc."]
["Taguig","488043","Huckleberry Montessori School, Inc. Pateros (Magtanggol)"]
["Taguig","488045","St. Uriel Academy of Taguig City"]
["Taguig","488046","Heaven's Door Christian Academy , Inc."]
["Taguig","488047","Battlefield Baptist Academy, INC."]
["Taguig","488048","S.M. Mystical Rose Academy Inc."]
["Taguig","488049","St. Theodore School, Inc."]
["Taguig","488050","The Fisher Valley College \"C-5 Annex\""]
["Taguig","488051","Mother of Perpetual Help School"]
["Taguig","488053","Christian Harvest Academy Foundation, Inc."]
["Taguig","488054","Triumphant Christ Learning Center"]
["Taguig","488055","AA Total Achievers Academy, Inc."]
["Taguig","488058","The Springbridge School, Inc."]
["Taguig","488059","Pillar of Truth Educational Foundation, Inc."]
["Taguig","488061","Spark Academy of Global City, Inc."]
["Taguig","488062","SBP Child Learning Advancement School Inc."]
["Taguig","488063","Salt & Light Christian School - Taguig, Inc."]
["Taguig","488064","Amazing Grace Academy - Taguig, Inc."]
["Taguig","488065","Merry Mount Preparatory School Taguig Branch Inc."]
["Taguig","488068","Monlimar Development Academy, Inc."]
["Taguig","488070","GOOD SHEPHERD OF TAGUIG COLLEGES INC."]
["Taguig","488071","Saint Lawrence Foundation School, Inc., Signal"]
["Taguig","488072","Saint Lawrence Foundation School, Inc., Central"]
["Taguig","488073","Spring of Virtue Integrated School, Inc."]
["Taguig","488074","Children's Integrated Learning Systems, Inc."]
["Taguig","488076","Maria Montessori Holy Christian School, Inc."]
["Taguig","488078","Geres Academy of Taguig, Inc."]
["Taguig","488080","FABEC Christian School, Inc."]
["Taguig","488081","Asian Christian Theological School and Colleges, Inc."]
["Taguig","488082","Sta. Margarit School of Taguig Inc."]
["Taguig","488083","Thy Covenant Montessori School, Inc."]
["Taguig","488084","The Young Achievers Integrated Learning School, Inc."]
["Taguig","488086","Balmor Christian School"]
["Taguig","488090","Vrice Montessori School"]
["Taguig","488091","Grant Cecilia Integrated School, Inc."]
["Taguig","488092","FTJCA Christian Academy - Palar"]
["Taguig","488093","Tipas Eastern Academy, Inc."]
["Taguig","488095","Angels of the Lord School of Taguig, Inc."]
["Taguig","488096","Powell Tutorial & Learning Center of Taguig, Inc."]
["Taguig","488098","EVEREST ACADEMY, INC."]
["Taguig","488099","Lakeview Montessori Center"]
["Taguig","488101","BLESSED LAND ACADEMY OF TAGUIG"]
["Taguig","488102","BUDDING FLOWERS LEARNING CENTER INC."]
["Taguig","488103","G4 Learning Journey School Inc."]
["Taguig","488104","Faith Grower Christian School"]
["Taguig","488105","TMB Madrasah - Montessori Learning Center"]
["Taguig","488107","Trinity Baptist Academy Church School Ministry of Balikatan Bible Baptist Church, Inc."]
["Taguig","488108","Garden of Joy Academy Inc."]
["Taguig","488109","Precious E. Peralta (P.E.P.) School, Inc."]
["Taguig","488110","Solid Rock Christian Academy of Taguig Inc."]
["Taguig","488111","Leaders International Christian School of Manila, Inc."]
["Taguig","488112","Maranatha Christian Academy of Tabacalera, Pateros"]
["Taguig","488114","ABC Educational Development Center, Inc."]
["Taguig","488115","9th Avenue School"]
["Taguig","488116","APPLESEED MONTESSORI INCORPORATED"]
["Taguig","488117","BANKSTREET SUMMIT SCHOOL, INC."]
["Taguig","488118","INTERNATIONAL SCHOOL MANILA"]
["Taguig","488119","Korean International School Philippines"]
["Taguig","488122","Arandia College Taguig Inc."]
["Taguig","488123","Brilliance Christian School of Taguig"]
["Taguig","488124","JF Holy One Academy"]
["Taguig","488125","Kelly Primary School"]
["Taguig","488126","PNOWA Child Learning Center, Inc."]
["Taguig","488127","Merry Knowledge Academe, Inc."]
["Taguig","488128","BLOOMFIELD ACADEMY OF MAKATI"]
["Taguig","488129","Chinese International School Manila"]
["Taguig","488130","Dreamworks Achievers Academy"]
["Taguig","488132","La Garlet Christian School, Inc."]
["Taguig","488133","Central Village Thinkers Academy, Inc."]
["Taguig","488134","Our Lady of Snow Excel School Inc."]
["Taguig","488135","The River of Life Learning Center Taguig, Inc."]
["Taguig","488136","Light of Young Kiddie Learning Center Inc."]
["Taguig","488137","Next Generation Leaders Academy, Inc."]
["Taguig","488138","St. Chamuel College Inc."]
["Taguig","500340","Kapitan Eddie T. Reyes Memorial Integrated School"]
["Taguig","500341","Palar Integrated School"]
["Taguig","500342","Napindan Integrated School"]
["Taguig","500565","Taguig Integrated School"]
["Valenzuela City","136792","Andres Mariano ES (Bagbaguin ES)"]
["Valenzuela City","136793","Canumay West ES"]
["Valenzuela City","136794","Dalandanan Elementary School"]
["Valenzuela City","136795","Lingunan ES"]
["Valenzuela City","136796","Sitio Sto. Rosario ES (Malabo ES)"]
["Valenzuela City","136797","Malinta Elementary School"]
["Valenzuela City","136798","Maysan Elementary School"]
["Valenzuela City","136799","Parada ES"]
["Valenzuela City","136800","Arcadio F. Deato Elementary School"]
["Valenzuela City","136801","Andres Fernando Elementary School"]
["Valenzuela City","136802","Coloong ES"]
["Valenzuela City","136803","Isla ES"]
["Valenzuela City","136804","P. R. Sandiego ES"]
["Valenzuela City","136805","PALTOK ES"]
["Valenzuela City","136806","Pasolo Elementary School"]
["Valenzuela City","136807","Pio Valenzuela ES"]
["Valenzuela City","136808","Rincon ES"]
["Valenzuela City","136809","Tagalag ES"]
["Valenzuela City","136810","Luis Francisco ES"]
["Valenzuela City","136811","WawangPulo ES"]
["Valenzuela City","136812","Roberta de Jesus ES"]
["Valenzuela City","136813","Canumay East Elementary School"]
["Valenzuela City","136814","Gen. T. de Leon ES"]
["Valenzuela City","136815","Lawang Bato Elementary School"]
["Valenzuela City","136816","Apolonia F. Rafael Elementary School"]
["Valenzuela City","136817","Paso de Blas Elementary School"]
["Valenzuela City","136818","Punturin ES"]
["Valenzuela City","136819","Silvestre Lazaro Elementary School"]
["Valenzuela City","136820","Bitik ES"]
["Valenzuela City","136821","Caruhatan East ES"]
["Valenzuela City","136822","Caruhatan West ES"]
["Valenzuela City","136823","Constantino ES"]
["Valenzuela City","136824","Doña Ata ES"]
["Valenzuela City","136825","Marulas Central School"]
["Valenzuela City","136826","San Miguel Heights ES"]
["Valenzuela City","136827","Serrano ES"]
["Valenzuela City","227001","Malinta ES - Pinalagad Annex"]
["Valenzuela City","227002","Santiago A. de Guzman ES"]
["Valenzuela City","227003","Punturin I ES"]
["Valenzuela City","407152","Bright Hope School"]
["Valenzuela City","407153","Children of Mary Immaculate College"]
["Valenzuela City","407154","Christ's Agape School of Valenzuela"]
["Valenzuela City","407156","Divine Word Learning Center"]
["Valenzuela City","407158","Jesus Our Life Christian Academy, Inc."]
["Valenzuela City","407159","Mary Immaculate School of Valenzuela"]
["Valenzuela City","407161","La Consolacion College  Valenzuela"]
["Valenzuela City","407162","St. Louis College of Valenzuela"]
["Valenzuela City","407163","Saint Mary's Angels College of Valenzuela"]
["Valenzuela City","407164","St. Michael Academy- Main Bagbaguin Branch"]
["Valenzuela City","407166","Emmaus Christian Schools, Inc."]
["Valenzuela City","407169","Little Bethlehem Learning Center, Inc."]
["Valenzuela City","407170","Marisyl School"]
["Valenzuela City","407171","Paragon Academy"]
["Valenzuela City","407172","San Diego Parochial School"]
["Valenzuela City","407173","Miriam's Academy of Valenzuela, Inc."]
["Valenzuela City","407178","Bobby & Kates Academy"]
["Valenzuela City","407179","Charis Christian School of Val., Inc."]
["Valenzuela City","407180","Christ's Ambassadors Christian Academy"]
["Valenzuela City","407181","Colegio de Sta. Cecilia"]
["Valenzuela City","407182","Monteras School of Valenzuela"]
["Valenzuela City","407183","Montessori Academy of Valenzuela"]
["Valenzuela City","407184","Our Lady of Lourdes College"]
["Valenzuela City","407185","ST. BERNADETTE COLLEGE OF VALENZUELA"]
["Valenzuela City","407186","St. Catherine College of Valenzuela, Inc."]
["Valenzuela City","407187","St. Joseph Academy of Valenzuela"]
["Valenzuela City","407188","St. Joseph School of Lawang Bato, Inc."]
["Valenzuela City","407189","St. Therese of the Child Jesus Kidz Academy Inc."]
["Valenzuela City","407192","Wesleyan Kindergarten School"]
["Valenzuela City","407194","John Vincent Academy"]
["Valenzuela City","407195","Juliever Academy"]
["Valenzuela City","407196","Marulas Christian School"]
["Valenzuela City","407199","Mother Shepherd Academy of Valenzuela-Main"]
["Valenzuela City","407200","Phil. Ling Liang Christian Academy Inc."]
["Valenzuela City","407202","St. Paul Christian School"]
["Valenzuela City","407203","Sto. Rosario Montessori School Inc."]
["Valenzuela City","407204","Valenzuela Christian School"]
["Valenzuela City","407907","Blessed Hope Christian Academy"]
["Valenzuela City","407937","GIYA CHRISTIAN ACADEMY"]
["Valenzuela City","407938","DISNEYLAND LEARNING SCHOOL"]
["Valenzuela City","407939","The Lord's Hand Learning Center"]
["Valenzuela City","407940","Bethel Kiddie Learning Center of Valenzuela"]
["Valenzuela City","408822","St. John Paul 2 Academy of Valenzuela, Inc."]
["Valenzuela City","408823","ZMS Montessori School Inc."]
["Valenzuela City","408824","La Chrisbelia Learning Center Inc."]
["Valenzuela City","408825","Living Stone Kids Learning Center of Lawang Bato, Inc."]
["Valenzuela City","409025","Maranatha Christian Academy of Palasan"]
["Valenzuela City","481058","ACADEMIA DE SAN GABRIEL OF VALENZUELA, INC."]
["Valenzuela City","487003","Mary and Child Velenzuela Learning Center, Inc."]
["Valenzuela City","487004","Words of Wisdom Christian Academy"]
["Valenzuela City","487005","New Prodon Academy of Valenzuela"]
["Valenzuela City","487008","St. Blaise Academy of Valenzuela, Inc."]
["Valenzuela City","487009","Our Lady of Angels Learning Center, Inc."]
["Valenzuela City","487012","Jeremiah Christian Academy of Malinta"]
["Valenzuela City","487013","Corinthian School, Inc."]
["Valenzuela City","487014","Messiah School Foundation , Inc."]
["Valenzuela City","487015","St. Michael School of Canumay, Inc."]
["Valenzuela City","487016","Polylove Academy"]
["Valenzuela City","487017","SKM Christian Academy"]
["Valenzuela City","487019","Our Lord's Vineyard School"]
["Valenzuela City","487020","Nuestra Senora de Guia Academy"]
["Valenzuela City","487021","Marulas Valenzuela Learning Center"]
["Valenzuela City","487022","Rosewood Montessori International School"]
["Valenzuela City","487023","St. Leonore Learning School, Inc."]
["Valenzuela City","487024","St. Michael Academy of Valenzuela, Inc. (Malinta Branch)"]
["Valenzuela City","487026","Green Grove Learning Center"]
["Valenzuela City","487028","St. Benedict Academy of Velenzuela, Inc."]
["Valenzuela City","487030","Grace Pearl School of Valenzuela"]
["Valenzuela City","487031","St. Gregory College of Valenzuela"]
["Valenzuela City","487032","St. Louis College of Valenzuela"]
["Valenzuela City","487033","St. Stephen Ecumenical Learning School, Inc."]
["Valenzuela City","487034","KMPC Academy Of Valenzuela, Inc."]
["Valenzuela City","487035","Mother Shepherd Academy of Valenzuela"]
["Valenzuela City","487037","Bible Institute for the Deaf -SPED"]
["Valenzuela City","487040","High Horizons Learning Center, Inc."]
["Valenzuela City","487042","DIVINE MERCY ACADEMY OF VALENZUELA, INC."]
["Valenzuela City","487043","ST. ATHANASIUS ACADEMY INC."]
["Valenzuela City","487044","Touched By Messiah Christian School INC"]
["Valenzuela City","487045","Mary- Nelle Child Study Center"]
["Valenzuela City","487047","Our Lady of Mt. Carmel School of Valenzuela, Inc."]
["Valenzuela City","487048","Our Lady of Fatima University, INC."]
["Valenzuela City","487049","A.M.S Our Lady of Holy Rosary Learning Center, Inc"]
["Valenzuela City","487050","Treasure Chest of Learning Academy of Valenzuela, Inc."]
["Valenzuela City","487052","LITTLE ANGELS PREMIERE SCHOOL OF VALENZUELA CITY, INC."]
["Valenzuela City","487053","Holy Family of Grameen School, Inc."]
["Valenzuela City","487054","FEBIAS COLLEGE OF BIBLE"]
["Valenzuela City","487055","Maranatha Christian Academy of Karuhatan Valenzuela City"]
["Valenzuela City","487056","CEC Christian Academy of Valenzuela, Inc."]
["Valenzuela City","487057","SIMON ACADEMY, INC."]